Organisation Name,Organisation Code,Effective Date,Directorate  Where Expenditure Incurred,Supplier Name,Payment Date,Transaction Number,Gross Amount,Purpose of Spend,Merchant Category,Card Transaction
WALSALL COUNCIL,HTTP://OPENDATACOMMUNITIES.ORG/ID/METROPOLITAN-DISTRICT-COUNCIL/WALSALL,31/12/2016,CHILDRENS SERVICES,WATERWORLD 2000 LIMITED,30/12/2016,H59620170104PMKVMJMZJ-1,47.46,REDRUTH ROAD-RESIDENTS PERSONAL EXPENSES-AL,OTHER RECREATION SERVICES,GPC
WALSALL COUNCIL,HTTP://OPENDATACOMMUNITIES.ORG/ID/METROPOLITAN-DISTRICT-COUNCIL/WALSALL,31/12/2016,ECONOMY & ENVIRONMENT,VODAFONE,30/12/2016,H59620170104YJKABQSCE-1,69.00,POLLUTION DIVISION-COSTS (NOT INTERNAL RECHARGES),TELECOMMUNICATION SERVICES,GPC
WALSALL COUNCIL,HTTP://OPENDATACOMMUNITIES.ORG/ID/METROPOLITAN-DISTRICT-COUNCIL/WALSALL,31/12/2016,CHILDRENS SERVICES,W M MORRISON PLC,30/12/2016,H59620170104UCISWQHOK-1,9.64,"43A HILTON ROAD, WILLENHALL-FOOD AND BEVERAGES-PROVISIONS",GROCERY STORES AND SUPERMARKETS,GPC
WALSALL COUNCIL,HTTP://OPENDATACOMMUNITIES.ORG/ID/METROPOLITAN-DISTRICT-COUNCIL/WALSALL,31/12/2016,CHILDRENS SERVICES,W M MORRISON PLC,30/12/2016,H59620170104UCISWQHOK-2,57.29,"43A HILTON ROAD, WILLENHALL-FOOD AND BEVERAGES-PROVISIONS",GROCERY STORES AND SUPERMARKETS,GPC
WALSALL COUNCIL,HTTP://OPENDATACOMMUNITIES.ORG/ID/METROPOLITAN-DISTRICT-COUNCIL/WALSALL,31/12/2016,CHANGE & GOVERNANCE,FACEBK MFA9BBNBP2,31/12/2016,H59620170104VFUCUZKYM-1,96.56,SCHOOL HR TRANSACTIONAL TEAM-ADVERTISING STAFF VACANCIES,ADVERTISING SERVICES,GPC
WALSALL COUNCIL,HTTP://OPENDATACOMMUNITIES.ORG/ID/METROPOLITAN-DISTRICT-COUNCIL/WALSALL,31/12/2016,CHANGE & GOVERNANCE,FACEBK QFA9BBNBP2,31/12/2016,H59620170104HWETLSBIA-1,1.33,SCHOOL HR TRANSACTIONAL TEAM-ADVERTISING STAFF VACANCIES,ADVERTISING SERVICES,GPC
WALSALL COUNCIL,HTTP://OPENDATACOMMUNITIES.ORG/ID/METROPOLITAN-DISTRICT-COUNCIL/WALSALL,31/12/2016,SOCIAL CARE & INCLUSION,WWW.HUNTLEIGH-HEAL,30/12/2016,H59620170104HSQOSSPWC-1,86.40,FALLINGS HEATH-GENERAL MATERIALS,"HEALTH PRACTITIONERS, MEDICAL SERVICES",GPC
WALSALL COUNCIL,HTTP://OPENDATACOMMUNITIES.ORG/ID/METROPOLITAN-DISTRICT-COUNCIL/WALSALL,31/12/2016,SOCIAL CARE & INCLUSION,CARESHOP,30/12/2016,H59620170104QAYSSOXYN-1,217.46,FALLINGS HEATH-GENERAL MATERIALS,MISCELLANEOUS AND SPECIALTY RETAIL STORES,GPC
WALSALL COUNCIL,HTTP://OPENDATACOMMUNITIES.ORG/ID/METROPOLITAN-DISTRICT-COUNCIL/WALSALL,31/12/2016,CHILDRENS SERVICES,DISCLOSURE & BARRING,30/12/2016,H59620170104CFTLXVQID-1,13.00,ALUMWELL JUNIOR SCHOOL-,GOVERNMENT SERVICES,GPC
WALSALL COUNCIL,HTTP://OPENDATACOMMUNITIES.ORG/ID/METROPOLITAN-DISTRICT-COUNCIL/WALSALL,31/12/2016,CHANGE & GOVERNANCE,PRIMARK 690,30/12/2016,H59620170104OYJYGSSLY-1,50.00,WALSALL CRISIS SUPPORT SCHEME-CRISIS SUPPORT PAYMENTS,CLOTHING STORES,GPC
WALSALL COUNCIL,HTTP://OPENDATACOMMUNITIES.ORG/ID/METROPOLITAN-DISTRICT-COUNCIL/WALSALL,31/12/2016,CHANGE & GOVERNANCE,SAVERS HEALTH & BEAUTY,30/12/2016,H59620170104PBUAIWOSG-1,12.62,WALSALL CRISIS SUPPORT SCHEME-CRISIS SUPPORT PAYMENTS,"DRUG STORES, PHARMACIES",GPC
WALSALL COUNCIL,HTTP://OPENDATACOMMUNITIES.ORG/ID/METROPOLITAN-DISTRICT-COUNCIL/WALSALL,31/12/2016,CHILDRENS SERVICES,W M MORRISONS.COM,31/12/2016,H59620170104UBXDGSMRL-1,20.40,BLUEBELLS-FOOD AND BEVERAGES-PROVISIONS,GROCERY STORES AND SUPERMARKETS,GPC
WALSALL COUNCIL,HTTP://OPENDATACOMMUNITIES.ORG/ID/METROPOLITAN-DISTRICT-COUNCIL/WALSALL,31/12/2016,CHILDRENS SERVICES,W M MORRISONS.COM,31/12/2016,H59620170104UBXDGSMRL-2,66.23,BLUEBELLS-FOOD AND BEVERAGES-PROVISIONS,GROCERY STORES AND SUPERMARKETS,GPC
WALSALL COUNCIL,HTTP://OPENDATACOMMUNITIES.ORG/ID/METROPOLITAN-DISTRICT-COUNCIL/WALSALL,31/12/2016,CHILDRENS SERVICES,THE FOOD RET SVS,30/12/2016,H59620170104WJCYHUQEP-1,11.53,"43A HILTON ROAD, WILLENHALL-FOOD AND BEVERAGES-PROVISIONS",GROCERY STORES AND SUPERMARKETS,GPC
WALSALL COUNCIL,HTTP://OPENDATACOMMUNITIES.ORG/ID/METROPOLITAN-DISTRICT-COUNCIL/WALSALL,31/12/2016,ECONOMY & ENVIRONMENT,WALSALL WOOD,30/12/2016,H59620170104JBBQPEGER-1,11.97,INFRASTRUCTURE MAINTENANCE-GENERAL MATERIALS,LUMBER & BUILDING MATERIALS STORES,GPC
WALSALL COUNCIL,HTTP://OPENDATACOMMUNITIES.ORG/ID/METROPOLITAN-DISTRICT-COUNCIL/WALSALL,31/12/2016,CHANGE & GOVERNANCE,TESCO STORES 6161,30/12/2016,H59620170104MAWJFDNYQ-1,9.75,ACCOMMODATION SERVICES MANAGEM-FOOD AND BEVERAGES-PROVISIONS,GROCERY STORES AND SUPERMARKETS,GPC
WALSALL COUNCIL,HTTP://OPENDATACOMMUNITIES.ORG/ID/METROPOLITAN-DISTRICT-COUNCIL/WALSALL,31/12/2016,CHANGE & GOVERNANCE,SPORTSDIRECT 153,30/12/2016,H59620170104XKMFVDNVW-1,21.98,ACCOMMODATION SERVICES MANAGEM-FURNITURE & EQUIPMENT,SPORTING GOODS STORES,GPC
WALSALL COUNCIL,HTTP://OPENDATACOMMUNITIES.ORG/ID/METROPOLITAN-DISTRICT-COUNCIL/WALSALL,31/12/2016,CHILDRENS SERVICES,CO-OPERATIVE FOOD,30/12/2016,H59620170104KSONEDTYC-1,8.76,REDRUTH ROAD-FOOD AND BEVERAGES-PROVISIONS,GROCERY STORES AND SUPERMARKETS,GPC
WALSALL COUNCIL,HTTP://OPENDATACOMMUNITIES.ORG/ID/METROPOLITAN-DISTRICT-COUNCIL/WALSALL,31/12/2016,CHILDRENS SERVICES,B&M RETAIL,30/12/2016,H59620170104BRFVGIEJE-1,17.97,REDRUTH ROAD-,DISCOUNT STORES,GPC
WALSALL COUNCIL,HTTP://OPENDATACOMMUNITIES.ORG/ID/METROPOLITAN-DISTRICT-COUNCIL/WALSALL,31/12/2016,CHILDRENS SERVICES,FACEBK S5XRPB69Q2,31/12/2016,H59620170104ZTQGDYHKP-1,8.95,INTERNAL FOSTER CARE PROVISION-PUBLICITY & ADVERTISING (NOT S,ADVERTISING SERVICES,GPC
WALSALL COUNCIL,HTTP://OPENDATACOMMUNITIES.ORG/ID/METROPOLITAN-DISTRICT-COUNCIL/WALSALL,31/12/2016,CHILDRENS SERVICES,ASDA HOME SHOPPING,30/12/2016,H59620170104HHVUPZJTV-1,50.52,EARLY YEARS AND DISABILITIES S-FOOD AND BEVERAGES-PROVISIONS,GROCERY STORES AND SUPERMARKETS,GPC
WALSALL COUNCIL,HTTP://OPENDATACOMMUNITIES.ORG/ID/METROPOLITAN-DISTRICT-COUNCIL/WALSALL,31/12/2016,CHILDRENS SERVICES,ASDA HOME SHOPPING,30/12/2016,H59620170104ROEFYKIFL-1,-0.16,EARLY YEARS AND DISABILITIES S-FOOD AND BEVERAGES-PROVISIONS,GROCERY STORES AND SUPERMARKETS,GPC
WALSALL COUNCIL,HTTP://OPENDATACOMMUNITIES.ORG/ID/METROPOLITAN-DISTRICT-COUNCIL/WALSALL,31/12/2016,ECONOMY & ENVIRONMENT,AMAZON UK RETAIL,30/12/2016,H59620170104HVNYPSYBJ-1,21.38,FLEET-GENERAL MATERIALS,OTHER DIRECT MARKETING-OTHER DIRECT MARKETERS,GPC
WALSALL COUNCIL,HTTP://OPENDATACOMMUNITIES.ORG/ID/METROPOLITAN-DISTRICT-COUNCIL/WALSALL,31/12/2016,CHILDRENS SERVICES,HM PASSPORT OFFICE,30/12/2016,H59620170104IHBDPHTCS-1,46.00,LOOKED AFTER CHILDRENS SOCIAL -MISC FEES AND EXPENSES,GOVERNMENT SERVICES,GPC
WALSALL COUNCIL,HTTP://OPENDATACOMMUNITIES.ORG/ID/METROPOLITAN-DISTRICT-COUNCIL/WALSALL,31/12/2016,CHILDRENS SERVICES,PREMIER INN44017405,29/12/2016,H59620170104FUOLBAOZD-1,96.50,ADOPTION TEAM-HOTEL ACCOMMODATION-EMPLOYEES,PREMIER INN,GPC
WALSALL COUNCIL,HTTP://OPENDATACOMMUNITIES.ORG/ID/METROPOLITAN-DISTRICT-COUNCIL/WALSALL,31/12/2016,ECONOMY & ENVIRONMENT,SIM MAYOU HARDWARE,29/12/2016,H59620161231LLHVCVKVX-1,23.98,"COMMUNITY LIASON-CROCKERY,HARDWARE & DISPOSABLE",HARDWARE STORES,GPC
WALSALL COUNCIL,HTTP://OPENDATACOMMUNITIES.ORG/ID/METROPOLITAN-DISTRICT-COUNCIL/WALSALL,31/12/2016,CHILDRENS SERVICES,CAPITA RECRUITMENT VETTIN,29/12/2016,H59620161231UNHBSTIOI-1,44.00,LOCALITY FAMILY SUPPORT-NORTH-PROFESSIONAL FEES AND SERVICES,PROFESSIONAL SERVICES,GPC
WALSALL COUNCIL,HTTP://OPENDATACOMMUNITIES.ORG/ID/METROPOLITAN-DISTRICT-COUNCIL/WALSALL,31/12/2016,CHILDRENS SERVICES,CAPITA RECRUITMENT VETTIN,29/12/2016,H59620161231UNHBSTIOI-2,8.10,LOCALITY FAMILY SUPPORT-NORTH-PROFESSIONAL FEES AND SERVICES,PROFESSIONAL SERVICES,GPC
WALSALL COUNCIL,HTTP://OPENDATACOMMUNITIES.ORG/ID/METROPOLITAN-DISTRICT-COUNCIL/WALSALL,31/12/2016,ECONOMY & ENVIRONMENT,LUL TICKET MACHINE,29/12/2016,H59620161231SKYEQXPJM-1,10.00,NEW ART GALLERY - ADMIN-OFFICER/STAFF-PUBLIC TRANSPORT,PASSENGER RAILWAYS,GPC
WALSALL COUNCIL,HTTP://OPENDATACOMMUNITIES.ORG/ID/METROPOLITAN-DISTRICT-COUNCIL/WALSALL,31/12/2016,CHILDRENS SERVICES,ASDA SUPERSTORE,29/12/2016,H59620161231QBFLKEWIL-1,10.13,REDRUTH ROAD-FOOD AND BEVERAGES-PROVISIONS,GROCERY STORES AND SUPERMARKETS,GPC
WALSALL COUNCIL,HTTP://OPENDATACOMMUNITIES.ORG/ID/METROPOLITAN-DISTRICT-COUNCIL/WALSALL,31/12/2016,CHILDRENS SERVICES,ASDA SUPERSTORE,29/12/2016,H59620161231QBFLKEWIL-2,43.91,REDRUTH ROAD-FOOD AND BEVERAGES-PROVISIONS,GROCERY STORES AND SUPERMARKETS,GPC
WALSALL COUNCIL,HTTP://OPENDATACOMMUNITIES.ORG/ID/METROPOLITAN-DISTRICT-COUNCIL/WALSALL,31/12/2016,CHANGE & GOVERNANCE,MCDONALDS,29/12/2016,H59620161231GFOPXPZGQ-1,3.57,YOUNG PERSONS HOMELESS SERVICE-SUBSISTENCE OFFICERS-EXPENSES,QUICK PAYMENT SERVICE-FAST-FOOD RESTAURANTS,GPC
WALSALL COUNCIL,HTTP://OPENDATACOMMUNITIES.ORG/ID/METROPOLITAN-DISTRICT-COUNCIL/WALSALL,31/12/2016,CHANGE & GOVERNANCE,ASDA,29/12/2016,H59620161231INGHXVJQA-1,7.19,YOUNG PERSONS HOMELESS SERVICE-GENERAL PROVISIONS-PROVISIONS,GROCERY STORES AND SUPERMARKETS,GPC
WALSALL COUNCIL,HTTP://OPENDATACOMMUNITIES.ORG/ID/METROPOLITAN-DISTRICT-COUNCIL/WALSALL,31/12/2016,CHANGE & GOVERNANCE,ASDA,29/12/2016,H59620161231INGHXVJQA-2,0.06,YOUNG PERSONS HOMELESS SERVICE-GENERAL PROVISIONS-PROVISIONS,GROCERY STORES AND SUPERMARKETS,GPC
WALSALL COUNCIL,HTTP://OPENDATACOMMUNITIES.ORG/ID/METROPOLITAN-DISTRICT-COUNCIL/WALSALL,31/12/2016,ECONOMY & ENVIRONMENT,MNA LTD CARDCHARGE,29/12/2016,H59620161231GFEQIMNMQ-1,79.20,DEVELOPMENT MANAGEMENT-PERIODICALS/MAGAZINES/NEWSPAPE,NEWS DEALERS AND NEWSSTANDS,GPC
WALSALL COUNCIL,HTTP://OPENDATACOMMUNITIES.ORG/ID/METROPOLITAN-DISTRICT-COUNCIL/WALSALL,31/12/2016,CHANGE & GOVERNANCE,WWW.WMEMPLOYERS.ORG.UK,29/12/2016,H59620161231IIMDKIBGW-1,480.00,SCHOOL HR TRANSACTIONAL TEAM-ADVERTISING STAFF VACANCIES,"CONSULTING, MANAGEMENT, AND PR SERVICES",GPC
WALSALL COUNCIL,HTTP://OPENDATACOMMUNITIES.ORG/ID/METROPOLITAN-DISTRICT-COUNCIL/WALSALL,31/12/2016,CHILDRENS SERVICES,AMAZON UK MARKETPLACE,29/12/2016,H59620161231BBNKESFDJ-1,39.00,REDRUTH ROAD-NEW-FURNITURE & EQUIPMENT,BOOK STORES,GPC
WALSALL COUNCIL,HTTP://OPENDATACOMMUNITIES.ORG/ID/METROPOLITAN-DISTRICT-COUNCIL/WALSALL,31/12/2016,SOCIAL CARE & INCLUSION,ASDA HOME SHOPPING,28/12/2016,H59620161230TVBAELMWH-1,48.96,FALLINGS HEATH-FOOD AND BEVERAGES-PROVISIONS,GROCERY STORES AND SUPERMARKETS,GPC
WALSALL COUNCIL,HTTP://OPENDATACOMMUNITIES.ORG/ID/METROPOLITAN-DISTRICT-COUNCIL/WALSALL,31/12/2016,CHILDRENS SERVICES,G & B KENDALLS & SONS,28/12/2016,H59620161230HWWSVKOSL-1,647.20,MARY ELLIOTT SPECIAL SCHOOL-FOOD AND BEVERAGES-PROVISIONS,MISCELLANEOUS FOOD STORES & CONVENIENCE STORES,GPC
WALSALL COUNCIL,HTTP://OPENDATACOMMUNITIES.ORG/ID/METROPOLITAN-DISTRICT-COUNCIL/WALSALL,31/12/2016,CHILDRENS SERVICES,LIDL UK,28/12/2016,H59620161230VDHTXPJYL-1,48.75,SPINDLETREE-FOOD AND BEVERAGES-PROVISIONS,GROCERY STORES AND SUPERMARKETS,GPC
WALSALL COUNCIL,HTTP://OPENDATACOMMUNITIES.ORG/ID/METROPOLITAN-DISTRICT-COUNCIL/WALSALL,31/12/2016,CHILDRENS SERVICES,GAME RETAIL LTD WALS,28/12/2016,H59620161230BWXWBVYKM-1,13.04,SPINDLETREE-TOYS & GAMES-MATERIALS,"GAME, TOY, AND HOBBY SHOPS",GPC
WALSALL COUNCIL,HTTP://OPENDATACOMMUNITIES.ORG/ID/METROPOLITAN-DISTRICT-COUNCIL/WALSALL,31/12/2016,CHILDRENS SERVICES,C.E.X LIMITED,28/12/2016,H59620161230LAJPUKPSU-1,4.99,SPINDLETREE-FURNITURE & EQUIPMENT,ELECTRICAL PARTS AND EQUIPMENT,GPC
WALSALL COUNCIL,HTTP://OPENDATACOMMUNITIES.ORG/ID/METROPOLITAN-DISTRICT-COUNCIL/WALSALL,31/12/2016,CHILDRENS SERVICES,FARMFOODS- ERDINGT,23/12/2016,H59620161229TISRSOUYY-1,7.58,SPINDLETREE-EQUIP NEW-CLEANING,GROCERY STORES AND SUPERMARKETS,GPC
WALSALL COUNCIL,HTTP://OPENDATACOMMUNITIES.ORG/ID/METROPOLITAN-DISTRICT-COUNCIL/WALSALL,31/12/2016,CHILDRENS SERVICES,FARMFOODS- ERDINGT,23/12/2016,H59620161229YOLUMPSWC-1,40.11,SPINDLETREE-FOOD AND BEVERAGES-PROVISIONS,GROCERY STORES AND SUPERMARKETS,GPC
WALSALL COUNCIL,HTTP://OPENDATACOMMUNITIES.ORG/ID/METROPOLITAN-DISTRICT-COUNCIL/WALSALL,31/12/2016,CHILDRENS SERVICES,ASDA,23/12/2016,H59620161229WYTIPFOMJ-1,17.00,"43A HILTON ROAD, WILLENHALL-FOOD AND BEVERAGES-PROVISIONS",GROCERY STORES AND SUPERMARKETS,GPC
WALSALL COUNCIL,HTTP://OPENDATACOMMUNITIES.ORG/ID/METROPOLITAN-DISTRICT-COUNCIL/WALSALL,31/12/2016,CHILDRENS SERVICES,ASDA,23/12/2016,H59620161229NBUEYJMMN-1,26.52,"43A HILTON ROAD, WILLENHALL-FOOD AND BEVERAGES-PROVISIONS",GROCERY STORES AND SUPERMARKETS,GPC
WALSALL COUNCIL,HTTP://OPENDATACOMMUNITIES.ORG/ID/METROPOLITAN-DISTRICT-COUNCIL/WALSALL,31/12/2016,CHILDRENS SERVICES,WWW.AIR-SPACE.CO.U,23/12/2016,H59620161229PCZNHDMSP-1,26.91,57 LICHFIELD ROAD-RESIDENTS PERSONAL EXPENSES-AL,"BANDS, ORCHESTRAS, AND MISCELLANEOUS ENTERTAINERS",GPC
WALSALL COUNCIL,HTTP://OPENDATACOMMUNITIES.ORG/ID/METROPOLITAN-DISTRICT-COUNCIL/WALSALL,31/12/2016,CHANGE & GOVERNANCE,TESCO STORES 6161,23/12/2016,H59620161229DUQTHMJGE-1,72.00,WALSALL CRISIS SUPPORT SCHEME-CRISIS SUPPORT PAYMENTS,GROCERY STORES AND SUPERMARKETS,GPC
WALSALL COUNCIL,HTTP://OPENDATACOMMUNITIES.ORG/ID/METROPOLITAN-DISTRICT-COUNCIL/WALSALL,31/12/2016,CHANGE & GOVERNANCE,TESCO STORES 6161,23/12/2016,H59620161229YMSVGJIGF-1,10.92,ACCOMMODATION SERVICES MANAGEM-FOOD AND BEVERAGES-PROVISIONS,GROCERY STORES AND SUPERMARKETS,GPC
WALSALL COUNCIL,HTTP://OPENDATACOMMUNITIES.ORG/ID/METROPOLITAN-DISTRICT-COUNCIL/WALSALL,31/12/2016,CHANGE & GOVERNANCE,TESCO STORES 6161,24/12/2016,H59620161229EXNHKFTTB-1,50.00,ACCOMMODATION SERVICES MANAGEM-FOOD AND BEVERAGES-PROVISIONS,GROCERY STORES AND SUPERMARKETS,GPC
WALSALL COUNCIL,HTTP://OPENDATACOMMUNITIES.ORG/ID/METROPOLITAN-DISTRICT-COUNCIL/WALSALL,31/12/2016,CHILDRENS SERVICES,SKY SUBSCRIPTION,25/12/2016,H59620161229TPDNSIPGM-1,10.30,REDRUTH ROAD-RESIDENTS PERSONAL EXPENSES-AL,"CABLE, SATELLITE & OTHER PAY TV AND RADIO SERVICES",GPC
WALSALL COUNCIL,HTTP://OPENDATACOMMUNITIES.ORG/ID/METROPOLITAN-DISTRICT-COUNCIL/WALSALL,31/12/2016,CHILDRENS SERVICES,CAVANS VETS,23/12/2016,H59620161229PCQXMHQAC-1,17.50,"43A HILTON ROAD, WILLENHALL-PROFESSIONAL FEES AND SERVICES",VETERINARY SERVICES,GPC
WALSALL COUNCIL,HTTP://OPENDATACOMMUNITIES.ORG/ID/METROPOLITAN-DISTRICT-COUNCIL/WALSALL,31/12/2016,CHILDRENS SERVICES,FARMFOODS- KINGSTA,27/12/2016,H59620161229TTPUJMMIS-1,22.48,REDRUTH ROAD-FOOD AND BEVERAGES-PROVISIONS,GROCERY STORES AND SUPERMARKETS,GPC
WALSALL COUNCIL,HTTP://OPENDATACOMMUNITIES.ORG/ID/METROPOLITAN-DISTRICT-COUNCIL/WALSALL,31/12/2016,CHANGE & GOVERNANCE,PREMIER INN44523705,23/12/2016,H59620161229VJYBKOKMZ-1,63.99,BED & BREAKFAST PAYMENTS-HOTEL ACCOMMODATION-EMPLOYEES,PREMIER INN,GPC
WALSALL COUNCIL,HTTP://OPENDATACOMMUNITIES.ORG/ID/METROPOLITAN-DISTRICT-COUNCIL/WALSALL,31/12/2016,CHILDRENS SERVICES,WWW.NEOPOST.CO.UK,23/12/2016,H59620161229XEDOITQHO-1,204.00,LOOKED AFTER CHILDRENS SOCIAL -POSTAGES AND COURIER SERVICES,"STATIONERY, OFFICE SUPPLIES AND WRITING PAPER",GPC
WALSALL COUNCIL,HTTP://OPENDATACOMMUNITIES.ORG/ID/METROPOLITAN-DISTRICT-COUNCIL/WALSALL,31/12/2016,ECONOMY & ENVIRONMENT,PREMIER INN44533745,22/12/2016,H59620161229BLVQJHPLE-1,43.99,NAG - TEMPORARY EXHIBITIONS-OTHER EXPENSES-EXPENSES,PREMIER INN,GPC
WALSALL COUNCIL,HTTP://OPENDATACOMMUNITIES.ORG/ID/METROPOLITAN-DISTRICT-COUNCIL/WALSALL,31/12/2016,CHILDRENS SERVICES,SKY SUBSCRIPTION,24/12/2016,H59620161229FQWNFTFFA-1,27.70,SPINDLETREE-COSTS (NOT INTERNAL RECHARGES),"CABLE, SATELLITE & OTHER PAY TV AND RADIO SERVICES",GPC
WALSALL COUNCIL,HTTP://OPENDATACOMMUNITIES.ORG/ID/METROPOLITAN-DISTRICT-COUNCIL/WALSALL,31/12/2016,CHILDRENS SERVICES,SUPPLIES TEAM,21/12/2016,H59620161229PXIURROKB-1,46.97,LOOKED AFTER CHILDRENS SOCIAL -STATIONERY & GENERAL SUPPLIES-,"OFFICE, SCHOOL SUPPLY, AND STATIONERY STORES",GPC
WALSALL COUNCIL,HTTP://OPENDATACOMMUNITIES.ORG/ID/METROPOLITAN-DISTRICT-COUNCIL/WALSALL,31/12/2016,CHANGE & GOVERNANCE,TWITTER*ADVERTISING,25/12/2016,H59620161229PRIUGWCGB-1,42.00,SCHOOL HR TRANSACTIONAL TEAM-ADVERTISING STAFF VACANCIES,ADVERTISING SERVICES,GPC
WALSALL COUNCIL,HTTP://OPENDATACOMMUNITIES.ORG/ID/METROPOLITAN-DISTRICT-COUNCIL/WALSALL,31/12/2016,CHILDRENS SERVICES,W M MORRISONS.COM,23/12/2016,H59620161229FMQUVFWWN-1,112.31,57 LICHFIELD ROAD-FOOD AND BEVERAGES-PROVISIONS,GROCERY STORES AND SUPERMARKETS,GPC
WALSALL COUNCIL,HTTP://OPENDATACOMMUNITIES.ORG/ID/METROPOLITAN-DISTRICT-COUNCIL/WALSALL,31/12/2016,CHILDRENS SERVICES,J D SPORTS PLC,23/12/2016,H59620161229AKFDFLPQC-1,30.00,"43A HILTON ROAD, WILLENHALL-RESIDENTS PERSONAL EXPENSES-AL",SPORTING GOODS STORES,GPC
WALSALL COUNCIL,HTTP://OPENDATACOMMUNITIES.ORG/ID/METROPOLITAN-DISTRICT-COUNCIL/WALSALL,31/12/2016,CHILDRENS SERVICES,SMYTHS TOYS,23/12/2016,H59620161229OMBTBWLUY-1,29.98,"43A HILTON ROAD, WILLENHALL-RESIDENTS PERSONAL EXPENSES-AL","GAME, TOY, AND HOBBY SHOPS",GPC
WALSALL COUNCIL,HTTP://OPENDATACOMMUNITIES.ORG/ID/METROPOLITAN-DISTRICT-COUNCIL/WALSALL,31/12/2016,CHILDRENS SERVICES,WALSALL COUNCIL,23/12/2016,H59620161229ADCZUADTK-1,17.00,SAFEGUARDING & FAMILY SUPPORT-REGISTRAR OF BIRTHS/DEATHS/MAR,GOVERNMENT SERVICES,GPC
WALSALL COUNCIL,HTTP://OPENDATACOMMUNITIES.ORG/ID/METROPOLITAN-DISTRICT-COUNCIL/WALSALL,31/12/2016,,REGISTRATION SERVICES,23/12/2016,H59620161229LJRWMUGGJ-1,22.00,-,OTHER RECREATION SERVICES,GPC
WALSALL COUNCIL,HTTP://OPENDATACOMMUNITIES.ORG/ID/METROPOLITAN-DISTRICT-COUNCIL/WALSALL,31/12/2016,CHANGE & GOVERNANCE,BORSHCH LIMITED,23/12/2016,H59620161229UNKBMHWRQ-1,290.00,WALSALL CRISIS SUPPORT SCHEME-FURNITURE & EQUIPMENT,ELECTRONIC SALES,GPC
WALSALL COUNCIL,HTTP://OPENDATACOMMUNITIES.ORG/ID/METROPOLITAN-DISTRICT-COUNCIL/WALSALL,31/12/2016,CHANGE & GOVERNANCE,BORSHCH LIMITED,23/12/2016,H59620161229AQRDYAJHJ-1,365.00,WALSALL CRISIS SUPPORT SCHEME-FURNITURE & EQUIPMENT,ELECTRONIC SALES,GPC
WALSALL COUNCIL,HTTP://OPENDATACOMMUNITIES.ORG/ID/METROPOLITAN-DISTRICT-COUNCIL/WALSALL,31/12/2016,CHANGE & GOVERNANCE,BORSHCH LIMITED,23/12/2016,H59620161229BDWHMWEVX-1,180.00,WALSALL CRISIS SUPPORT SCHEME-FURNITURE & EQUIPMENT,ELECTRONIC SALES,GPC
WALSALL COUNCIL,HTTP://OPENDATACOMMUNITIES.ORG/ID/METROPOLITAN-DISTRICT-COUNCIL/WALSALL,31/12/2016,CHANGE & GOVERNANCE,BORSHCH LIMITED,23/12/2016,H59620161229PHGWLQAPR-1,530.00,WALSALL CRISIS SUPPORT SCHEME-FURNITURE & EQUIPMENT,ELECTRONIC SALES,GPC
WALSALL COUNCIL,HTTP://OPENDATACOMMUNITIES.ORG/ID/METROPOLITAN-DISTRICT-COUNCIL/WALSALL,31/12/2016,CHANGE & GOVERNANCE,TESCO STORES 6161,23/12/2016,H59620161229PTEGUCHWW-1,200.00,WALSALL CRISIS SUPPORT SCHEME-FOOD AND BEVERAGES-PROVISIONS,GROCERY STORES AND SUPERMARKETS,GPC
WALSALL COUNCIL,HTTP://OPENDATACOMMUNITIES.ORG/ID/METROPOLITAN-DISTRICT-COUNCIL/WALSALL,31/12/2016,,EXPRESS BY HOL INN,23/12/2016,H59620161229GNTIDVTDX-1,110.00,-HOTEL ACCOMMODATION-EMPLOYEES,"HOTELS, MOTELS, RESORTS",GPC
WALSALL COUNCIL,HTTP://OPENDATACOMMUNITIES.ORG/ID/METROPOLITAN-DISTRICT-COUNCIL/WALSALL,31/12/2016,CHANGE & GOVERNANCE,123 REG R/T,22/12/2016,H59620161224HLFBSBJBL-1,28.66,BANK CHARGES-,DIRECT MARKETING CONTINUITY SUBSCRIPTION MERCHANTS,GPC
WALSALL COUNCIL,HTTP://OPENDATACOMMUNITIES.ORG/ID/METROPOLITAN-DISTRICT-COUNCIL/WALSALL,31/12/2016,ECONOMY & ENVIRONMENT,SIM MAYOU HARDWARE,22/12/2016,H59620161224GXRYEBIJN-1,17.00,WALSALL GALA CENTRE-GENERAL MATERIALS,HARDWARE STORES,GPC
WALSALL COUNCIL,HTTP://OPENDATACOMMUNITIES.ORG/ID/METROPOLITAN-DISTRICT-COUNCIL/WALSALL,31/12/2016,ECONOMY & ENVIRONMENT,T.MORGAN & SONS (L,20/12/2016,H59620161224JMTXGQKJY-1,235.20,INFRASTRUCTURE MAINTENANCE-GENERAL MATERIALS,HARDWARE EQUIPMENT AND SUPPLIES,GPC
WALSALL COUNCIL,HTTP://OPENDATACOMMUNITIES.ORG/ID/METROPOLITAN-DISTRICT-COUNCIL/WALSALL,31/12/2016,CHILDRENS SERVICES,WALSALL COUNCIL,22/12/2016,H59620161224IMDWVMEHK-1,17.00,SAFEGUARDING & FAMILY SUPPORT-REGISTRAR OF BIRTHS/DEATHS/MAR,GOVERNMENT SERVICES,GPC
WALSALL COUNCIL,HTTP://OPENDATACOMMUNITIES.ORG/ID/METROPOLITAN-DISTRICT-COUNCIL/WALSALL,31/12/2016,CHILDRENS SERVICES,ASDA,22/12/2016,H59620161224OBKKBXECX-1,9.23,57 LICHFIELD ROAD-FOOD AND BEVERAGES-PROVISIONS,GROCERY STORES AND SUPERMARKETS,GPC
WALSALL COUNCIL,HTTP://OPENDATACOMMUNITIES.ORG/ID/METROPOLITAN-DISTRICT-COUNCIL/WALSALL,31/12/2016,ECONOMY & ENVIRONMENT,MNA LTD CARDCHARGE,22/12/2016,H59620161224XTFQFVWEK-1,362.88,DEVELOPMENT MANAGEMENT-PERIODICALS/MAGAZINES/NEWSPAPE,NEWS DEALERS AND NEWSSTANDS,GPC
WALSALL COUNCIL,HTTP://OPENDATACOMMUNITIES.ORG/ID/METROPOLITAN-DISTRICT-COUNCIL/WALSALL,31/12/2016,SOCIAL CARE & INCLUSION,ASDA HOME SHOPPING,22/12/2016,H59620161224VDBEUFKBK-1,21.42,FALLINGS HEATH-FOOD AND BEVERAGES-PROVISIONS,GROCERY STORES AND SUPERMARKETS,GPC
WALSALL COUNCIL,HTTP://OPENDATACOMMUNITIES.ORG/ID/METROPOLITAN-DISTRICT-COUNCIL/WALSALL,31/12/2016,SOCIAL CARE & INCLUSION,ASDA HOME SHOPPING,22/12/2016,H59620161224VDBEUFKBK-2,139.04,FALLINGS HEATH-FOOD AND BEVERAGES-PROVISIONS,GROCERY STORES AND SUPERMARKETS,GPC
WALSALL COUNCIL,HTTP://OPENDATACOMMUNITIES.ORG/ID/METROPOLITAN-DISTRICT-COUNCIL/WALSALL,31/12/2016,CHILDRENS SERVICES,ASDA HOME SHOPPING,22/12/2016,H59620161224XWFUSSIEB-1,50.33,EARLY YEARS AND DISABILITIES S-FOOD AND BEVERAGES-PROVISIONS,GROCERY STORES AND SUPERMARKETS,GPC
WALSALL COUNCIL,HTTP://OPENDATACOMMUNITIES.ORG/ID/METROPOLITAN-DISTRICT-COUNCIL/WALSALL,31/12/2016,CHILDRENS SERVICES,ASDA HOME SHOPPING,22/12/2016,H59620161224CEWHMGIPO-1,0.08,EARLY YEARS AND DISABILITIES S-FOOD AND BEVERAGES-PROVISIONS,GROCERY STORES AND SUPERMARKETS,GPC
WALSALL COUNCIL,HTTP://OPENDATACOMMUNITIES.ORG/ID/METROPOLITAN-DISTRICT-COUNCIL/WALSALL,31/12/2016,ECONOMY & ENVIRONMENT,TRAINLINE,22/12/2016,H59620161224BOZFNEMNL-1,4.23,NAG - TEMPORARY EXHIBITIONS-OTHER/VOLUNTEERS-PUBLIC TRANSP,PASSENGER RAILWAYS,GPC
WALSALL COUNCIL,HTTP://OPENDATACOMMUNITIES.ORG/ID/METROPOLITAN-DISTRICT-COUNCIL/WALSALL,31/12/2016,ECONOMY & ENVIRONMENT,TRAINLINE,22/12/2016,H59620161224ZQIDCERWV-1,6.37,NAG - TEMPORARY EXHIBITIONS-OTHER/VOLUNTEERS-PUBLIC TRANSP,PASSENGER RAILWAYS,GPC
WALSALL COUNCIL,HTTP://OPENDATACOMMUNITIES.ORG/ID/METROPOLITAN-DISTRICT-COUNCIL/WALSALL,31/12/2016,CHILDRENS SERVICES,ASDA STORES,22/12/2016,H59620161224HYCPJPKNO-1,9.00,LOCALITY FAMILY SUPPORT-CENTRA-FOOD AND BEVERAGES-PROVISIONS,GROCERY STORES AND SUPERMARKETS,GPC
WALSALL COUNCIL,HTTP://OPENDATACOMMUNITIES.ORG/ID/METROPOLITAN-DISTRICT-COUNCIL/WALSALL,31/12/2016,CHILDRENS SERVICES,ASDA SUPERSTORE,22/12/2016,H59620161224NWBKEXXFT-1,7.76,REDRUTH ROAD-FOOD AND BEVERAGES-PROVISIONS,GROCERY STORES AND SUPERMARKETS,GPC
WALSALL COUNCIL,HTTP://OPENDATACOMMUNITIES.ORG/ID/METROPOLITAN-DISTRICT-COUNCIL/WALSALL,31/12/2016,CHILDRENS SERVICES,ASDA SUPERSTORE,22/12/2016,H59620161224NWBKEXXFT-2,46.85,REDRUTH ROAD-FOOD AND BEVERAGES-PROVISIONS,GROCERY STORES AND SUPERMARKETS,GPC
WALSALL COUNCIL,HTTP://OPENDATACOMMUNITIES.ORG/ID/METROPOLITAN-DISTRICT-COUNCIL/WALSALL,31/12/2016,CHILDRENS SERVICES,ASDA SUPERSTORE,22/12/2016,H59620161224OQSXHEBRT-1,4.75,REDRUTH ROAD-EQUIP NEW-CLEANING,GROCERY STORES AND SUPERMARKETS,GPC
WALSALL COUNCIL,HTTP://OPENDATACOMMUNITIES.ORG/ID/METROPOLITAN-DISTRICT-COUNCIL/WALSALL,31/12/2016,CHILDRENS SERVICES,HOME BARGAINS,22/12/2016,H59620161224XMTMVFKKH-1,6.98,BIRCHILLS CHILDCARE SERVICES-CLEANING MATERIALS,HARDWARE STORES,GPC
WALSALL COUNCIL,HTTP://OPENDATACOMMUNITIES.ORG/ID/METROPOLITAN-DISTRICT-COUNCIL/WALSALL,31/12/2016,CHILDRENS SERVICES,PAYPAL *NATASHASEHG,22/12/2016,H59620161224ZYGAILBFF-1,13.95,REDRUTH ROAD-RESIDENTS PERSONAL EXPENSES-AL,MISCELLANEOUS AND SPECIALTY RETAIL STORES,GPC
WALSALL COUNCIL,HTTP://OPENDATACOMMUNITIES.ORG/ID/METROPOLITAN-DISTRICT-COUNCIL/WALSALL,31/12/2016,CHILDRENS SERVICES,O2 UK CCA PAYMENT,22/12/2016,H59620161224KPABDYXTA-1,24.31,WALSALL WOOD PRIMARY SCHOOL-COSTS (NOT INTERNAL RECHARGES),TELECOMMUNICATION SERVICES,GPC
WALSALL COUNCIL,HTTP://OPENDATACOMMUNITIES.ORG/ID/METROPOLITAN-DISTRICT-COUNCIL/WALSALL,31/12/2016,CHILDRENS SERVICES,NATIONAL EXPRESS LIMITED,22/12/2016,H59620161224LOXOZIAUL-1,42.10,SAFEGUARDING & FAMILY SUPPORT-OFFICER/STAFF-PUBLIC TRANSPORT,BUS LINES,GPC
WALSALL COUNCIL,HTTP://OPENDATACOMMUNITIES.ORG/ID/METROPOLITAN-DISTRICT-COUNCIL/WALSALL,31/12/2016,CHILDRENS SERVICES,WWW.NEOPOST.CO.UK,22/12/2016,H59620161224OVTQZEQQD-1,204.00,INITIAL RESPONSE SERVICE-POSTAGES AND COURIER SERVICES,"STATIONERY, OFFICE SUPPLIES AND WRITING PAPER",GPC
WALSALL COUNCIL,HTTP://OPENDATACOMMUNITIES.ORG/ID/METROPOLITAN-DISTRICT-COUNCIL/WALSALL,31/12/2016,ECONOMY & ENVIRONMENT,WWW.NOBISCO.CO.UK,22/12/2016,H59620161224YKNHXIFQS-1,50.70,LIBRARY OPERATIONS - WALSALL N-STATIONERY & GENERAL SUPPLIES-,"CLEANING AND MAINTENANCE, JANITORIAL SERVICES",GPC
WALSALL COUNCIL,HTTP://OPENDATACOMMUNITIES.ORG/ID/METROPOLITAN-DISTRICT-COUNCIL/WALSALL,31/12/2016,CHILDRENS SERVICES,HM PASSPORT OFFICE,21/12/2016,H59620161223ZYWHXNPKC-1,72.50,LOOKED AFTER CHILDRENS SOCIAL -MISC FEES AND EXPENSES,GOVERNMENT SERVICES,GPC
WALSALL COUNCIL,HTTP://OPENDATACOMMUNITIES.ORG/ID/METROPOLITAN-DISTRICT-COUNCIL/WALSALL,31/12/2016,CHILDRENS SERVICES,FARMFOODS- ERDINGT,20/12/2016,H59620161223NXHDLWLLW-1,39.17,SPINDLETREE-FOOD AND BEVERAGES-PROVISIONS,GROCERY STORES AND SUPERMARKETS,GPC
WALSALL COUNCIL,HTTP://OPENDATACOMMUNITIES.ORG/ID/METROPOLITAN-DISTRICT-COUNCIL/WALSALL,31/12/2016,CHILDRENS SERVICES,ASDA SUPERSTORE,21/12/2016,H59620161223QYXHOCEDL-1,125.28,SPINDLETREE-FOOD AND BEVERAGES-PROVISIONS,GROCERY STORES AND SUPERMARKETS,GPC
WALSALL COUNCIL,HTTP://OPENDATACOMMUNITIES.ORG/ID/METROPOLITAN-DISTRICT-COUNCIL/WALSALL,31/12/2016,CHILDRENS SERVICES,ASDA SUPERSTORE,21/12/2016,H59620161223QYXHOCEDL-2,6.50,SPINDLETREE-FOOD AND BEVERAGES-PROVISIONS,GROCERY STORES AND SUPERMARKETS,GPC
WALSALL COUNCIL,HTTP://OPENDATACOMMUNITIES.ORG/ID/METROPOLITAN-DISTRICT-COUNCIL/WALSALL,31/12/2016,CHILDRENS SERVICES,THE EAR FOUNDATION,08/12/2016,H59620161223WSBRQQEES-1,10.00,SEN-STATIONERY & GENERAL SUPPLIES-,PROFESSIONAL SERVICES,GPC
WALSALL COUNCIL,HTTP://OPENDATACOMMUNITIES.ORG/ID/METROPOLITAN-DISTRICT-COUNCIL/WALSALL,31/12/2016,ECONOMY & ENVIRONMENT,THE INTELLECTUAL PROPERTY,21/12/2016,H59620161223SLHURSGVD-1,170.00,HEALTH & WELLBEING/CHILDREN-PROFESSIONAL FEES AND SERVICES,GOVERNMENT SERVICES,GPC
WALSALL COUNCIL,HTTP://OPENDATACOMMUNITIES.ORG/ID/METROPOLITAN-DISTRICT-COUNCIL/WALSALL,31/12/2016,CHILDRENS SERVICES,TESCO STORES 2335,21/12/2016,H59620161223OJTEQMFLX-1,228.02,VIRTUAL SCHOOL - CENTRAL PUPIL-FOOD AND BEVERAGES-PROVISIONS,GROCERY STORES AND SUPERMARKETS,GPC
WALSALL COUNCIL,HTTP://OPENDATACOMMUNITIES.ORG/ID/METROPOLITAN-DISTRICT-COUNCIL/WALSALL,31/12/2016,CHILDRENS SERVICES,BT PAY BY PHONE,21/12/2016,H59620161223KJSXOMEOI-1,158.14,BLOXWICH CHILDCARE SERVICES-TELEPHONES MOBILE/PAGERS-TELEP,TELECOMMUNICATION SERVICES,GPC
WALSALL COUNCIL,HTTP://OPENDATACOMMUNITIES.ORG/ID/METROPOLITAN-DISTRICT-COUNCIL/WALSALL,31/12/2016,CHILDRENS SERVICES,BT PAY BY PHONE,21/12/2016,H59620161223KJSXOMEOI-2,40.00,BLOXWICH CHILDCARE SERVICES-TELEPHONES MOBILE/PAGERS-TELEP,TELECOMMUNICATION SERVICES,GPC
WALSALL COUNCIL,HTTP://OPENDATACOMMUNITIES.ORG/ID/METROPOLITAN-DISTRICT-COUNCIL/WALSALL,31/12/2016,CHILDRENS SERVICES,ADOBE ACROPRO SUBS,21/12/2016,H59620161223TWMNTEYMQ-1,13.33,ADMINISTRATIVE SUPPLIES-PUBLICATIONS/ORGANISATIONS-SUB,COMPUTER SOFTWARE STORES,GPC
WALSALL COUNCIL,HTTP://OPENDATACOMMUNITIES.ORG/ID/METROPOLITAN-DISTRICT-COUNCIL/WALSALL,31/12/2016,ECONOMY & ENVIRONMENT,TEMP STORE,21/12/2016,H59620161223QUCKZVKJW-1,6.00,DEPOT-GENERAL MATERIALS,DISCOUNT STORES,GPC
WALSALL COUNCIL,HTTP://OPENDATACOMMUNITIES.ORG/ID/METROPOLITAN-DISTRICT-COUNCIL/WALSALL,31/12/2016,ECONOMY & ENVIRONMENT,GREENHAM TRADING LTD,21/12/2016,H59620161223DMQCYPSDI-1,85.03,DEPOT-GENERAL MATERIALS,OTHER INDUSTRIAL SUPPLIES,GPC
WALSALL COUNCIL,HTTP://OPENDATACOMMUNITIES.ORG/ID/METROPOLITAN-DISTRICT-COUNCIL/WALSALL,31/12/2016,ECONOMY & ENVIRONMENT,MNA LTD CARDCHARGE,21/12/2016,H59620161223AHOPFPFIY-1,241.92,DEVELOPMENT MANAGEMENT-PERIODICALS/MAGAZINES/NEWSPAPE,NEWS DEALERS AND NEWSSTANDS,GPC
WALSALL COUNCIL,HTTP://OPENDATACOMMUNITIES.ORG/ID/METROPOLITAN-DISTRICT-COUNCIL/WALSALL,31/12/2016,,ARGOS RETAIL GROUP,21/12/2016,H59620161223SCVGOEFVM-1,29.99,-,DISCOUNT STORES,GPC
WALSALL COUNCIL,HTTP://OPENDATACOMMUNITIES.ORG/ID/METROPOLITAN-DISTRICT-COUNCIL/WALSALL,31/12/2016,ECONOMY & ENVIRONMENT,WEST MIDLANDS TRAV,21/12/2016,H59620161223ANYTWTFNU-1,8.75,YEI (IMPACT) PROGRAMME-MISCELLANEOUS SUPPLIES,BUS LINES,GPC
WALSALL COUNCIL,HTTP://OPENDATACOMMUNITIES.ORG/ID/METROPOLITAN-DISTRICT-COUNCIL/WALSALL,31/12/2016,ECONOMY & ENVIRONMENT,WEST MIDLANDS TRAV,21/12/2016,H59620161223ANYTWTFNU-2,8.75,YEI ESF FUNDING-MISCELLANEOUS SUPPLIES,BUS LINES,GPC
WALSALL COUNCIL,HTTP://OPENDATACOMMUNITIES.ORG/ID/METROPOLITAN-DISTRICT-COUNCIL/WALSALL,31/12/2016,CHILDRENS SERVICES,ARGOS RETAIL GROUP,21/12/2016,H59620161223LEHCSPYNS-1,114.94,LOOKED AFTER CHILDRENS SOCIAL -NEW-FURNITURE & EQUIPMENT,DISCOUNT STORES,GPC
WALSALL COUNCIL,HTTP://OPENDATACOMMUNITIES.ORG/ID/METROPOLITAN-DISTRICT-COUNCIL/WALSALL,31/12/2016,CHILDRENS SERVICES,WILKO RETAIL LIMIT,21/12/2016,H59620161223BERINSTYL-1,8.75,57 LICHFIELD ROAD-FURNITURE & EQUIPMENT,HOUSEHOLD APPLIANCE STORES,GPC
WALSALL COUNCIL,HTTP://OPENDATACOMMUNITIES.ORG/ID/METROPOLITAN-DISTRICT-COUNCIL/WALSALL,31/12/2016,CHILDRENS SERVICES,ARGOS RETAIL GROUP,21/12/2016,H59620161223FPNEISBIB-1,189.99,SAFEGUARDING & FAMILY SUPPORT-TRANSFER PAYMENTS - SOCIAL SER,DISCOUNT STORES,GPC
WALSALL COUNCIL,HTTP://OPENDATACOMMUNITIES.ORG/ID/METROPOLITAN-DISTRICT-COUNCIL/WALSALL,31/12/2016,CHILDRENS SERVICES,ARGOS RETAIL GROUP,21/12/2016,H59620161223FPNEISBIB-2,19.99,SAFEGUARDING & FAMILY SUPPORT-POSTAGES AND COURIER SERVICES,DISCOUNT STORES,GPC
WALSALL COUNCIL,HTTP://OPENDATACOMMUNITIES.ORG/ID/METROPOLITAN-DISTRICT-COUNCIL/WALSALL,31/12/2016,CHILDRENS SERVICES,PRIMARK 690,20/12/2016,H59620161223UJCVKUTXC-1,87.00,"43A HILTON ROAD, WILLENHALL-RESIDENTS PERSONAL EXPENSES-AL",CLOTHING STORES,GPC
WALSALL COUNCIL,HTTP://OPENDATACOMMUNITIES.ORG/ID/METROPOLITAN-DISTRICT-COUNCIL/WALSALL,31/12/2016,,ASDA SUPERSTORE,21/12/2016,H59620161223SLAGOFSCF-1,25.00,-FOOD AND BEVERAGES-PROVISIONS,GROCERY STORES AND SUPERMARKETS,GPC
WALSALL COUNCIL,HTTP://OPENDATACOMMUNITIES.ORG/ID/METROPOLITAN-DISTRICT-COUNCIL/WALSALL,31/12/2016,ECONOMY & ENVIRONMENT,WWW.SOLACE.ORG.UK,21/12/2016,H59620161223OLUJLEYMY-1,203.00,REGENERATION MANAGEMENT-PUBLICATIONS/ORGANISATIONS-SUB,"ORGANIZATIONS, MEMBERSHIP",GPC
WALSALL COUNCIL,HTTP://OPENDATACOMMUNITIES.ORG/ID/METROPOLITAN-DISTRICT-COUNCIL/WALSALL,31/12/2016,ECONOMY & ENVIRONMENT,PREMIER INN44011950,21/12/2016,H59620161223QLYBVTNGN-1,107.50,REGENERATION MANAGEMENT-COURSE/CONFERENCE EXPENSES,PREMIER INN,GPC
WALSALL COUNCIL,HTTP://OPENDATACOMMUNITIES.ORG/ID/METROPOLITAN-DISTRICT-COUNCIL/WALSALL,31/12/2016,ECONOMY & ENVIRONMENT,WWW.ALDERCROSS.COM,21/12/2016,H59620161223FMTYTCUBN-1,76.50,REGENERATION MANAGEMENT-COURSE/CONFERENCE EXPENSES,"CONSULTING, MANAGEMENT, AND PR SERVICES",GPC
WALSALL COUNCIL,HTTP://OPENDATACOMMUNITIES.ORG/ID/METROPOLITAN-DISTRICT-COUNCIL/WALSALL,31/12/2016,CHILDRENS SERVICES,PREMIER INN44015565,19/12/2016,H59620161223IRQTWBKHK-1,81.00,LOOKED AFTER CHILDRENS SOCIAL -HOTEL ACCOMMODATION-EMPLOYEES,PREMIER INN,GPC
WALSALL COUNCIL,HTTP://OPENDATACOMMUNITIES.ORG/ID/METROPOLITAN-DISTRICT-COUNCIL/WALSALL,31/12/2016,ECONOMY & ENVIRONMENT,AMAZON UK PRIME AMZN.CO.U,21/12/2016,H59620161223IXHBDJLSX-1,7.99,BLOXWICH LEISURE CENTRE-MISC FEES AND EXPENSES,DIRECT MARKETING CONTINUITY SUBSCRIPTION MERCHANTS,GPC
WALSALL COUNCIL,HTTP://OPENDATACOMMUNITIES.ORG/ID/METROPOLITAN-DISTRICT-COUNCIL/WALSALL,31/12/2016,ECONOMY & ENVIRONMENT,PREMIER INN44533745,19/12/2016,H59620161223SSBXGORSN-1,81.98,NAG - TEMPORARY EXHIBITIONS-OTHER EXPENSES-EXPENSES,PREMIER INN,GPC
WALSALL COUNCIL,HTTP://OPENDATACOMMUNITIES.ORG/ID/METROPOLITAN-DISTRICT-COUNCIL/WALSALL,31/12/2016,CHANGE & GOVERNANCE,CRAZY HOUSE FURNITURE,21/12/2016,H59620161223NFLULBSLW-1,70.00,WALSALL CRISIS SUPPORT SCHEME-FURNITURE & EQUIPMENT,"EQUIPMENT, FURNITURE, AND HOME FURNISHINGS STORES ",GPC
WALSALL COUNCIL,HTTP://OPENDATACOMMUNITIES.ORG/ID/METROPOLITAN-DISTRICT-COUNCIL/WALSALL,31/12/2016,ECONOMY & ENVIRONMENT,ASDA SUPERSTORE,20/12/2016,H59620161222NRXTSVXLN-1,10.00,OAK PARK-NEW-FURNITURE & EQUIPMENT,GROCERY STORES AND SUPERMARKETS,GPC
WALSALL COUNCIL,HTTP://OPENDATACOMMUNITIES.ORG/ID/METROPOLITAN-DISTRICT-COUNCIL/WALSALL,31/12/2016,CHILDRENS SERVICES,SPORTSDIRECT 153,20/12/2016,H59620161222PEQDIQVFH-1,14.99,REDRUTH ROAD-RESIDENTS PERSONAL EXPENSES-AL,SPORTING GOODS STORES,GPC
WALSALL COUNCIL,HTTP://OPENDATACOMMUNITIES.ORG/ID/METROPOLITAN-DISTRICT-COUNCIL/WALSALL,31/12/2016,CHILDRENS SERVICES,LONDON MIDLAND TIC,20/12/2016,H59620161222GWIJODDKS-1,12.40,LOOKED AFTER CHILDRENS SOCIAL -SECTION 34 (CONTACT),PASSENGER RAILWAYS,GPC
WALSALL COUNCIL,HTTP://OPENDATACOMMUNITIES.ORG/ID/METROPOLITAN-DISTRICT-COUNCIL/WALSALL,31/12/2016,CHILDRENS SERVICES,LONDON MIDLAND TIC,20/12/2016,H59620161222QQNRJHJHQ-1,111.90,LOOKED AFTER CHILDRENS SOCIAL -OFFICER/STAFF-PUBLIC TRANSPORT,PASSENGER RAILWAYS,GPC
WALSALL COUNCIL,HTTP://OPENDATACOMMUNITIES.ORG/ID/METROPOLITAN-DISTRICT-COUNCIL/WALSALL,31/12/2016,,WILKO RETAIL LIMIT,19/12/2016,H59620161222ZTXLGBDVH-1,26.95,-FURNITURE & EQUIPMENT,HOUSEHOLD APPLIANCE STORES,GPC
WALSALL COUNCIL,HTTP://OPENDATACOMMUNITIES.ORG/ID/METROPOLITAN-DISTRICT-COUNCIL/WALSALL,31/12/2016,CHILDRENS SERVICES,CARD PARTY LIMITED,20/12/2016,H59620161222VHPJNHNDD-1,5.26,"43A HILTON ROAD, WILLENHALL-RESIDENTS PERSONAL EXPENSES-AL","CARD, GIFT, NOVELTY, AND SOUVENIR SHOPS",GPC
WALSALL COUNCIL,HTTP://OPENDATACOMMUNITIES.ORG/ID/METROPOLITAN-DISTRICT-COUNCIL/WALSALL,31/12/2016,CHILDRENS SERVICES,SHOE ZONE LTD,20/12/2016,H59620161222EHVXQGWBJ-1,9.98,"43A HILTON ROAD, WILLENHALL-RESIDENTS PERSONAL EXPENSES-AL",SHOE STORES,GPC
WALSALL COUNCIL,HTTP://OPENDATACOMMUNITIES.ORG/ID/METROPOLITAN-DISTRICT-COUNCIL/WALSALL,31/12/2016,CHILDRENS SERVICES,TFS STORES LTD - WALSA,20/12/2016,H59620161222TFWHMCFRI-1,37.00,"43A HILTON ROAD, WILLENHALL-RESIDENTS PERSONAL EXPENSES-AL",COSMETIC STORES,GPC
WALSALL COUNCIL,HTTP://OPENDATACOMMUNITIES.ORG/ID/METROPOLITAN-DISTRICT-COUNCIL/WALSALL,31/12/2016,ECONOMY & ENVIRONMENT,B&Q DIRECT,20/12/2016,H59620161222OFVMAMOYY-1,108.00,HIGHWAYS MAINTENANCE GENERAL-GENERAL MATERIALS,LUMBER & BUILDING MATERIALS STORES,GPC
WALSALL COUNCIL,HTTP://OPENDATACOMMUNITIES.ORG/ID/METROPOLITAN-DISTRICT-COUNCIL/WALSALL,31/12/2016,CHANGE & GOVERNANCE,CRAZY HOUSE FURNITURE,20/12/2016,H59620161222QSMPTFRMD-1,60.00,WALSALL CRISIS SUPPORT SCHEME-FURNITURE & EQUIPMENT,"EQUIPMENT, FURNITURE, AND HOME FURNISHINGS STORES ",GPC
WALSALL COUNCIL,HTTP://OPENDATACOMMUNITIES.ORG/ID/METROPOLITAN-DISTRICT-COUNCIL/WALSALL,31/12/2016,CHANGE & GOVERNANCE,CRAZY HOUSE FURNITURE,20/12/2016,H59620161222EABBTOPRR-1,65.00,WALSALL CRISIS SUPPORT SCHEME-FURNITURE & EQUIPMENT,"EQUIPMENT, FURNITURE, AND HOME FURNISHINGS STORES ",GPC
WALSALL COUNCIL,HTTP://OPENDATACOMMUNITIES.ORG/ID/METROPOLITAN-DISTRICT-COUNCIL/WALSALL,31/12/2016,ECONOMY & ENVIRONMENT,TESCO DIRECT,20/12/2016,H59620161222QMOGGOENJ-1,42.00,YEI (IMPACT) PROGRAMME-MISCELLANEOUS SUPPLIES,MISCELLANEOUS AND SPECIALTY RETAIL STORES,GPC
WALSALL COUNCIL,HTTP://OPENDATACOMMUNITIES.ORG/ID/METROPOLITAN-DISTRICT-COUNCIL/WALSALL,31/12/2016,ECONOMY & ENVIRONMENT,TESCO DIRECT,20/12/2016,H59620161222QMOGGOENJ-2,42.00,YEI ESF FUNDING-MISCELLANEOUS SUPPLIES,MISCELLANEOUS AND SPECIALTY RETAIL STORES,GPC
WALSALL COUNCIL,HTTP://OPENDATACOMMUNITIES.ORG/ID/METROPOLITAN-DISTRICT-COUNCIL/WALSALL,31/12/2016,CHANGE & GOVERNANCE,WWW.BROMFORD.CO.UK,20/12/2016,H59620161222WEOFGRVRO-1,418.03,HOMELESS PREVENTION GRANT-RENTS-OTHER,GOVERNMENT SERVICES,GPC
WALSALL COUNCIL,HTTP://OPENDATACOMMUNITIES.ORG/ID/METROPOLITAN-DISTRICT-COUNCIL/WALSALL,31/12/2016,SOCIAL CARE & INCLUSION,B&M RETAIL,20/12/2016,H59620161222AIMNGYFWN-1,44.85,FALLINGS HEATH-FOOD AND BEVERAGES-PROVISIONS,DISCOUNT STORES,GPC
WALSALL COUNCIL,HTTP://OPENDATACOMMUNITIES.ORG/ID/METROPOLITAN-DISTRICT-COUNCIL/WALSALL,31/12/2016,SOCIAL CARE & INCLUSION,B&M RETAIL,20/12/2016,H59620161222AIMNGYFWN-2,9.56,FALLINGS HEATH-FOOD AND BEVERAGES-PROVISIONS,DISCOUNT STORES,GPC
WALSALL COUNCIL,HTTP://OPENDATACOMMUNITIES.ORG/ID/METROPOLITAN-DISTRICT-COUNCIL/WALSALL,31/12/2016,CHILDRENS SERVICES,WM MORRISON 063,20/12/2016,H59620161222GKFLRSSQQ-1,38.10,LOOKED AFTER CHILDRENS SOCIAL -FOOD AND BEVERAGES-PROVISIONS,GROCERY STORES AND SUPERMARKETS,GPC
WALSALL COUNCIL,HTTP://OPENDATACOMMUNITIES.ORG/ID/METROPOLITAN-DISTRICT-COUNCIL/WALSALL,31/12/2016,SOCIAL CARE & INCLUSION,ICELAND,20/12/2016,H59620161222LZKXMPLNM-1,178.53,FALLINGS HEATH-FOOD AND BEVERAGES-PROVISIONS,GROCERY STORES AND SUPERMARKETS,GPC
WALSALL COUNCIL,HTTP://OPENDATACOMMUNITIES.ORG/ID/METROPOLITAN-DISTRICT-COUNCIL/WALSALL,31/12/2016,CHILDRENS SERVICES,AMAZON UK MARKETPLACE,20/12/2016,H59620161222DLOCNMFDY-1,6.19,LOCALITY FAMILY SUPPORT-WEST-MISCELLANEOUS SUPPLIES,MISCELLANEOUS AND SPECIALTY RETAIL STORES,GPC
WALSALL COUNCIL,HTTP://OPENDATACOMMUNITIES.ORG/ID/METROPOLITAN-DISTRICT-COUNCIL/WALSALL,31/12/2016,CHILDRENS SERVICES,AMAZON UK MARKETPLACE,20/12/2016,H59620161222LQMEVKEEI-1,3.56,LOCALITY FAMILY SUPPORT-WEST-MISCELLANEOUS SUPPLIES,MISCELLANEOUS AND SPECIALTY RETAIL STORES,GPC
WALSALL COUNCIL,HTTP://OPENDATACOMMUNITIES.ORG/ID/METROPOLITAN-DISTRICT-COUNCIL/WALSALL,31/12/2016,CHILDRENS SERVICES,W M MORRISONS.COM,20/12/2016,H59620161222SMFVIGPLJ-1,19.92,REDRUTH ROAD-FOOD AND BEVERAGES-PROVISIONS,GROCERY STORES AND SUPERMARKETS,GPC
WALSALL COUNCIL,HTTP://OPENDATACOMMUNITIES.ORG/ID/METROPOLITAN-DISTRICT-COUNCIL/WALSALL,31/12/2016,CHILDRENS SERVICES,W M MORRISONS.COM,20/12/2016,H59620161222SMFVIGPLJ-2,115.89,REDRUTH ROAD-FOOD AND BEVERAGES-PROVISIONS,GROCERY STORES AND SUPERMARKETS,GPC
WALSALL COUNCIL,HTTP://OPENDATACOMMUNITIES.ORG/ID/METROPOLITAN-DISTRICT-COUNCIL/WALSALL,31/12/2016,CHILDRENS SERVICES,ASDA STORES,20/12/2016,H59620161222QRKLDSRER-1,34.00,LOCALITY FAMILY SUPPORT-WEST-MISCELLANEOUS SUPPLIES,GROCERY STORES AND SUPERMARKETS,GPC
WALSALL COUNCIL,HTTP://OPENDATACOMMUNITIES.ORG/ID/METROPOLITAN-DISTRICT-COUNCIL/WALSALL,31/12/2016,CHILDRENS SERVICES,W M MORRISONS.COM,20/12/2016,H59620161222FHTDBWSEG-1,6.72,BLUEBELLS-FOOD AND BEVERAGES-PROVISIONS,GROCERY STORES AND SUPERMARKETS,GPC
WALSALL COUNCIL,HTTP://OPENDATACOMMUNITIES.ORG/ID/METROPOLITAN-DISTRICT-COUNCIL/WALSALL,31/12/2016,CHILDRENS SERVICES,W M MORRISONS.COM,20/12/2016,H59620161222FHTDBWSEG-2,107.58,BLUEBELLS-FOOD AND BEVERAGES-PROVISIONS,GROCERY STORES AND SUPERMARKETS,GPC
WALSALL COUNCIL,HTTP://OPENDATACOMMUNITIES.ORG/ID/METROPOLITAN-DISTRICT-COUNCIL/WALSALL,31/12/2016,CHILDRENS SERVICES,TVLICENSING.CO.UK,19/12/2016,H59620161222KCVXVJJZQ-1,145.50,TRANSITION AND LEAVING CARE-CARE LEAVERS MTCE PAYMENTS,"CONSULTING, MANAGEMENT, AND PR SERVICES",GPC
WALSALL COUNCIL,HTTP://OPENDATACOMMUNITIES.ORG/ID/METROPOLITAN-DISTRICT-COUNCIL/WALSALL,31/12/2016,CHANGE & GOVERNANCE,AMAZON UK MARKETPLACE,20/12/2016,H59620161222VLNJZHHDY-1,11.33,ACCOMMODATION SERVICES MANAGEM-LIBRARY BOOKS,BOOK STORES,GPC
WALSALL COUNCIL,HTTP://OPENDATACOMMUNITIES.ORG/ID/METROPOLITAN-DISTRICT-COUNCIL/WALSALL,31/12/2016,CHANGE & GOVERNANCE,TESCO STORES 6161,20/12/2016,H59620161222WLPUNSJHV-1,1.39,ACCOMMODATION SERVICES MANAGEM-FOOD AND BEVERAGES-PROVISIONS,GROCERY STORES AND SUPERMARKETS,GPC
WALSALL COUNCIL,HTTP://OPENDATACOMMUNITIES.ORG/ID/METROPOLITAN-DISTRICT-COUNCIL/WALSALL,31/12/2016,CHANGE & GOVERNANCE,TESCO STORES 6161,20/12/2016,H59620161222WLPUNSJHV-2,4.35,ACCOMMODATION SERVICES MANAGEM-FOOD AND BEVERAGES-PROVISIONS,GROCERY STORES AND SUPERMARKETS,GPC
WALSALL COUNCIL,HTTP://OPENDATACOMMUNITIES.ORG/ID/METROPOLITAN-DISTRICT-COUNCIL/WALSALL,31/12/2016,CHANGE & GOVERNANCE,TESCO STORES 6161,20/12/2016,H59620161222YGULUHJBS-1,10.00,ACCOMMODATION SERVICES MANAGEM-FOOD AND BEVERAGES-PROVISIONS,GROCERY STORES AND SUPERMARKETS,GPC
WALSALL COUNCIL,HTTP://OPENDATACOMMUNITIES.ORG/ID/METROPOLITAN-DISTRICT-COUNCIL/WALSALL,31/12/2016,CHILDRENS SERVICES,SNBA GBP E-C082450208VWG,19/12/2016,H59620161222UQOFHHHOJ-1,390.86,SAFEGUARDING & FAMILY SUPPORT-OTHER-TRAVEL ALLOWANCES,SN BRUSSELS AIRLINES,GPC
WALSALL COUNCIL,HTTP://OPENDATACOMMUNITIES.ORG/ID/METROPOLITAN-DISTRICT-COUNCIL/WALSALL,31/12/2016,CHANGE & GOVERNANCE,PRIMARK 690,19/12/2016,H59620161222RIQCXSLQK-1,50.00,WALSALL CRISIS SUPPORT SCHEME-CRISIS SUPPORT PAYMENTS,CLOTHING STORES,GPC
WALSALL COUNCIL,HTTP://OPENDATACOMMUNITIES.ORG/ID/METROPOLITAN-DISTRICT-COUNCIL/WALSALL,31/12/2016,CHANGE & GOVERNANCE,TESCO STORES 6161,20/12/2016,H59620161222IDZBGAQMY-1,52.90,WALSALL CRISIS SUPPORT SCHEME-CRISIS SUPPORT PAYMENTS,GROCERY STORES AND SUPERMARKETS,GPC
WALSALL COUNCIL,HTTP://OPENDATACOMMUNITIES.ORG/ID/METROPOLITAN-DISTRICT-COUNCIL/WALSALL,31/12/2016,CHANGE & GOVERNANCE,CRAZY HOUSE FURNITURE,20/12/2016,H59620161222SPBLTJVMI-1,100.00,WALSALL CRISIS SUPPORT SCHEME-FURNITURE & EQUIPMENT,"EQUIPMENT, FURNITURE, AND HOME FURNISHINGS STORES ",GPC
WALSALL COUNCIL,HTTP://OPENDATACOMMUNITIES.ORG/ID/METROPOLITAN-DISTRICT-COUNCIL/WALSALL,31/12/2016,CHANGE & GOVERNANCE,B&M RETAIL,20/12/2016,H59620161222CUCTOVSVT-1,7.53,YOUNG PERSONS HOMELESS SERVICE-FOOD AND BEVERAGES-PROVISIONS,DISCOUNT STORES,GPC
WALSALL COUNCIL,HTTP://OPENDATACOMMUNITIES.ORG/ID/METROPOLITAN-DISTRICT-COUNCIL/WALSALL,31/12/2016,CHANGE & GOVERNANCE,ASDA,20/12/2016,H59620161222VHSKYRHES-1,89.48,YOUNG PERSONS HOMELESS SERVICE-FOOD AND BEVERAGES-PROVISIONS,GROCERY STORES AND SUPERMARKETS,GPC
WALSALL COUNCIL,HTTP://OPENDATACOMMUNITIES.ORG/ID/METROPOLITAN-DISTRICT-COUNCIL/WALSALL,31/12/2016,CHANGE & GOVERNANCE,ASDA,20/12/2016,H59620161222VHSKYRHES-2,4.25,YOUNG PERSONS HOMELESS SERVICE-FOOD AND BEVERAGES-PROVISIONS,GROCERY STORES AND SUPERMARKETS,GPC
WALSALL COUNCIL,HTTP://OPENDATACOMMUNITIES.ORG/ID/METROPOLITAN-DISTRICT-COUNCIL/WALSALL,31/12/2016,CHANGE & GOVERNANCE,CRAZY HOUSE FURNITURE,20/12/2016,H59620161222FSHUIGDDH-1,750.00,WALSALL CRISIS SUPPORT SCHEME-FURNITURE & EQUIPMENT,"EQUIPMENT, FURNITURE, AND HOME FURNISHINGS STORES ",GPC
WALSALL COUNCIL,HTTP://OPENDATACOMMUNITIES.ORG/ID/METROPOLITAN-DISTRICT-COUNCIL/WALSALL,31/12/2016,CHANGE & GOVERNANCE,CRAZY HOUSE FURNITURE,20/12/2016,H59620161222KKQBOMLZK-1,750.00,WALSALL CRISIS SUPPORT SCHEME-FURNITURE & EQUIPMENT,"EQUIPMENT, FURNITURE, AND HOME FURNISHINGS STORES ",GPC
WALSALL COUNCIL,HTTP://OPENDATACOMMUNITIES.ORG/ID/METROPOLITAN-DISTRICT-COUNCIL/WALSALL,31/12/2016,,ASDA,20/12/2016,H59620161222HHQKMTAZP-1,30.30,-FOOD AND BEVERAGES-PROVISIONS,GROCERY STORES AND SUPERMARKETS,GPC
WALSALL COUNCIL,HTTP://OPENDATACOMMUNITIES.ORG/ID/METROPOLITAN-DISTRICT-COUNCIL/WALSALL,31/12/2016,,WM MORRISONS,20/12/2016,H59620161222SDKJWWEWD-1,46.00,-FOOD AND BEVERAGES-PROVISIONS,GROCERY STORES AND SUPERMARKETS,GPC
WALSALL COUNCIL,HTTP://OPENDATACOMMUNITIES.ORG/ID/METROPOLITAN-DISTRICT-COUNCIL/WALSALL,31/12/2016,CHILDRENS SERVICES,WALSALL COUNCIL,20/12/2016,H59620161222URGXOGTNO-1,37.00,SAFEGUARDING & FAMILY SUPPORT-REGISTRAR OF BIRTHS/DEATHS/MAR,GOVERNMENT SERVICES,GPC
WALSALL COUNCIL,HTTP://OPENDATACOMMUNITIES.ORG/ID/METROPOLITAN-DISTRICT-COUNCIL/WALSALL,31/12/2016,CHILDRENS SERVICES,PRIMARK 690,19/12/2016,H59620161222ODBUQJQPT-1,45.00,"43A HILTON ROAD, WILLENHALL-RESIDENTS PERSONAL EXPENSES-AL",CLOTHING STORES,GPC
WALSALL COUNCIL,HTTP://OPENDATACOMMUNITIES.ORG/ID/METROPOLITAN-DISTRICT-COUNCIL/WALSALL,31/12/2016,CHILDRENS SERVICES,PRIMARK 690,19/12/2016,H59620161222SNBVYIIUL-1,19.00,"43A HILTON ROAD, WILLENHALL-RESIDENTS PERSONAL EXPENSES-AL",CLOTHING STORES,GPC
WALSALL COUNCIL,HTTP://OPENDATACOMMUNITIES.ORG/ID/METROPOLITAN-DISTRICT-COUNCIL/WALSALL,31/12/2016,CHANGE & GOVERNANCE,CRAZY HOUSE FURNITURE,20/12/2016,H59620161222JKILFGSRN-1,100.00,WALSALL CRISIS SUPPORT SCHEME-CRISIS SUPPORT PAYMENTS,"EQUIPMENT, FURNITURE, AND HOME FURNISHINGS STORES ",GPC
WALSALL COUNCIL,HTTP://OPENDATACOMMUNITIES.ORG/ID/METROPOLITAN-DISTRICT-COUNCIL/WALSALL,31/12/2016,CHANGE & GOVERNANCE,CRAZY HOUSE FURNITURE,20/12/2016,H59620161222GQYUUTGOJ-1,740.00,WALSALL CRISIS SUPPORT SCHEME-CRISIS SUPPORT PAYMENTS,"EQUIPMENT, FURNITURE, AND HOME FURNISHINGS STORES ",GPC
WALSALL COUNCIL,HTTP://OPENDATACOMMUNITIES.ORG/ID/METROPOLITAN-DISTRICT-COUNCIL/WALSALL,31/12/2016,CHANGE & GOVERNANCE,CRAZY HOUSE FURNITURE,20/12/2016,H59620161222HFIFXFOGG-1,175.00,WALSALL CRISIS SUPPORT SCHEME-CRISIS SUPPORT PAYMENTS,"EQUIPMENT, FURNITURE, AND HOME FURNISHINGS STORES ",GPC
WALSALL COUNCIL,HTTP://OPENDATACOMMUNITIES.ORG/ID/METROPOLITAN-DISTRICT-COUNCIL/WALSALL,31/12/2016,CHANGE & GOVERNANCE,ARGOS RETAIL GROUP,20/12/2016,H59620161222BNFKFLIGP-1,133.94,WALSALL CRISIS SUPPORT SCHEME-CRISIS SUPPORT PAYMENTS,DISCOUNT STORES,GPC
WALSALL COUNCIL,HTTP://OPENDATACOMMUNITIES.ORG/ID/METROPOLITAN-DISTRICT-COUNCIL/WALSALL,31/12/2016,CHANGE & GOVERNANCE,CRAZY HOUSE FURNITURE,20/12/2016,H59620161222DNIBMZRFJ-1,200.00,WALSALL CRISIS SUPPORT SCHEME-CRISIS SUPPORT PAYMENTS,"EQUIPMENT, FURNITURE, AND HOME FURNISHINGS STORES ",GPC
WALSALL COUNCIL,HTTP://OPENDATACOMMUNITIES.ORG/ID/METROPOLITAN-DISTRICT-COUNCIL/WALSALL,31/12/2016,CHANGE & GOVERNANCE,CRAZY HOUSE FURNITURE,20/12/2016,H59620161222CBUUVEUQG-1,95.00,WALSALL CRISIS SUPPORT SCHEME-GENERAL PROVISIONS-PROVISIONS,"EQUIPMENT, FURNITURE, AND HOME FURNISHINGS STORES ",GPC
WALSALL COUNCIL,HTTP://OPENDATACOMMUNITIES.ORG/ID/METROPOLITAN-DISTRICT-COUNCIL/WALSALL,31/12/2016,CHANGE & GOVERNANCE,CRAZY HOUSE FURNITURE,20/12/2016,H59620161222IEBNRDTHK-1,245.00,WALSALL CRISIS SUPPORT SCHEME-GENERAL PROVISIONS-PROVISIONS,"EQUIPMENT, FURNITURE, AND HOME FURNISHINGS STORES ",GPC
WALSALL COUNCIL,HTTP://OPENDATACOMMUNITIES.ORG/ID/METROPOLITAN-DISTRICT-COUNCIL/WALSALL,31/12/2016,CHANGE & GOVERNANCE,CRAZY HOUSE FURNITURE,20/12/2016,H59620161222JSNGPVPNT-1,185.00,WALSALL CRISIS SUPPORT SCHEME-GENERAL PROVISIONS-PROVISIONS,"EQUIPMENT, FURNITURE, AND HOME FURNISHINGS STORES ",GPC
WALSALL COUNCIL,HTTP://OPENDATACOMMUNITIES.ORG/ID/METROPOLITAN-DISTRICT-COUNCIL/WALSALL,31/12/2016,CHILDRENS SERVICES,CURRYS ONLINE,20/12/2016,H59620161222TBLKIMORJ-1,22.99,PELSALL EDC-FURNITURE & EQUIPMENT,ELECTRONIC SALES,GPC
WALSALL COUNCIL,HTTP://OPENDATACOMMUNITIES.ORG/ID/METROPOLITAN-DISTRICT-COUNCIL/WALSALL,31/12/2016,CHILDRENS SERVICES,W M MORRISON PLC,20/12/2016,H59620161222BMICVUYTE-1,21.35,"43A HILTON ROAD, WILLENHALL-FOOD AND BEVERAGES-PROVISIONS",GROCERY STORES AND SUPERMARKETS,GPC
WALSALL COUNCIL,HTTP://OPENDATACOMMUNITIES.ORG/ID/METROPOLITAN-DISTRICT-COUNCIL/WALSALL,31/12/2016,CHILDRENS SERVICES,W M MORRISON PLC,20/12/2016,H59620161222BMICVUYTE-2,158.29,"43A HILTON ROAD, WILLENHALL-FOOD AND BEVERAGES-PROVISIONS",GROCERY STORES AND SUPERMARKETS,GPC
WALSALL COUNCIL,HTTP://OPENDATACOMMUNITIES.ORG/ID/METROPOLITAN-DISTRICT-COUNCIL/WALSALL,31/12/2016,ECONOMY & ENVIRONMENT,MAPLIN CANNOCK WS11,20/12/2016,H59620161222NQGSBPCQL-1,16.99,COMMUNITY LIASON-COSTS (NOT INTERNAL RECHARGES),TELECOMMUNICATION EQUIPMENT & SALES,GPC
WALSALL COUNCIL,HTTP://OPENDATACOMMUNITIES.ORG/ID/METROPOLITAN-DISTRICT-COUNCIL/WALSALL,31/12/2016,ECONOMY & ENVIRONMENT,AMAZON UK MARKETPLACE,20/12/2016,H59620161222BONCPIULU-1,34.49,FLEET-GENERAL MATERIALS,BOOK STORES,GPC
WALSALL COUNCIL,HTTP://OPENDATACOMMUNITIES.ORG/ID/METROPOLITAN-DISTRICT-COUNCIL/WALSALL,31/12/2016,ECONOMY & ENVIRONMENT,MARSHALL FLEET SOL,20/12/2016,H59620161222VWKPTXCJU-1,189.43,FLEET-GENERAL MATERIALS,AUTOMOTIVE SERVICE SHOPS,GPC
WALSALL COUNCIL,HTTP://OPENDATACOMMUNITIES.ORG/ID/METROPOLITAN-DISTRICT-COUNCIL/WALSALL,31/12/2016,CHILDRENS SERVICES,REGISTRATION SERVICES,20/12/2016,H59620161222DUPPFSHEZ-1,10.00,LOOKED AFTER CHILDRENS SOCIAL -MISC FEES AND EXPENSES,OTHER RECREATION SERVICES,GPC
WALSALL COUNCIL,HTTP://OPENDATACOMMUNITIES.ORG/ID/METROPOLITAN-DISTRICT-COUNCIL/WALSALL,31/12/2016,CHILDRENS SERVICES,HM PASSPORT OFFICE,20/12/2016,H59620161222WOSZYMPRP-1,92.00,LOOKED AFTER CHILDRENS SOCIAL -MISC FEES AND EXPENSES,GOVERNMENT SERVICES,GPC
WALSALL COUNCIL,HTTP://OPENDATACOMMUNITIES.ORG/ID/METROPOLITAN-DISTRICT-COUNCIL/WALSALL,31/12/2016,CHILDRENS SERVICES,REGISTRATION SERVICES,19/12/2016,H59620161221SMPEFNJQU-1,10.00,LOOKED AFTER CHILDRENS SOCIAL -MISC FEES AND EXPENSES,OTHER RECREATION SERVICES,GPC
WALSALL COUNCIL,HTTP://OPENDATACOMMUNITIES.ORG/ID/METROPOLITAN-DISTRICT-COUNCIL/WALSALL,31/12/2016,CHILDRENS SERVICES,TESCO STORES 5503,19/12/2016,H59620161221CIRKYNFOK-1,3.30,ADOPTION TEAM-FOOD AND BEVERAGES-PROVISIONS,GROCERY STORES AND SUPERMARKETS,GPC
WALSALL COUNCIL,HTTP://OPENDATACOMMUNITIES.ORG/ID/METROPOLITAN-DISTRICT-COUNCIL/WALSALL,31/12/2016,CHILDRENS SERVICES,STAPLES UK,19/12/2016,H59620161221INARNACSH-1,21.52,ADOPTION TEAM-STATIONERY & GENERAL SUPPLIES-,"OFFICE, SCHOOL SUPPLY, AND STATIONERY STORES",GPC
WALSALL COUNCIL,HTTP://OPENDATACOMMUNITIES.ORG/ID/METROPOLITAN-DISTRICT-COUNCIL/WALSALL,31/12/2016,CHILDRENS SERVICES,ICELAND,19/12/2016,H59620161221QTCHRDMWR-1,21.02,SPINDLETREE-FOOD AND BEVERAGES-PROVISIONS,GROCERY STORES AND SUPERMARKETS,GPC
WALSALL COUNCIL,HTTP://OPENDATACOMMUNITIES.ORG/ID/METROPOLITAN-DISTRICT-COUNCIL/WALSALL,31/12/2016,ECONOMY & ENVIRONMENT,WWW.BARLOWTRAILERS.CO.,19/12/2016,H59620161221PWZDUDWIG-1,83.39,FLEET-GENERAL MATERIALS,TRUCK AND UTILITY TRAILER RENTAL,GPC
WALSALL COUNCIL,HTTP://OPENDATACOMMUNITIES.ORG/ID/METROPOLITAN-DISTRICT-COUNCIL/WALSALL,31/12/2016,CHILDRENS SERVICES,WWW.TOOLSTATION.COM,19/12/2016,H59620161221RPINRGGLN-1,38.17,"SPINDLETREE-REPAIRS,ALTERATIONS & MAINTENA",HARDWARE STORES,GPC
WALSALL COUNCIL,HTTP://OPENDATACOMMUNITIES.ORG/ID/METROPOLITAN-DISTRICT-COUNCIL/WALSALL,31/12/2016,ECONOMY & ENVIRONMENT,SIM MAYOU HARDWARE,19/12/2016,H59620161221FDIACMIKG-1,107.60,"INFRASTRUCTURE MAINTENANCE-CROCKERY,HARDWARE & DISPOSABLE",HARDWARE STORES,GPC
WALSALL COUNCIL,HTTP://OPENDATACOMMUNITIES.ORG/ID/METROPOLITAN-DISTRICT-COUNCIL/WALSALL,31/12/2016,CHILDRENS SERVICES,KFC,19/12/2016,H59620161221FNCSQZWJG-1,14.94,"43A HILTON ROAD, WILLENHALL-RESIDENTS PERSONAL EXPENSES-AL",QUICK PAYMENT SERVICE-FAST-FOOD RESTAURANTS,GPC
WALSALL COUNCIL,HTTP://OPENDATACOMMUNITIES.ORG/ID/METROPOLITAN-DISTRICT-COUNCIL/WALSALL,31/12/2016,CHILDRENS SERVICES,OXYGENE,19/12/2016,H59620161221LPBTPPEGB-1,29.99,"43A HILTON ROAD, WILLENHALL-CLOTHING & LAUNDRY",WOMENS READY TO WEAR STORES,GPC
WALSALL COUNCIL,HTTP://OPENDATACOMMUNITIES.ORG/ID/METROPOLITAN-DISTRICT-COUNCIL/WALSALL,31/12/2016,ECONOMY & ENVIRONMENT,CUSTOM PARTY BANNERS,19/12/2016,H59620161221FEBFOLVWC-1,15.00,DARLASTON DISTRICT CENTRE-EVENTS,MISCELLANEOUS AND SPECIALTY RETAIL STORES,GPC
WALSALL COUNCIL,HTTP://OPENDATACOMMUNITIES.ORG/ID/METROPOLITAN-DISTRICT-COUNCIL/WALSALL,31/12/2016,CHANGE & GOVERNANCE,"BOOTS,WALSALL",19/12/2016,H59620161221WIEKENKIU-1,9.55,WALSALL CRISIS SUPPORT SCHEME-CRISIS SUPPORT PAYMENTS,"DRUG STORES, PHARMACIES",GPC
WALSALL COUNCIL,HTTP://OPENDATACOMMUNITIES.ORG/ID/METROPOLITAN-DISTRICT-COUNCIL/WALSALL,31/12/2016,CHANGE & GOVERNANCE,TESCO STORES 6161,19/12/2016,H59620161221XBXSYPTVE-1,82.50,WALSALL CRISIS SUPPORT SCHEME-CRISIS SUPPORT PAYMENTS,GROCERY STORES AND SUPERMARKETS,GPC
WALSALL COUNCIL,HTTP://OPENDATACOMMUNITIES.ORG/ID/METROPOLITAN-DISTRICT-COUNCIL/WALSALL,31/12/2016,CHANGE & GOVERNANCE,REGISTRATION SERVICES,19/12/2016,H59620161221OSDWSMVWW-1,15.00,WALSALL CRISIS SUPPORT SCHEME-CRISIS SUPPORT PAYMENTS,OTHER RECREATION SERVICES,GPC
WALSALL COUNCIL,HTTP://OPENDATACOMMUNITIES.ORG/ID/METROPOLITAN-DISTRICT-COUNCIL/WALSALL,31/12/2016,CHANGE & GOVERNANCE,TESCO STORES 6161,19/12/2016,H59620161221TIBOQKAKW-1,15.00,WALSALL CRISIS SUPPORT SCHEME-CRISIS SUPPORT PAYMENTS,GROCERY STORES AND SUPERMARKETS,GPC
WALSALL COUNCIL,HTTP://OPENDATACOMMUNITIES.ORG/ID/METROPOLITAN-DISTRICT-COUNCIL/WALSALL,31/12/2016,CHANGE & GOVERNANCE,"BOOTS,WALSALL",19/12/2016,H59620161221GJCLNVNXH-1,10.00,WALSALL CRISIS SUPPORT SCHEME-CRISIS SUPPORT PAYMENTS,"DRUG STORES, PHARMACIES",GPC
WALSALL COUNCIL,HTTP://OPENDATACOMMUNITIES.ORG/ID/METROPOLITAN-DISTRICT-COUNCIL/WALSALL,31/12/2016,CHANGE & GOVERNANCE,AMAZON UK MARKETPLACE,19/12/2016,H59620161221LXGSADPBQ-1,12.80,ACCOMMODATION SERVICES MANAGEM-MISCELLANEOUS SUPPLIES,MISCELLANEOUS AND SPECIALTY RETAIL STORES,GPC
WALSALL COUNCIL,HTTP://OPENDATACOMMUNITIES.ORG/ID/METROPOLITAN-DISTRICT-COUNCIL/WALSALL,31/12/2016,CHANGE & GOVERNANCE,AMAZON UK MARKETPLACE,19/12/2016,H59620161221NLWRRDNCB-1,3.89,ACCOMMODATION SERVICES MANAGEM-MISCELLANEOUS SUPPLIES,MISCELLANEOUS AND SPECIALTY RETAIL STORES,GPC
WALSALL COUNCIL,HTTP://OPENDATACOMMUNITIES.ORG/ID/METROPOLITAN-DISTRICT-COUNCIL/WALSALL,31/12/2016,CHILDRENS SERVICES,TESCO STORES 6161,19/12/2016,H59620161221QBVIMLLKH-1,265.79,VIRTUAL SCHOOL - CENTRAL PUPIL-FOOD AND BEVERAGES-PROVISIONS,GROCERY STORES AND SUPERMARKETS,GPC
WALSALL COUNCIL,HTTP://OPENDATACOMMUNITIES.ORG/ID/METROPOLITAN-DISTRICT-COUNCIL/WALSALL,31/12/2016,CHILDRENS SERVICES,W M MORRISONS.COM,19/12/2016,H59620161221HXMPMOPDP-1,12.88,BIRCHILLS CHILDCARE SERVICES-FOOD AND BEVERAGES-PROVISIONS,GROCERY STORES AND SUPERMARKETS,GPC
WALSALL COUNCIL,HTTP://OPENDATACOMMUNITIES.ORG/ID/METROPOLITAN-DISTRICT-COUNCIL/WALSALL,31/12/2016,CHILDRENS SERVICES,W M MORRISONS.COM,19/12/2016,H59620161221HXMPMOPDP-2,18.28,BIRCHILLS CHILDCARE SERVICES-CLEANING MATERIALS,GROCERY STORES AND SUPERMARKETS,GPC
WALSALL COUNCIL,HTTP://OPENDATACOMMUNITIES.ORG/ID/METROPOLITAN-DISTRICT-COUNCIL/WALSALL,31/12/2016,CHILDRENS SERVICES,W M MORRISONS.COM,19/12/2016,H59620161221HXMPMOPDP-3,4.10,BIRCHILLS CHILDCARE SERVICES-CARRIAGE-IN,GROCERY STORES AND SUPERMARKETS,GPC
WALSALL COUNCIL,HTTP://OPENDATACOMMUNITIES.ORG/ID/METROPOLITAN-DISTRICT-COUNCIL/WALSALL,31/12/2016,CHILDRENS SERVICES,W M MORRISONS.COM,19/12/2016,H59620161221HXMPMOPDP-4,106.78,BIRCHILLS CHILDCARE SERVICES-FOOD AND BEVERAGES-PROVISIONS,GROCERY STORES AND SUPERMARKETS,GPC
WALSALL COUNCIL,HTTP://OPENDATACOMMUNITIES.ORG/ID/METROPOLITAN-DISTRICT-COUNCIL/WALSALL,31/12/2016,ECONOMY & ENVIRONMENT,SANDWELL M.B.C.,19/12/2016,H59620161221MFHWUQRYH-1,5.00,YEI (IMPACT) PROGRAMME-MISCELLANEOUS SUPPLIES,GOVERNMENT SERVICES,GPC
WALSALL COUNCIL,HTTP://OPENDATACOMMUNITIES.ORG/ID/METROPOLITAN-DISTRICT-COUNCIL/WALSALL,31/12/2016,ECONOMY & ENVIRONMENT,SANDWELL M.B.C.,19/12/2016,H59620161221MFHWUQRYH-2,5.00,YEI ESF FUNDING-MISCELLANEOUS SUPPLIES,GOVERNMENT SERVICES,GPC
WALSALL COUNCIL,HTTP://OPENDATACOMMUNITIES.ORG/ID/METROPOLITAN-DISTRICT-COUNCIL/WALSALL,31/12/2016,ECONOMY & ENVIRONMENT,WALSALL COUNCIL,19/12/2016,H59620161221QXQDKGKUO-1,6.00,YEI (IMPACT) PROGRAMME-MISCELLANEOUS SUPPLIES,GOVERNMENT SERVICES,GPC
WALSALL COUNCIL,HTTP://OPENDATACOMMUNITIES.ORG/ID/METROPOLITAN-DISTRICT-COUNCIL/WALSALL,31/12/2016,ECONOMY & ENVIRONMENT,WALSALL COUNCIL,19/12/2016,H59620161221QXQDKGKUO-2,6.00,YEI ESF FUNDING-MISCELLANEOUS SUPPLIES,GOVERNMENT SERVICES,GPC
WALSALL COUNCIL,HTTP://OPENDATACOMMUNITIES.ORG/ID/METROPOLITAN-DISTRICT-COUNCIL/WALSALL,31/12/2016,ECONOMY & ENVIRONMENT,COOMBER ELECTRONIC EQ LT,19/12/2016,H59620161221ESYHUDPKQ-1,756.00,DARLASTON LEISURE CENTRE-NEW-FURNITURE & EQUIPMENT,ELECTRONIC SALES,GPC
WALSALL COUNCIL,HTTP://OPENDATACOMMUNITIES.ORG/ID/METROPOLITAN-DISTRICT-COUNCIL/WALSALL,31/12/2016,CHANGE & GOVERNANCE,ASDA STORES,19/12/2016,H59620161221CCUYFTYAP-1,41.86,WALSALL CRISIS SUPPORT SCHEME-CRISIS SUPPORT PAYMENTS,GROCERY STORES AND SUPERMARKETS,GPC
WALSALL COUNCIL,HTTP://OPENDATACOMMUNITIES.ORG/ID/METROPOLITAN-DISTRICT-COUNCIL/WALSALL,31/12/2016,CHILDRENS SERVICES,W M MORRISONS.COM,19/12/2016,H59620161221STDTZGGFF-1,133.46,57 LICHFIELD ROAD-FOOD AND BEVERAGES-PROVISIONS,GROCERY STORES AND SUPERMARKETS,GPC
WALSALL COUNCIL,HTTP://OPENDATACOMMUNITIES.ORG/ID/METROPOLITAN-DISTRICT-COUNCIL/WALSALL,31/12/2016,CHILDRENS SERVICES,TRETHORNE GOLF CLUB,19/12/2016,H59620161221ULOFRGCDG-1,138.00,LOOKED AFTER CHILDRENS SOCIAL -HOTEL ACCOMMODATION-EMPLOYEES,"GOLF COURSES, PUBLIC",GPC
WALSALL COUNCIL,HTTP://OPENDATACOMMUNITIES.ORG/ID/METROPOLITAN-DISTRICT-COUNCIL/WALSALL,31/12/2016,,SMYTHS TOYS UK LTD,19/12/2016,H59620161221LOWHJYPED-1,16.98,-TOYS & GAMES-MATERIALS,"GAME, TOY, AND HOBBY SHOPS",GPC
WALSALL COUNCIL,HTTP://OPENDATACOMMUNITIES.ORG/ID/METROPOLITAN-DISTRICT-COUNCIL/WALSALL,31/12/2016,ECONOMY & ENVIRONMENT,ARGOS,19/12/2016,H59620161221UVDKUHXSG-1,29.99,OAK PARK-NEW-FURNITURE & EQUIPMENT,DISCOUNT STORES,GPC
WALSALL COUNCIL,HTTP://OPENDATACOMMUNITIES.ORG/ID/METROPOLITAN-DISTRICT-COUNCIL/WALSALL,31/12/2016,ECONOMY & ENVIRONMENT,DVSA MOT COMP 2,19/12/2016,H59620161221OHYPDMFJU-1,820.00,FLEET-VEHICLE TESTING STATION-MATERI,GOVERNMENT SERVICES,GPC
WALSALL COUNCIL,HTTP://OPENDATACOMMUNITIES.ORG/ID/METROPOLITAN-DISTRICT-COUNCIL/WALSALL,31/12/2016,ECONOMY & ENVIRONMENT,B & Q 1276,19/12/2016,H59620161221PFSQYYQPG-1,4.99,DARLASTON LEISURE CENTRE-GENERAL MATERIALS,LUMBER & BUILDING MATERIALS STORES,GPC
WALSALL COUNCIL,HTTP://OPENDATACOMMUNITIES.ORG/ID/METROPOLITAN-DISTRICT-COUNCIL/WALSALL,31/12/2016,ECONOMY & ENVIRONMENT,"WWW,MECHLITE.CO.UK",19/12/2016,H59620161221QRGAEGSVH-1,72.54,FOREST ARTS CENTRE-STATIONERY & GENERAL SUPPLIES-,SPECIAL TRADE CONTRACTORS,GPC
WALSALL COUNCIL,HTTP://OPENDATACOMMUNITIES.ORG/ID/METROPOLITAN-DISTRICT-COUNCIL/WALSALL,31/12/2016,CHANGE & GOVERNANCE,BORSHCH LIMITED,16/12/2016,H59620161220MBUFTEJWO-1,535.00,WALSALL CRISIS SUPPORT SCHEME-FURNITURE & EQUIPMENT,ELECTRONIC SALES,GPC
WALSALL COUNCIL,HTTP://OPENDATACOMMUNITIES.ORG/ID/METROPOLITAN-DISTRICT-COUNCIL/WALSALL,31/12/2016,ECONOMY & ENVIRONMENT,IKEA LIMITED,16/12/2016,H59620161220MBLJCFKXT-1,84.25,BLOXWICH LEISURE CENTRE-FURNITURE & EQUIPMENT,"EQUIPMENT, FURNITURE, AND HOME FURNISHINGS STORES ",GPC
WALSALL COUNCIL,HTTP://OPENDATACOMMUNITIES.ORG/ID/METROPOLITAN-DISTRICT-COUNCIL/WALSALL,31/12/2016,ECONOMY & ENVIRONMENT,DECATHLON,16/12/2016,H59620161220QKRNKQCWC-1,29.90,INSPIRED GENERATIONS (CSAF)-FURNITURE & EQUIPMENT,SPORTING GOODS STORES,GPC
WALSALL COUNCIL,HTTP://OPENDATACOMMUNITIES.ORG/ID/METROPOLITAN-DISTRICT-COUNCIL/WALSALL,31/12/2016,CHILDRENS SERVICES,J D SPORTS 177,16/12/2016,H59620161220UUHZRWOJU-1,104.05,REDRUTH ROAD-RESIDENTS PERSONAL EXPENSES-AL,SPORTING GOODS STORES,GPC
WALSALL COUNCIL,HTTP://OPENDATACOMMUNITIES.ORG/ID/METROPOLITAN-DISTRICT-COUNCIL/WALSALL,31/12/2016,ECONOMY & ENVIRONMENT,A F BLAKEMORE & SON LTD,16/12/2016,H59620161220TCEQFICFA-1,23.39,WALSALL TOWN HALL-FOOD AND BEVERAGES-PROVISIONS,GROCERY STORES AND SUPERMARKETS,GPC
WALSALL COUNCIL,HTTP://OPENDATACOMMUNITIES.ORG/ID/METROPOLITAN-DISTRICT-COUNCIL/WALSALL,31/12/2016,CHILDRENS SERVICES,J D SPORTS 177,16/12/2016,H59620161220XBXOFUEVS-1,50.05,57 LICHFIELD ROAD-RESIDENTS PERSONAL EXPENSES-AL,SPORTING GOODS STORES,GPC
WALSALL COUNCIL,HTTP://OPENDATACOMMUNITIES.ORG/ID/METROPOLITAN-DISTRICT-COUNCIL/WALSALL,31/12/2016,CHILDRENS SERVICES,ASDA,17/12/2016,H59620161220JECYJUWHF-1,35.05,57 LICHFIELD ROAD-FOOD AND BEVERAGES-PROVISIONS,GROCERY STORES AND SUPERMARKETS,GPC
WALSALL COUNCIL,HTTP://OPENDATACOMMUNITIES.ORG/ID/METROPOLITAN-DISTRICT-COUNCIL/WALSALL,31/12/2016,CHANGE & GOVERNANCE,TWITTER*ADVERTISING,18/12/2016,H59620161220LGRNIPRCH-1,6.00,SCHOOL HR TRANSACTIONAL TEAM-ADVERTISING STAFF VACANCIES,ADVERTISING SERVICES,GPC
WALSALL COUNCIL,HTTP://OPENDATACOMMUNITIES.ORG/ID/METROPOLITAN-DISTRICT-COUNCIL/WALSALL,31/12/2016,SOCIAL CARE & INCLUSION,BT BILL PAYMENT 2,16/12/2016,H59620161220HLSJWXCDB-1,-131.48,INITIAL REFERRAL TEAM-COSTS (NOT INTERNAL RECHARGES),TELECOMMUNICATION EQUIPMENT & SALES,GPC
WALSALL COUNCIL,HTTP://OPENDATACOMMUNITIES.ORG/ID/METROPOLITAN-DISTRICT-COUNCIL/WALSALL,31/12/2016,CHILDRENS SERVICES,THE FOOD RET SVS,18/12/2016,H59620161220NCVUECORN-1,3.75,"43A HILTON ROAD, WILLENHALL-FOOD AND BEVERAGES-PROVISIONS",GROCERY STORES AND SUPERMARKETS,GPC
WALSALL COUNCIL,HTTP://OPENDATACOMMUNITIES.ORG/ID/METROPOLITAN-DISTRICT-COUNCIL/WALSALL,31/12/2016,CHILDRENS SERVICES,THE FOOD RET SVS,18/12/2016,H59620161220NCVUECORN-2,5.29,"43A HILTON ROAD, WILLENHALL-FOOD AND BEVERAGES-PROVISIONS",GROCERY STORES AND SUPERMARKETS,GPC
WALSALL COUNCIL,HTTP://OPENDATACOMMUNITIES.ORG/ID/METROPOLITAN-DISTRICT-COUNCIL/WALSALL,31/12/2016,CHILDRENS SERVICES,GRO HM PASSPORT OFFICE,15/12/2016,H59620161220QMVDXRPIQ-1,-23.40,SAFEGUARDING & FAMILY SUPPORT-REGISTRAR OF BIRTHS/DEATHS/MAR,GOVERNMENT SERVICES,GPC
WALSALL COUNCIL,HTTP://OPENDATACOMMUNITIES.ORG/ID/METROPOLITAN-DISTRICT-COUNCIL/WALSALL,31/12/2016,ECONOMY & ENVIRONMENT,TRAVEL WEST MIDLAN,16/12/2016,H59620161220UYPNKTHYF-1,30.25,YEI (IMPACT) PROGRAMME-MISCELLANEOUS SUPPLIES,BUS LINES,GPC
WALSALL COUNCIL,HTTP://OPENDATACOMMUNITIES.ORG/ID/METROPOLITAN-DISTRICT-COUNCIL/WALSALL,31/12/2016,ECONOMY & ENVIRONMENT,TRAVEL WEST MIDLAN,16/12/2016,H59620161220UYPNKTHYF-2,30.25,YEI ESF FUNDING-MISCELLANEOUS SUPPLIES,BUS LINES,GPC
WALSALL COUNCIL,HTTP://OPENDATACOMMUNITIES.ORG/ID/METROPOLITAN-DISTRICT-COUNCIL/WALSALL,31/12/2016,ECONOMY & ENVIRONMENT,WEST MIDLANDS TRAV,16/12/2016,H59620161220CNPHQYYYL-1,30.25,YEI (IMPACT) PROGRAMME-MISCELLANEOUS SUPPLIES,BUS LINES,GPC
WALSALL COUNCIL,HTTP://OPENDATACOMMUNITIES.ORG/ID/METROPOLITAN-DISTRICT-COUNCIL/WALSALL,31/12/2016,ECONOMY & ENVIRONMENT,WEST MIDLANDS TRAV,16/12/2016,H59620161220CNPHQYYYL-2,30.25,YEI ESF FUNDING-MISCELLANEOUS SUPPLIES,BUS LINES,GPC
WALSALL COUNCIL,HTTP://OPENDATACOMMUNITIES.ORG/ID/METROPOLITAN-DISTRICT-COUNCIL/WALSALL,31/12/2016,ECONOMY & ENVIRONMENT,TESCO STORES 6161,16/12/2016,H59620161220KXTMDHRQW-1,27.25,YEI (IMPACT) PROGRAMME-MISCELLANEOUS SUPPLIES,GROCERY STORES AND SUPERMARKETS,GPC
WALSALL COUNCIL,HTTP://OPENDATACOMMUNITIES.ORG/ID/METROPOLITAN-DISTRICT-COUNCIL/WALSALL,31/12/2016,ECONOMY & ENVIRONMENT,TESCO STORES 6161,16/12/2016,H59620161220KXTMDHRQW-2,27.25,YEI ESF FUNDING-MISCELLANEOUS SUPPLIES,GROCERY STORES AND SUPERMARKETS,GPC
WALSALL COUNCIL,HTTP://OPENDATACOMMUNITIES.ORG/ID/METROPOLITAN-DISTRICT-COUNCIL/WALSALL,31/12/2016,CHILDRENS SERVICES,ASDA STORES LTD 4225,16/12/2016,H59620161220RLOTMKEND-1,89.97,LOCALITY FAMILY SUPPORT-WEST-MISCELLANEOUS SUPPLIES,GROCERY STORES AND SUPERMARKETS,GPC
WALSALL COUNCIL,HTTP://OPENDATACOMMUNITIES.ORG/ID/METROPOLITAN-DISTRICT-COUNCIL/WALSALL,31/12/2016,CHILDRENS SERVICES,ASDA STORES LTD 4225,16/12/2016,H59620161220RLOTMKEND-2,0.10,LOCALITY FAMILY SUPPORT-WEST-CARRIAGE-IN,GROCERY STORES AND SUPERMARKETS,GPC
WALSALL COUNCIL,HTTP://OPENDATACOMMUNITIES.ORG/ID/METROPOLITAN-DISTRICT-COUNCIL/WALSALL,31/12/2016,CHILDRENS SERVICES,LONDON MIDLAND TIC,16/12/2016,H59620161220VSNDVSYBK-1,56.60,LOOKED AFTER CHILDRENS SOCIAL -SECTION 34 (CONTACT),PASSENGER RAILWAYS,GPC
WALSALL COUNCIL,HTTP://OPENDATACOMMUNITIES.ORG/ID/METROPOLITAN-DISTRICT-COUNCIL/WALSALL,31/12/2016,ECONOMY & ENVIRONMENT,BRITISH CANOEING,16/12/2016,H59620161220EELFMFVFD-1,42.00,WALSALL OUTDOOR ADVENTURE CENT-PROFESSIONAL FEES AND SERVICES,"CLUBS COUNTRY CLUBS, MEMBERSHIP",GPC
WALSALL COUNCIL,HTTP://OPENDATACOMMUNITIES.ORG/ID/METROPOLITAN-DISTRICT-COUNCIL/WALSALL,31/12/2016,ECONOMY & ENVIRONMENT,BRITISH CANOEING,16/12/2016,H59620161220TPNGWYYYC-1,42.00,WALSALL OUTDOOR ADVENTURE CENT-PROFESSIONAL FEES AND SERVICES,"CLUBS COUNTRY CLUBS, MEMBERSHIP",GPC
WALSALL COUNCIL,HTTP://OPENDATACOMMUNITIES.ORG/ID/METROPOLITAN-DISTRICT-COUNCIL/WALSALL,31/12/2016,ECONOMY & ENVIRONMENT,BRITISH CANOEING,16/12/2016,H59620161220YMPRCBMSS-1,42.00,WALSALL OUTDOOR ADVENTURE CENT-PROFESSIONAL FEES AND SERVICES,"CLUBS COUNTRY CLUBS, MEMBERSHIP",GPC
WALSALL COUNCIL,HTTP://OPENDATACOMMUNITIES.ORG/ID/METROPOLITAN-DISTRICT-COUNCIL/WALSALL,31/12/2016,CHILDRENS SERVICES,AMAZON UK MARKETPLACE,16/12/2016,H59620161220TWNSTZPNU-1,1.40,ADMINISTRATIVE SUPPLIES-MEDICAL REQUISITES-MATERIALS,BOOK STORES,GPC
WALSALL COUNCIL,HTTP://OPENDATACOMMUNITIES.ORG/ID/METROPOLITAN-DISTRICT-COUNCIL/WALSALL,31/12/2016,ECONOMY & ENVIRONMENT,TOOLSTATION LTD,16/12/2016,H59620161220MUZPFFWEK-1,17.64,DEPOT-GENERAL MATERIALS,HARDWARE STORES,GPC
WALSALL COUNCIL,HTTP://OPENDATACOMMUNITIES.ORG/ID/METROPOLITAN-DISTRICT-COUNCIL/WALSALL,31/12/2016,ECONOMY & ENVIRONMENT,TRAINLINE,16/12/2016,H59620161220BQTNIMSNR-1,58.80,NEW ART GALLERY - ADMIN-OFFICER/STAFF-PUBLIC TRANSPORT,PASSENGER RAILWAYS,GPC
WALSALL COUNCIL,HTTP://OPENDATACOMMUNITIES.ORG/ID/METROPOLITAN-DISTRICT-COUNCIL/WALSALL,31/12/2016,CHILDRENS SERVICES,ASDA HOME SHOPPING,16/12/2016,H59620161220EVEMAOOGB-1,0.34,EARLY YEARS AND DISABILITIES S-FOOD AND BEVERAGES-PROVISIONS,GROCERY STORES AND SUPERMARKETS,GPC
WALSALL COUNCIL,HTTP://OPENDATACOMMUNITIES.ORG/ID/METROPOLITAN-DISTRICT-COUNCIL/WALSALL,31/12/2016,,ASDA HOME SHOPPING,16/12/2016,H59620161220KXXZAUNWN-1,51.41,-FOOD AND BEVERAGES-PROVISIONS,GROCERY STORES AND SUPERMARKETS,GPC
WALSALL COUNCIL,HTTP://OPENDATACOMMUNITIES.ORG/ID/METROPOLITAN-DISTRICT-COUNCIL/WALSALL,31/12/2016,CHANGE & GOVERNANCE,POUNDWORLD RETAIL,16/12/2016,H59620161220MNJDVQHXR-1,5.00,ACCOMMODATION SERVICES MANAGEM-MISCELLANEOUS SUPPLIES,DISCOUNT STORES,GPC
WALSALL COUNCIL,HTTP://OPENDATACOMMUNITIES.ORG/ID/METROPOLITAN-DISTRICT-COUNCIL/WALSALL,31/12/2016,CHANGE & GOVERNANCE,B&M RETAIL LTD,16/12/2016,H59620161220QELRXTFKA-1,8.98,ACCOMMODATION SERVICES MANAGEM-MISCELLANEOUS SUPPLIES,DISCOUNT STORES,GPC
WALSALL COUNCIL,HTTP://OPENDATACOMMUNITIES.ORG/ID/METROPOLITAN-DISTRICT-COUNCIL/WALSALL,31/12/2016,CHANGE & GOVERNANCE,TESCO STORES 6161,16/12/2016,H59620161220JCNPDFWSX-1,5.50,ADVICE & GUIDANCE SERVICE-FOOD AND BEVERAGES-PROVISIONS,GROCERY STORES AND SUPERMARKETS,GPC
WALSALL COUNCIL,HTTP://OPENDATACOMMUNITIES.ORG/ID/METROPOLITAN-DISTRICT-COUNCIL/WALSALL,31/12/2016,CHANGE & GOVERNANCE,TESCO STORES 6161,16/12/2016,H59620161220JCNPDFWSX-2,1.50,ADVICE & GUIDANCE SERVICE-FOOD AND BEVERAGES-PROVISIONS,GROCERY STORES AND SUPERMARKETS,GPC
WALSALL COUNCIL,HTTP://OPENDATACOMMUNITIES.ORG/ID/METROPOLITAN-DISTRICT-COUNCIL/WALSALL,31/12/2016,CHILDRENS SERVICES,W M MORRISONS.COM,16/12/2016,H59620161220XBSUGFGII-1,8.04,BLUEBELLS-FOOD AND BEVERAGES-PROVISIONS,GROCERY STORES AND SUPERMARKETS,GPC
WALSALL COUNCIL,HTTP://OPENDATACOMMUNITIES.ORG/ID/METROPOLITAN-DISTRICT-COUNCIL/WALSALL,31/12/2016,CHILDRENS SERVICES,W M MORRISONS.COM,16/12/2016,H59620161220XBSUGFGII-2,84.81,BLUEBELLS-FOOD AND BEVERAGES-PROVISIONS,GROCERY STORES AND SUPERMARKETS,GPC
WALSALL COUNCIL,HTTP://OPENDATACOMMUNITIES.ORG/ID/METROPOLITAN-DISTRICT-COUNCIL/WALSALL,31/12/2016,CHILDRENS SERVICES,HOPWELLS LTD,16/12/2016,H59620161220FTRHDKCOP-1,154.86,MARY ELLIOTT SPECIAL SCHOOL-BREAD-GENERAL-PROVISIONS,CATERERS,GPC
WALSALL COUNCIL,HTTP://OPENDATACOMMUNITIES.ORG/ID/METROPOLITAN-DISTRICT-COUNCIL/WALSALL,31/12/2016,ECONOMY & ENVIRONMENT,PRICEWISE BARGAINS,17/12/2016,H59620161220FHQMJORMM-1,5.00,DARLASTON DISTRICT CENTRE-EVENTS,GROCERY STORES AND SUPERMARKETS,GPC
WALSALL COUNCIL,HTTP://OPENDATACOMMUNITIES.ORG/ID/METROPOLITAN-DISTRICT-COUNCIL/WALSALL,31/12/2016,ECONOMY & ENVIRONMENT,WILKO RETAIL LIMIT,17/12/2016,H59620161220GJRDPLIQV-1,150.00,DARLASTON DISTRICT CENTRE-EVENTS,HOUSEHOLD APPLIANCE STORES,GPC
WALSALL COUNCIL,HTTP://OPENDATACOMMUNITIES.ORG/ID/METROPOLITAN-DISTRICT-COUNCIL/WALSALL,31/12/2016,CHILDRENS SERVICES,CURRYS ONLINE,16/12/2016,H59620161220JTKYVYNRD-1,159.99,REDRUTH ROAD-FURNITURE & EQUIPMENT,ELECTRONIC SALES,GPC
WALSALL COUNCIL,HTTP://OPENDATACOMMUNITIES.ORG/ID/METROPOLITAN-DISTRICT-COUNCIL/WALSALL,31/12/2016,CHILDRENS SERVICES,SILVER BLADES - CA,16/12/2016,H59620161220NXPGQLOCN-1,8.50,"43A HILTON ROAD, WILLENHALL-RESIDENTS PERSONAL EXPENSES-AL",RECREATIONAL AND SPORTING CAMPS,GPC
WALSALL COUNCIL,HTTP://OPENDATACOMMUNITIES.ORG/ID/METROPOLITAN-DISTRICT-COUNCIL/WALSALL,31/12/2016,CHILDRENS SERVICES,SILVER BLADES - CA,16/12/2016,H59620161220UGURRVXDR-1,24.00,"43A HILTON ROAD, WILLENHALL-RESIDENTS PERSONAL EXPENSES-AL",RECREATIONAL AND SPORTING CAMPS,GPC
WALSALL COUNCIL,HTTP://OPENDATACOMMUNITIES.ORG/ID/METROPOLITAN-DISTRICT-COUNCIL/WALSALL,31/12/2016,ECONOMY & ENVIRONMENT,SCREWFIX DIRECT,16/12/2016,H59620161220AMFRYRFUI-1,34.97,COMMUNITY LIASON-GENERAL MATERIALS,LUMBER & BUILDING MATERIALS STORES,GPC
WALSALL COUNCIL,HTTP://OPENDATACOMMUNITIES.ORG/ID/METROPOLITAN-DISTRICT-COUNCIL/WALSALL,31/12/2016,CHILDRENS SERVICES,W M MORRISON PLC,16/12/2016,H59620161220GXBRVXWJB-1,27.48,"43A HILTON ROAD, WILLENHALL-FOOD AND BEVERAGES-PROVISIONS",GROCERY STORES AND SUPERMARKETS,GPC
WALSALL COUNCIL,HTTP://OPENDATACOMMUNITIES.ORG/ID/METROPOLITAN-DISTRICT-COUNCIL/WALSALL,31/12/2016,CHILDRENS SERVICES,W M MORRISON PLC,16/12/2016,H59620161220GXBRVXWJB-2,16.08,"43A HILTON ROAD, WILLENHALL-FOOD AND BEVERAGES-PROVISIONS",GROCERY STORES AND SUPERMARKETS,GPC
WALSALL COUNCIL,HTTP://OPENDATACOMMUNITIES.ORG/ID/METROPOLITAN-DISTRICT-COUNCIL/WALSALL,31/12/2016,CHILDRENS SERVICES,W M MORRISON PLC,16/12/2016,H59620161220JYOTVROQW-1,39.07,"43A HILTON ROAD, WILLENHALL-FOOD AND BEVERAGES-PROVISIONS",GROCERY STORES AND SUPERMARKETS,GPC
WALSALL COUNCIL,HTTP://OPENDATACOMMUNITIES.ORG/ID/METROPOLITAN-DISTRICT-COUNCIL/WALSALL,31/12/2016,CHILDRENS SERVICES,W M MORRISON PLC,16/12/2016,H59620161220JYOTVROQW-2,209.86,"43A HILTON ROAD, WILLENHALL-FOOD AND BEVERAGES-PROVISIONS",GROCERY STORES AND SUPERMARKETS,GPC
WALSALL COUNCIL,HTTP://OPENDATACOMMUNITIES.ORG/ID/METROPOLITAN-DISTRICT-COUNCIL/WALSALL,31/12/2016,CHILDRENS SERVICES,LIDL UK,18/12/2016,H59620161220NKREONYQD-1,51.58,SPINDLETREE-FOOD AND BEVERAGES-PROVISIONS,GROCERY STORES AND SUPERMARKETS,GPC
WALSALL COUNCIL,HTTP://OPENDATACOMMUNITIES.ORG/ID/METROPOLITAN-DISTRICT-COUNCIL/WALSALL,31/12/2016,CHILDRENS SERVICES,LIDL UK,18/12/2016,H59620161220NKREONYQD-2,4.77,SPINDLETREE-FOOD AND BEVERAGES-PROVISIONS,GROCERY STORES AND SUPERMARKETS,GPC
WALSALL COUNCIL,HTTP://OPENDATACOMMUNITIES.ORG/ID/METROPOLITAN-DISTRICT-COUNCIL/WALSALL,31/12/2016,CHILDRENS SERVICES,ALDI,15/12/2016,H59620161217NSWDZLPIG-1,13.97,SPINDLETREE-EQUIP NEW-CLEANING,GROCERY STORES AND SUPERMARKETS,GPC
WALSALL COUNCIL,HTTP://OPENDATACOMMUNITIES.ORG/ID/METROPOLITAN-DISTRICT-COUNCIL/WALSALL,31/12/2016,CHILDRENS SERVICES,ALDI,15/12/2016,H59620161217TWRQKSCLL-1,95.00,SPINDLETREE-FOOD AND BEVERAGES-PROVISIONS,GROCERY STORES AND SUPERMARKETS,GPC
WALSALL COUNCIL,HTTP://OPENDATACOMMUNITIES.ORG/ID/METROPOLITAN-DISTRICT-COUNCIL/WALSALL,31/12/2016,CHILDRENS SERVICES,ALDI,15/12/2016,H59620161217TWRQKSCLL-2,14.75,SPINDLETREE-FOOD AND BEVERAGES-PROVISIONS,GROCERY STORES AND SUPERMARKETS,GPC
WALSALL COUNCIL,HTTP://OPENDATACOMMUNITIES.ORG/ID/METROPOLITAN-DISTRICT-COUNCIL/WALSALL,31/12/2016,ECONOMY & ENVIRONMENT,SUNNY ELECTRICAL,15/12/2016,H59620161217SQXLKTDAC-1,12.00,INFRASTRUCTURE MAINTENANCE-GENERAL MATERIALS,ELECTRICAL PARTS AND EQUIPMENT,GPC
WALSALL COUNCIL,HTTP://OPENDATACOMMUNITIES.ORG/ID/METROPOLITAN-DISTRICT-COUNCIL/WALSALL,31/12/2016,CHILDRENS SERVICES,B&M RETAIL LTD,15/12/2016,H59620161217VSPXPBXVO-1,117.26,SPINDLETREE-NEW-FURNITURE & EQUIPMENT,DISCOUNT STORES,GPC
WALSALL COUNCIL,HTTP://OPENDATACOMMUNITIES.ORG/ID/METROPOLITAN-DISTRICT-COUNCIL/WALSALL,31/12/2016,CHILDRENS SERVICES,SUPPLIES TEAM,13/12/2016,H59620161217ZOIVYCGBY-1,106.01,PELSALL EDC-PAYMENT TO CONTRACTOR EXTERNAL,"OFFICE, SCHOOL SUPPLY, AND STATIONERY STORES",GPC
WALSALL COUNCIL,HTTP://OPENDATACOMMUNITIES.ORG/ID/METROPOLITAN-DISTRICT-COUNCIL/WALSALL,31/12/2016,CHILDRENS SERVICES,AMAZON UK RETAIL AMAZON.C,14/12/2016,H59620161217YDNHZVRSO-1,24.04,ADMINISTRATIVE SUPPLIES-GENERAL MATERIALS,MISCELLANEOUS AND SPECIALTY RETAIL STORES,GPC
WALSALL COUNCIL,HTTP://OPENDATACOMMUNITIES.ORG/ID/METROPOLITAN-DISTRICT-COUNCIL/WALSALL,31/12/2016,CHILDRENS SERVICES,ASDA SUPERSTORE,15/12/2016,H59620161217SNDRJNQRK-1,8.00,BLAKENALL CHILDCARE SERVICES-EVENTS,GROCERY STORES AND SUPERMARKETS,GPC
WALSALL COUNCIL,HTTP://OPENDATACOMMUNITIES.ORG/ID/METROPOLITAN-DISTRICT-COUNCIL/WALSALL,31/12/2016,CHILDRENS SERVICES,SMYTHS TOYS UK LTD,15/12/2016,H59620161217LJNNBMINE-1,28.03,"43A HILTON ROAD, WILLENHALL-RESIDENTS PERSONAL EXPENSES-AL","GAME, TOY, AND HOBBY SHOPS",GPC
WALSALL COUNCIL,HTTP://OPENDATACOMMUNITIES.ORG/ID/METROPOLITAN-DISTRICT-COUNCIL/WALSALL,31/12/2016,CHANGE & GOVERNANCE,CRAZY HOUSE FURNITURE,15/12/2016,H59620161217ZXYXEMBQC-1,60.00,WALSALL CRISIS SUPPORT SCHEME-CRISIS SUPPORT PAYMENTS,"EQUIPMENT, FURNITURE, AND HOME FURNISHINGS STORES ",GPC
WALSALL COUNCIL,HTTP://OPENDATACOMMUNITIES.ORG/ID/METROPOLITAN-DISTRICT-COUNCIL/WALSALL,31/12/2016,CHANGE & GOVERNANCE,CRAZY HOUSE FURNITURE,15/12/2016,H59620161217UMSAEUNDM-1,285.00,WALSALL CRISIS SUPPORT SCHEME-CRISIS SUPPORT PAYMENTS,"EQUIPMENT, FURNITURE, AND HOME FURNISHINGS STORES ",GPC
WALSALL COUNCIL,HTTP://OPENDATACOMMUNITIES.ORG/ID/METROPOLITAN-DISTRICT-COUNCIL/WALSALL,31/12/2016,CHANGE & GOVERNANCE,CRAZY HOUSE FURNITURE,15/12/2016,H59620161217OOKMYIDCH-1,65.00,WALSALL CRISIS SUPPORT SCHEME-CRISIS SUPPORT PAYMENTS,"EQUIPMENT, FURNITURE, AND HOME FURNISHINGS STORES ",GPC
WALSALL COUNCIL,HTTP://OPENDATACOMMUNITIES.ORG/ID/METROPOLITAN-DISTRICT-COUNCIL/WALSALL,31/12/2016,CHANGE & GOVERNANCE,CRAZY HOUSE FURNITURE,15/12/2016,H59620161217PTWTGARLS-1,715.00,WALSALL CRISIS SUPPORT SCHEME-CRISIS SUPPORT PAYMENTS,"EQUIPMENT, FURNITURE, AND HOME FURNISHINGS STORES ",GPC
WALSALL COUNCIL,HTTP://OPENDATACOMMUNITIES.ORG/ID/METROPOLITAN-DISTRICT-COUNCIL/WALSALL,31/12/2016,CHANGE & GOVERNANCE,CRAZY HOUSE FURNITURE,15/12/2016,H59620161217DHFYFWNQQ-1,60.00,WALSALL CRISIS SUPPORT SCHEME-FURNITURE & EQUIPMENT,"EQUIPMENT, FURNITURE, AND HOME FURNISHINGS STORES ",GPC
WALSALL COUNCIL,HTTP://OPENDATACOMMUNITIES.ORG/ID/METROPOLITAN-DISTRICT-COUNCIL/WALSALL,31/12/2016,CHANGE & GOVERNANCE,CRAZY HOUSE FURNITURE,15/12/2016,H59620161217HPXQOHDYR-1,455.00,WALSALL CRISIS SUPPORT SCHEME-CRISIS SUPPORT PAYMENTS,"EQUIPMENT, FURNITURE, AND HOME FURNISHINGS STORES ",GPC
WALSALL COUNCIL,HTTP://OPENDATACOMMUNITIES.ORG/ID/METROPOLITAN-DISTRICT-COUNCIL/WALSALL,31/12/2016,CHANGE & GOVERNANCE,CRAZY HOUSE FURNITURE,15/12/2016,H59620161217IBTRCYTZX-1,660.00,WALSALL CRISIS SUPPORT SCHEME-CRISIS SUPPORT PAYMENTS,"EQUIPMENT, FURNITURE, AND HOME FURNISHINGS STORES ",GPC
WALSALL COUNCIL,HTTP://OPENDATACOMMUNITIES.ORG/ID/METROPOLITAN-DISTRICT-COUNCIL/WALSALL,31/12/2016,CHILDRENS SERVICES,ARGOS WALSALL CROW,15/12/2016,H59620161217FECPPSZUE-1,12.99,"43A HILTON ROAD, WILLENHALL-RESIDENTS PERSONAL EXPENSES-AL",DISCOUNT STORES,GPC
WALSALL COUNCIL,HTTP://OPENDATACOMMUNITIES.ORG/ID/METROPOLITAN-DISTRICT-COUNCIL/WALSALL,31/12/2016,,COUNTRYWIDE RESIDENTIA,15/12/2016,H59620161217PVZAGHMGT-1,625.00,-PROFESSIONAL FEES AND SERVICES,PROFESSIONAL SERVICES,GPC
WALSALL COUNCIL,HTTP://OPENDATACOMMUNITIES.ORG/ID/METROPOLITAN-DISTRICT-COUNCIL/WALSALL,31/12/2016,CHILDRENS SERVICES,WWW.DRUGS-CABINETS.CO.,15/12/2016,H59620161217JNNDJNHOT-1,17.27,BLUEBELLS-SURVEYS & PROF SERVICES-PAYMEN,"ARCHITECTURAL, ENGINEERING, AND SURVEYING SERVICES",GPC
WALSALL COUNCIL,HTTP://OPENDATACOMMUNITIES.ORG/ID/METROPOLITAN-DISTRICT-COUNCIL/WALSALL,31/12/2016,ECONOMY & ENVIRONMENT,ASDA SUPERSTORE,15/12/2016,H59620161217WIRXUXLIS-1,0.05,ACTIVE ENGLAND-FOOD AND BEVERAGES-PROVISIONS,GROCERY STORES AND SUPERMARKETS,GPC
WALSALL COUNCIL,HTTP://OPENDATACOMMUNITIES.ORG/ID/METROPOLITAN-DISTRICT-COUNCIL/WALSALL,31/12/2016,ECONOMY & ENVIRONMENT,ASDA SUPERSTORE,15/12/2016,H59620161217WIRXUXLIS-2,8.95,ACTIVE ENGLAND-FOOD AND BEVERAGES-PROVISIONS,GROCERY STORES AND SUPERMARKETS,GPC
WALSALL COUNCIL,HTTP://OPENDATACOMMUNITIES.ORG/ID/METROPOLITAN-DISTRICT-COUNCIL/WALSALL,31/12/2016,CHANGE & GOVERNANCE,TESCO STORES 6161,15/12/2016,H59620161217WXGLRCLNY-1,26.00,WALSALL CRISIS SUPPORT SCHEME-CRISIS SUPPORT PAYMENTS,GROCERY STORES AND SUPERMARKETS,GPC
WALSALL COUNCIL,HTTP://OPENDATACOMMUNITIES.ORG/ID/METROPOLITAN-DISTRICT-COUNCIL/WALSALL,31/12/2016,CHANGE & GOVERNANCE,BORSHCH LIMITED,15/12/2016,H59620161217DMUNBJGLD-1,535.00,WALSALL CRISIS SUPPORT SCHEME-CRISIS SUPPORT PAYMENTS,ELECTRONIC SALES,GPC
WALSALL COUNCIL,HTTP://OPENDATACOMMUNITIES.ORG/ID/METROPOLITAN-DISTRICT-COUNCIL/WALSALL,31/12/2016,CHANGE & GOVERNANCE,TESCO STORES 6161,15/12/2016,H59620161217DRPUKNLAG-1,10.00,WALSALL CRISIS SUPPORT SCHEME-CRISIS SUPPORT PAYMENTS,GROCERY STORES AND SUPERMARKETS,GPC
WALSALL COUNCIL,HTTP://OPENDATACOMMUNITIES.ORG/ID/METROPOLITAN-DISTRICT-COUNCIL/WALSALL,31/12/2016,CHANGE & GOVERNANCE,TESCO STORES 6161,15/12/2016,H59620161217DRPUKNLAG-2,4.99,WALSALL CRISIS SUPPORT SCHEME-CRISIS SUPPORT PAYMENTS,GROCERY STORES AND SUPERMARKETS,GPC
WALSALL COUNCIL,HTTP://OPENDATACOMMUNITIES.ORG/ID/METROPOLITAN-DISTRICT-COUNCIL/WALSALL,31/12/2016,CHANGE & GOVERNANCE,TESCO STORES 6161,15/12/2016,H59620161217QHMTWFVSZ-1,11.20,ACCOMMODATION SERVICES MANAGEM-FOOD AND BEVERAGES-PROVISIONS,GROCERY STORES AND SUPERMARKETS,GPC
WALSALL COUNCIL,HTTP://OPENDATACOMMUNITIES.ORG/ID/METROPOLITAN-DISTRICT-COUNCIL/WALSALL,31/12/2016,CHANGE & GOVERNANCE,TESCO STORES 6161,15/12/2016,H59620161217QHMTWFVSZ-2,2.30,ACCOMMODATION SERVICES MANAGEM-FOOD AND BEVERAGES-PROVISIONS,GROCERY STORES AND SUPERMARKETS,GPC
WALSALL COUNCIL,HTTP://OPENDATACOMMUNITIES.ORG/ID/METROPOLITAN-DISTRICT-COUNCIL/WALSALL,31/12/2016,CHANGE & GOVERNANCE,AMAZON UK MARKETPLACE,15/12/2016,H59620161217MYVTGQFYC-1,11.95,ACCOMMODATION SERVICES MANAGEM-LIBRARY BOOKS,BOOK STORES,GPC
WALSALL COUNCIL,HTTP://OPENDATACOMMUNITIES.ORG/ID/METROPOLITAN-DISTRICT-COUNCIL/WALSALL,31/12/2016,CHILDRENS SERVICES,AMAZON UK MARKETPLACE,15/12/2016,H59620161217DGZHLAGNT-1,19.99,GENERAL RESOURCES & MISC-GENERAL MATERIALS,MISCELLANEOUS AND SPECIALTY RETAIL STORES,GPC
WALSALL COUNCIL,HTTP://OPENDATACOMMUNITIES.ORG/ID/METROPOLITAN-DISTRICT-COUNCIL/WALSALL,31/12/2016,CHILDRENS SERVICES,AMAZON UK RETAIL,15/12/2016,H59620161217VLVYHUKAR-1,24.16,HISTORY/GEOG/SOCIAL EDUC-GENERAL MATERIALS,OTHER DIRECT MARKETING-OTHER DIRECT MARKETERS,GPC
WALSALL COUNCIL,HTTP://OPENDATACOMMUNITIES.ORG/ID/METROPOLITAN-DISTRICT-COUNCIL/WALSALL,31/12/2016,CHILDRENS SERVICES,ASDA STORES,15/12/2016,H59620161217QCVEXSVJI-1,2.50,LOCALITY FAMILY SUPPORT-WEST-FOOD AND BEVERAGES-PROVISIONS,GROCERY STORES AND SUPERMARKETS,GPC
WALSALL COUNCIL,HTTP://OPENDATACOMMUNITIES.ORG/ID/METROPOLITAN-DISTRICT-COUNCIL/WALSALL,31/12/2016,CHILDRENS SERVICES,ARGOS RETAIL GROUP,15/12/2016,H59620161217OBOTOFICR-1,13.94,57 LICHFIELD ROAD-FURNITURE & EQUIPMENT,DISCOUNT STORES,GPC
WALSALL COUNCIL,HTTP://OPENDATACOMMUNITIES.ORG/ID/METROPOLITAN-DISTRICT-COUNCIL/WALSALL,31/12/2016,CHANGE & GOVERNANCE,TESCO STORES 6161,15/12/2016,H59620161217TKSZBEOOE-1,4.99,YOUNG PERSONS HOMELESS SERVICE-MISCELLANEOUS SUPPLIES,GROCERY STORES AND SUPERMARKETS,GPC
WALSALL COUNCIL,HTTP://OPENDATACOMMUNITIES.ORG/ID/METROPOLITAN-DISTRICT-COUNCIL/WALSALL,31/12/2016,CHANGE & GOVERNANCE,TESCO STORES 6161,15/12/2016,H59620161217TKSZBEOOE-2,10.00,YOUNG PERSONS HOMELESS SERVICE-MISCELLANEOUS SUPPLIES,GROCERY STORES AND SUPERMARKETS,GPC
WALSALL COUNCIL,HTTP://OPENDATACOMMUNITIES.ORG/ID/METROPOLITAN-DISTRICT-COUNCIL/WALSALL,31/12/2016,CHILDRENS SERVICES,ASDA SUPERSTORE,15/12/2016,H59620161217WFLSDEBGF-1,2.00,REDRUTH ROAD-FOOD AND BEVERAGES-PROVISIONS,GROCERY STORES AND SUPERMARKETS,GPC
WALSALL COUNCIL,HTTP://OPENDATACOMMUNITIES.ORG/ID/METROPOLITAN-DISTRICT-COUNCIL/WALSALL,31/12/2016,CHILDRENS SERVICES,ASDA SUPERSTORE,15/12/2016,H59620161217WFLSDEBGF-2,27.30,REDRUTH ROAD-FOOD AND BEVERAGES-PROVISIONS,GROCERY STORES AND SUPERMARKETS,GPC
WALSALL COUNCIL,HTTP://OPENDATACOMMUNITIES.ORG/ID/METROPOLITAN-DISTRICT-COUNCIL/WALSALL,31/12/2016,ECONOMY & ENVIRONMENT,UK-DOCUMENT-SERVIC,15/12/2016,H59620161217JQMJZDWWB-1,15.00,YEI (IMPACT) PROGRAMME-MISCELLANEOUS SUPPLIES,INFORMATION RETRIEVAL SERVICES,GPC
WALSALL COUNCIL,HTTP://OPENDATACOMMUNITIES.ORG/ID/METROPOLITAN-DISTRICT-COUNCIL/WALSALL,31/12/2016,ECONOMY & ENVIRONMENT,UK-DOCUMENT-SERVIC,15/12/2016,H59620161217JQMJZDWWB-2,15.00,YEI ESF FUNDING-MISCELLANEOUS SUPPLIES,INFORMATION RETRIEVAL SERVICES,GPC
WALSALL COUNCIL,HTTP://OPENDATACOMMUNITIES.ORG/ID/METROPOLITAN-DISTRICT-COUNCIL/WALSALL,31/12/2016,ECONOMY & ENVIRONMENT,TESCO DIRECT,15/12/2016,H59620161217WWJSKFGUP-1,15.00,YEI (IMPACT) PROGRAMME-MISCELLANEOUS SUPPLIES,MISCELLANEOUS AND SPECIALTY RETAIL STORES,GPC
WALSALL COUNCIL,HTTP://OPENDATACOMMUNITIES.ORG/ID/METROPOLITAN-DISTRICT-COUNCIL/WALSALL,31/12/2016,ECONOMY & ENVIRONMENT,TESCO DIRECT,15/12/2016,H59620161217WWJSKFGUP-2,15.00,YEI ESF FUNDING-MISCELLANEOUS SUPPLIES,MISCELLANEOUS AND SPECIALTY RETAIL STORES,GPC
WALSALL COUNCIL,HTTP://OPENDATACOMMUNITIES.ORG/ID/METROPOLITAN-DISTRICT-COUNCIL/WALSALL,31/12/2016,SOCIAL CARE & INCLUSION,ASDA HOME SHOPPING,15/12/2016,H59620161217WIFLXSFFY-1,64.93,FALLINGS HEATH-FOOD AND BEVERAGES-PROVISIONS,GROCERY STORES AND SUPERMARKETS,GPC
WALSALL COUNCIL,HTTP://OPENDATACOMMUNITIES.ORG/ID/METROPOLITAN-DISTRICT-COUNCIL/WALSALL,31/12/2016,SOCIAL CARE & INCLUSION,ASDA HOME SHOPPING,15/12/2016,H59620161217WIFLXSFFY-2,7.80,FALLINGS HEATH-FOOD AND BEVERAGES-PROVISIONS,GROCERY STORES AND SUPERMARKETS,GPC
WALSALL COUNCIL,HTTP://OPENDATACOMMUNITIES.ORG/ID/METROPOLITAN-DISTRICT-COUNCIL/WALSALL,31/12/2016,CHILDRENS SERVICES,GRO HM PASSPORT OFFICE,15/12/2016,H59620161217RAKIXCEEI-1,23.40,SAFEGUARDING & FAMILY SUPPORT-REGISTRAR OF BIRTHS/DEATHS/MAR,GOVERNMENT SERVICES,GPC
WALSALL COUNCIL,HTTP://OPENDATACOMMUNITIES.ORG/ID/METROPOLITAN-DISTRICT-COUNCIL/WALSALL,31/12/2016,CHILDRENS SERVICES,ASDA HOME SHOPPING,15/12/2016,H59620161217EXSRJPIGG-1,30.70,TROUBLED FAMILIES GRANT (STREN-FOOD AND BEVERAGES-PROVISIONS,GROCERY STORES AND SUPERMARKETS,GPC
WALSALL COUNCIL,HTTP://OPENDATACOMMUNITIES.ORG/ID/METROPOLITAN-DISTRICT-COUNCIL/WALSALL,31/12/2016,CHANGE & GOVERNANCE,COUNTY HOTEL - THE,15/12/2016,H59620161217UIKSQUVHU-1,225.00,BED & BREAKFAST PAYMENTS-HOTEL ACCOMMODATION-EMPLOYEES,"HOTELS, MOTELS, RESORTS",GPC
WALSALL COUNCIL,HTTP://OPENDATACOMMUNITIES.ORG/ID/METROPOLITAN-DISTRICT-COUNCIL/WALSALL,31/12/2016,ECONOMY & ENVIRONMENT,CONTRADO IMAGING,15/12/2016,H59620161217EILAJDMEB-1,19.49,CREATIVE DEVELOPMENT TEAM - MA-STATIONERY & GENERAL SUPPLIES-,"CARD, GIFT, NOVELTY, AND SOUVENIR SHOPS",GPC
WALSALL COUNCIL,HTTP://OPENDATACOMMUNITIES.ORG/ID/METROPOLITAN-DISTRICT-COUNCIL/WALSALL,31/12/2016,CHILDRENS SERVICES,PREMIER INN44016565,14/12/2016,H59620161217ESBEJOJVP-1,102.00,LOOKED AFTER CHILDRENS SOCIAL -SUPPORT UNDER SECTION 23 OF TH,PREMIER INN,GPC
WALSALL COUNCIL,HTTP://OPENDATACOMMUNITIES.ORG/ID/METROPOLITAN-DISTRICT-COUNCIL/WALSALL,31/12/2016,CHANGE & GOVERNANCE,CRAZY HOUSE FURNITURE,15/12/2016,H59620161217JTDSTOHRI-1,95.00,WALSALL CRISIS SUPPORT SCHEME-FURNITURE & EQUIPMENT,"EQUIPMENT, FURNITURE, AND HOME FURNISHINGS STORES ",GPC
WALSALL COUNCIL,HTTP://OPENDATACOMMUNITIES.ORG/ID/METROPOLITAN-DISTRICT-COUNCIL/WALSALL,31/12/2016,CHANGE & GOVERNANCE,CRAZY HOUSE FURNITURE,15/12/2016,H59620161217KKYFHNZQP-1,90.00,WALSALL CRISIS SUPPORT SCHEME-FURNITURE & EQUIPMENT,"EQUIPMENT, FURNITURE, AND HOME FURNISHINGS STORES ",GPC
WALSALL COUNCIL,HTTP://OPENDATACOMMUNITIES.ORG/ID/METROPOLITAN-DISTRICT-COUNCIL/WALSALL,31/12/2016,ECONOMY & ENVIRONMENT,TOOLSTATION LTD,15/12/2016,H59620161217EHOGXGDMM-1,4.77,INFRASTRUCTURE MAINTENANCE-GENERAL MATERIALS,HARDWARE STORES,GPC
WALSALL COUNCIL,HTTP://OPENDATACOMMUNITIES.ORG/ID/METROPOLITAN-DISTRICT-COUNCIL/WALSALL,31/12/2016,CHILDRENS SERVICES,TESCO STORES 5503,15/12/2016,H59620161217GXGYYUKUI-1,22.00,GENERAL SUPPLIES SH-GENERAL MATERIALS,GROCERY STORES AND SUPERMARKETS,GPC
WALSALL COUNCIL,HTTP://OPENDATACOMMUNITIES.ORG/ID/METROPOLITAN-DISTRICT-COUNCIL/WALSALL,31/12/2016,CHANGE & GOVERNANCE,WILKO RETAIL LIMIT,14/12/2016,H59620161216OYQYMYPPU-1,40.05,WALSALL CRISIS SUPPORT SCHEME-FURNITURE & EQUIPMENT,HOUSEHOLD APPLIANCE STORES,GPC
WALSALL COUNCIL,HTTP://OPENDATACOMMUNITIES.ORG/ID/METROPOLITAN-DISTRICT-COUNCIL/WALSALL,31/12/2016,CHANGE & GOVERNANCE,WILKO RETAIL LIMIT,14/12/2016,H59620161216CZSICPMLY-1,24.75,WALSALL CRISIS SUPPORT SCHEME-FURNITURE & EQUIPMENT,HOUSEHOLD APPLIANCE STORES,GPC
WALSALL COUNCIL,HTTP://OPENDATACOMMUNITIES.ORG/ID/METROPOLITAN-DISTRICT-COUNCIL/WALSALL,31/12/2016,CHANGE & GOVERNANCE,"BOOTS,WALSALL",14/12/2016,H59620161216EFEUXSWUE-1,15.07,WALSALL CRISIS SUPPORT SCHEME-CRISIS SUPPORT PAYMENTS,"DRUG STORES, PHARMACIES",GPC
WALSALL COUNCIL,HTTP://OPENDATACOMMUNITIES.ORG/ID/METROPOLITAN-DISTRICT-COUNCIL/WALSALL,31/12/2016,ECONOMY & ENVIRONMENT,WALSALL WOOD,14/12/2016,H59620161216FEPOUEQIH-1,28.97,INFRASTRUCTURE MAINTENANCE-GENERAL MATERIALS,LUMBER & BUILDING MATERIALS STORES,GPC
WALSALL COUNCIL,HTTP://OPENDATACOMMUNITIES.ORG/ID/METROPOLITAN-DISTRICT-COUNCIL/WALSALL,31/12/2016,ECONOMY & ENVIRONMENT,AMAZON UK MARKETPLACE,14/12/2016,H59620161216WPXSMHFMO-1,6.00,BLOXWICH LEISURE CENTRE-FURNITURE & EQUIPMENT,MISCELLANEOUS AND SPECIALTY RETAIL STORES,GPC
WALSALL COUNCIL,HTTP://OPENDATACOMMUNITIES.ORG/ID/METROPOLITAN-DISTRICT-COUNCIL/WALSALL,31/12/2016,ECONOMY & ENVIRONMENT,BOC TEL ORDER,14/12/2016,H59620161216IBGRVSEWX-1,16.80,WALSALL TOWN HALL-CHEMICALS & SCIENTIFIC MATS-MA,OTHER CHEMICALS AND ALLIED PRODUCTS,GPC
WALSALL COUNCIL,HTTP://OPENDATACOMMUNITIES.ORG/ID/METROPOLITAN-DISTRICT-COUNCIL/WALSALL,31/12/2016,ECONOMY & ENVIRONMENT,THE BLUECOAT LTD,14/12/2016,H59620161216RNMFOVTDB-1,17.50,GALLERY LIBRARY-LIBRARY BOOKS,ART DEALERS AND GALLERIES,GPC
WALSALL COUNCIL,HTTP://OPENDATACOMMUNITIES.ORG/ID/METROPOLITAN-DISTRICT-COUNCIL/WALSALL,31/12/2016,CHANGE & GOVERNANCE,FOREIGN EXCHANGE FEE,15/12/2016,H59620161216MGILUGIJM-1,1.32,APPLICATIONS-RECHARGE FOR MAINTENANCE/APPLI,,GPC
WALSALL COUNCIL,HTTP://OPENDATACOMMUNITIES.ORG/ID/METROPOLITAN-DISTRICT-COUNCIL/WALSALL,31/12/2016,CHANGE & GOVERNANCE,MAILCHIMP,14/12/2016,H59620161216RTMQWODSM-1,47.85,APPLICATIONS-RECHARGE FOR MAINTENANCE/APPLI,OTHER BUSINESS SERVICES,GPC
WALSALL COUNCIL,HTTP://OPENDATACOMMUNITIES.ORG/ID/METROPOLITAN-DISTRICT-COUNCIL/WALSALL,31/12/2016,CHANGE & GOVERNANCE,SS + JR JOHAL 31968,14/12/2016,H59620161216GIQEUFKCL-1,10.80,WALSALL CRISIS SUPPORT SCHEME-FOOD AND BEVERAGES-PROVISIONS,GROCERY STORES AND SUPERMARKETS,GPC
WALSALL COUNCIL,HTTP://OPENDATACOMMUNITIES.ORG/ID/METROPOLITAN-DISTRICT-COUNCIL/WALSALL,31/12/2016,CHILDRENS SERVICES,WWW.FCO.GOV.UK,14/12/2016,H59620161216QXSYIBTFJ-1,35.50,SAFEGUARDING & FAMILY SUPPORT-REGISTRAR OF BIRTHS/DEATHS/MAR,GOVERNMENT SERVICES,GPC
WALSALL COUNCIL,HTTP://OPENDATACOMMUNITIES.ORG/ID/METROPOLITAN-DISTRICT-COUNCIL/WALSALL,31/12/2016,CHILDRENS SERVICES,SMYTHS TOYS UK LTD,14/12/2016,H59620161216ERVIOJMHP-1,84.99,57 LICHFIELD ROAD-TOYS & GAMES-MATERIALS,"GAME, TOY, AND HOBBY SHOPS",GPC
WALSALL COUNCIL,HTTP://OPENDATACOMMUNITIES.ORG/ID/METROPOLITAN-DISTRICT-COUNCIL/WALSALL,31/12/2016,CHILDRENS SERVICES,ASDA STORES,14/12/2016,H59620161216ZMBHCOSYZ-1,28.00,LOOKED AFTER CHILDRENS SOCIAL -FOOD AND BEVERAGES-PROVISIONS,GROCERY STORES AND SUPERMARKETS,GPC
WALSALL COUNCIL,HTTP://OPENDATACOMMUNITIES.ORG/ID/METROPOLITAN-DISTRICT-COUNCIL/WALSALL,31/12/2016,ECONOMY & ENVIRONMENT,WILKO.COM,14/12/2016,H59620161216NTYIWILDB-1,-0.50,YEI ESF FUNDING-MISCELLANEOUS SUPPLIES,HOUSEHOLD APPLIANCE STORES,GPC
WALSALL COUNCIL,HTTP://OPENDATACOMMUNITIES.ORG/ID/METROPOLITAN-DISTRICT-COUNCIL/WALSALL,31/12/2016,ECONOMY & ENVIRONMENT,WILKO.COM,14/12/2016,H59620161216NTYIWILDB-2,-0.50,YEI (IMPACT) PROGRAMME-MISCELLANEOUS SUPPLIES,HOUSEHOLD APPLIANCE STORES,GPC
WALSALL COUNCIL,HTTP://OPENDATACOMMUNITIES.ORG/ID/METROPOLITAN-DISTRICT-COUNCIL/WALSALL,31/12/2016,ECONOMY & ENVIRONMENT,TESCO DIRECT,14/12/2016,H59620161216XGUWYFTIF-1,-7.50,YEI (IMPACT) PROGRAMME-MISCELLANEOUS SUPPLIES,MISCELLANEOUS AND SPECIALTY RETAIL STORES,GPC
WALSALL COUNCIL,HTTP://OPENDATACOMMUNITIES.ORG/ID/METROPOLITAN-DISTRICT-COUNCIL/WALSALL,31/12/2016,ECONOMY & ENVIRONMENT,TESCO DIRECT,14/12/2016,H59620161216XGUWYFTIF-2,-7.50,YEI ESF FUNDING-MISCELLANEOUS SUPPLIES,MISCELLANEOUS AND SPECIALTY RETAIL STORES,GPC
WALSALL COUNCIL,HTTP://OPENDATACOMMUNITIES.ORG/ID/METROPOLITAN-DISTRICT-COUNCIL/WALSALL,31/12/2016,CHILDRENS SERVICES,EUROFLORIST,14/12/2016,H59620161216DTYQJLICY-1,35.90,ADMINISTRATIVE SUPPLIES-STATIONERY & GENERAL SUPPLIES-,FLORISTS,GPC
WALSALL COUNCIL,HTTP://OPENDATACOMMUNITIES.ORG/ID/METROPOLITAN-DISTRICT-COUNCIL/WALSALL,31/12/2016,CHILDRENS SERVICES,WWW.NEOPOST.CO.UK,14/12/2016,H59620161216GENDQGGUP-1,204.00,LOOKED AFTER CHILDRENS SOCIAL -POSTAGES AND COURIER SERVICES,"STATIONERY, OFFICE SUPPLIES AND WRITING PAPER",GPC
WALSALL COUNCIL,HTTP://OPENDATACOMMUNITIES.ORG/ID/METROPOLITAN-DISTRICT-COUNCIL/WALSALL,31/12/2016,ECONOMY & ENVIRONMENT,ASDA SUPERSTORE,14/12/2016,H59620161216UNJMXVYHM-1,10.90,WALSALL OUTDOOR ADVENTURE CENT-FOOD AND BEVERAGES-PROVISIONS,GROCERY STORES AND SUPERMARKETS,GPC
WALSALL COUNCIL,HTTP://OPENDATACOMMUNITIES.ORG/ID/METROPOLITAN-DISTRICT-COUNCIL/WALSALL,31/12/2016,ECONOMY & ENVIRONMENT,ASDA SUPERSTORE,14/12/2016,H59620161216UNJMXVYHM-2,11.03,WALSALL OUTDOOR ADVENTURE CENT-FOOD AND BEVERAGES-PROVISIONS,GROCERY STORES AND SUPERMARKETS,GPC
WALSALL COUNCIL,HTTP://OPENDATACOMMUNITIES.ORG/ID/METROPOLITAN-DISTRICT-COUNCIL/WALSALL,31/12/2016,CHILDRENS SERVICES,ASDA STORES,14/12/2016,H59620161216NCGJNVGSH-1,16.75,LOCALITY FAMILY SUPPORT-WEST-FOOD AND BEVERAGES-PROVISIONS,GROCERY STORES AND SUPERMARKETS,GPC
WALSALL COUNCIL,HTTP://OPENDATACOMMUNITIES.ORG/ID/METROPOLITAN-DISTRICT-COUNCIL/WALSALL,31/12/2016,CHILDRENS SERVICES,ASDA STORES,14/12/2016,H59620161216NCGJNVGSH-2,0.10,LOCALITY FAMILY SUPPORT-WEST-GENERAL MATERIALS,GROCERY STORES AND SUPERMARKETS,GPC
WALSALL COUNCIL,HTTP://OPENDATACOMMUNITIES.ORG/ID/METROPOLITAN-DISTRICT-COUNCIL/WALSALL,31/12/2016,CHILDRENS SERVICES,AMAZON UK MARKETPLACE,14/12/2016,H59620161216PPSHHNBVC-1,12.99,GENERAL RESOURCES & MISC-GENERAL MATERIALS,BOOK STORES,GPC
WALSALL COUNCIL,HTTP://OPENDATACOMMUNITIES.ORG/ID/METROPOLITAN-DISTRICT-COUNCIL/WALSALL,31/12/2016,CHILDRENS SERVICES,GLS EDUCATIONAL SU,14/12/2016,H59620161216ATXHCPVPB-1,35.99,MATHEMATICS-GENERAL MATERIALS,"COLLEGES, UNIVERSITIES, PROFESSIONAL SCHOOLS",GPC
WALSALL COUNCIL,HTTP://OPENDATACOMMUNITIES.ORG/ID/METROPOLITAN-DISTRICT-COUNCIL/WALSALL,31/12/2016,ECONOMY & ENVIRONMENT,B & Q 1276,14/12/2016,H59620161216PQVMQMGFP-1,7.14,INFRASTRUCTURE MAINTENANCE-GENERAL MATERIALS,LUMBER & BUILDING MATERIALS STORES,GPC
WALSALL COUNCIL,HTTP://OPENDATACOMMUNITIES.ORG/ID/METROPOLITAN-DISTRICT-COUNCIL/WALSALL,31/12/2016,CHANGE & GOVERNANCE,AMAZON UK MARKETPLACE,14/12/2016,H59620161216NALTIGZND-1,6.98,ACCOMMODATION SERVICES MANAGEM-MISCELLANEOUS SUPPLIES,MISCELLANEOUS AND SPECIALTY RETAIL STORES,GPC
WALSALL COUNCIL,HTTP://OPENDATACOMMUNITIES.ORG/ID/METROPOLITAN-DISTRICT-COUNCIL/WALSALL,31/12/2016,CHANGE & GOVERNANCE,WILKO RETAIL LIMIT,14/12/2016,H59620161216NTIULONVS-1,6.29,ACCOMMODATION SERVICES MANAGEM-FURNITURE & EQUIPMENT,HOUSEHOLD APPLIANCE STORES,GPC
WALSALL COUNCIL,HTTP://OPENDATACOMMUNITIES.ORG/ID/METROPOLITAN-DISTRICT-COUNCIL/WALSALL,31/12/2016,CHANGE & GOVERNANCE,WILKO RETAIL LIMIT,14/12/2016,H59620161216NTIULONVS-2,1.26,ACCOMMODATION SERVICES MANAGEM-FURNITURE & EQUIPMENT,HOUSEHOLD APPLIANCE STORES,GPC
WALSALL COUNCIL,HTTP://OPENDATACOMMUNITIES.ORG/ID/METROPOLITAN-DISTRICT-COUNCIL/WALSALL,31/12/2016,CHANGE & GOVERNANCE,BORSHCH LIMITED,14/12/2016,H59620161216CMOCLQQGT-1,195.00,WALSALL CRISIS SUPPORT SCHEME-CRISIS SUPPORT PAYMENTS,ELECTRONIC SALES,GPC
WALSALL COUNCIL,HTTP://OPENDATACOMMUNITIES.ORG/ID/METROPOLITAN-DISTRICT-COUNCIL/WALSALL,31/12/2016,CHANGE & GOVERNANCE,TESCO STORES 6161,14/12/2016,H59620161216SJPNMDRDP-1,73.00,WALSALL CRISIS SUPPORT SCHEME-CRISIS SUPPORT PAYMENTS,GROCERY STORES AND SUPERMARKETS,GPC
WALSALL COUNCIL,HTTP://OPENDATACOMMUNITIES.ORG/ID/METROPOLITAN-DISTRICT-COUNCIL/WALSALL,31/12/2016,CHANGE & GOVERNANCE,BORSHCH LIMITED,14/12/2016,H59620161216XLVSDIKKJ-1,195.00,WALSALL CRISIS SUPPORT SCHEME-CRISIS SUPPORT PAYMENTS,ELECTRONIC SALES,GPC
WALSALL COUNCIL,HTTP://OPENDATACOMMUNITIES.ORG/ID/METROPOLITAN-DISTRICT-COUNCIL/WALSALL,31/12/2016,CHILDRENS SERVICES,FARMFOODS- BLOXWIC,14/12/2016,H59620161216JFYDACULL-1,10.25,MARY ELLIOTT SPECIAL SCHOOL-BREAD-GENERAL-PROVISIONS,GROCERY STORES AND SUPERMARKETS,GPC
WALSALL COUNCIL,HTTP://OPENDATACOMMUNITIES.ORG/ID/METROPOLITAN-DISTRICT-COUNCIL/WALSALL,31/12/2016,CHILDRENS SERVICES,WWW.BARRBEACON.WALSALL,14/12/2016,H59620161216CKMRXMCSE-1,10.00,REDRUTH ROAD-RESIDENTS PERSONAL EXPENSES-AL,"SCHOOLS, ELEMENTARY AND SECONDARY",GPC
WALSALL COUNCIL,HTTP://OPENDATACOMMUNITIES.ORG/ID/METROPOLITAN-DISTRICT-COUNCIL/WALSALL,31/12/2016,CHANGE & GOVERNANCE,CRAZY HOUSE FURNITURE,14/12/2016,H59620161216NKWETYNEU-1,65.00,WALSALL CRISIS SUPPORT SCHEME-CRISIS SUPPORT PAYMENTS,"EQUIPMENT, FURNITURE, AND HOME FURNISHINGS STORES ",GPC
WALSALL COUNCIL,HTTP://OPENDATACOMMUNITIES.ORG/ID/METROPOLITAN-DISTRICT-COUNCIL/WALSALL,31/12/2016,CHANGE & GOVERNANCE,CRAZY HOUSE FURNITURE,14/12/2016,H59620161216MBCQIJTBQ-1,265.00,WALSALL CRISIS SUPPORT SCHEME-CRISIS SUPPORT PAYMENTS,"EQUIPMENT, FURNITURE, AND HOME FURNISHINGS STORES ",GPC
WALSALL COUNCIL,HTTP://OPENDATACOMMUNITIES.ORG/ID/METROPOLITAN-DISTRICT-COUNCIL/WALSALL,31/12/2016,CHANGE & GOVERNANCE,CRAZY HOUSE FURNITURE,14/12/2016,H59620161216DDFZEZCEF-1,165.00,WALSALL CRISIS SUPPORT SCHEME-CRISIS SUPPORT PAYMENTS,"EQUIPMENT, FURNITURE, AND HOME FURNISHINGS STORES ",GPC
WALSALL COUNCIL,HTTP://OPENDATACOMMUNITIES.ORG/ID/METROPOLITAN-DISTRICT-COUNCIL/WALSALL,31/12/2016,CHANGE & GOVERNANCE,CRAZY HOUSE FURNITURE,14/12/2016,H59620161216THAJURXNB-1,115.00,WALSALL CRISIS SUPPORT SCHEME-CRISIS SUPPORT PAYMENTS,"EQUIPMENT, FURNITURE, AND HOME FURNISHINGS STORES ",GPC
WALSALL COUNCIL,HTTP://OPENDATACOMMUNITIES.ORG/ID/METROPOLITAN-DISTRICT-COUNCIL/WALSALL,31/12/2016,CHILDRENS SERVICES,AMAZON UK MARKETPLACE,14/12/2016,H59620161216CBQRQZBER-1,728.06,VIRTUAL SCHOOL - CENTRAL PUPIL-LIBRARY BOOKS,BOOK STORES,GPC
WALSALL COUNCIL,HTTP://OPENDATACOMMUNITIES.ORG/ID/METROPOLITAN-DISTRICT-COUNCIL/WALSALL,31/12/2016,CHILDRENS SERVICES,TESCO STORES 6161,14/12/2016,H59620161216MNJVVOIRP-1,8.59,ALUMWELL NURSERY-FOOD AND BEVERAGES-PROVISIONS,GROCERY STORES AND SUPERMARKETS,GPC
WALSALL COUNCIL,HTTP://OPENDATACOMMUNITIES.ORG/ID/METROPOLITAN-DISTRICT-COUNCIL/WALSALL,31/12/2016,CHILDRENS SERVICES,TESCO STORES 6161,14/12/2016,H59620161216MNJVVOIRP-2,11.75,ALUMWELL NURSERY-FOOD AND BEVERAGES-PROVISIONS,GROCERY STORES AND SUPERMARKETS,GPC
WALSALL COUNCIL,HTTP://OPENDATACOMMUNITIES.ORG/ID/METROPOLITAN-DISTRICT-COUNCIL/WALSALL,31/12/2016,CHILDRENS SERVICES,PARK PLACE SHOE REPAIRS,14/12/2016,H59620161216TTUZUFMGU-1,18.00,SPINDLETREE-NEW-FURNITURE & EQUIPMENT,"HAT CLEANING SHOPS, SHOE REPAIR SHOPS, SHOE SHINE ",GPC
WALSALL COUNCIL,HTTP://OPENDATACOMMUNITIES.ORG/ID/METROPOLITAN-DISTRICT-COUNCIL/WALSALL,31/12/2016,CHILDRENS SERVICES,WH SMITH,14/12/2016,H59620161216XEIIOUGCA-1,9.99,SPINDLETREE-NEW-FURNITURE & EQUIPMENT,NEWS DEALERS AND NEWSSTANDS,GPC
WALSALL COUNCIL,HTTP://OPENDATACOMMUNITIES.ORG/ID/METROPOLITAN-DISTRICT-COUNCIL/WALSALL,31/12/2016,CHILDRENS SERVICES,WILKO RETAIL LIMIT,14/12/2016,H59620161216NZNRJIKZQ-1,2.00,SPINDLETREE-RESIDENTS PERSONAL EXPENSES-AL,HOUSEHOLD APPLIANCE STORES,GPC
WALSALL COUNCIL,HTTP://OPENDATACOMMUNITIES.ORG/ID/METROPOLITAN-DISTRICT-COUNCIL/WALSALL,31/12/2016,CHILDRENS SERVICES,B&M RETAIL LTD,14/12/2016,H59620161216FTMKRWHIY-1,-4.00,SPINDLETREE-NEW-FURNITURE & EQUIPMENT,DISCOUNT STORES,GPC
WALSALL COUNCIL,HTTP://OPENDATACOMMUNITIES.ORG/ID/METROPOLITAN-DISTRICT-COUNCIL/WALSALL,31/12/2016,CHILDRENS SERVICES,FARMFOODS- ERDINGT,13/12/2016,H59620161216UGJKTHLXP-1,62.85,SPINDLETREE-FOOD AND BEVERAGES-PROVISIONS,GROCERY STORES AND SUPERMARKETS,GPC
WALSALL COUNCIL,HTTP://OPENDATACOMMUNITIES.ORG/ID/METROPOLITAN-DISTRICT-COUNCIL/WALSALL,31/12/2016,CHILDRENS SERVICES,ASDA SUPERSTORE,13/12/2016,H59620161215YWUCEXBVD-1,18.55,SPINDLETREE-FOOD AND BEVERAGES-PROVISIONS,GROCERY STORES AND SUPERMARKETS,GPC
WALSALL COUNCIL,HTTP://OPENDATACOMMUNITIES.ORG/ID/METROPOLITAN-DISTRICT-COUNCIL/WALSALL,31/12/2016,CHILDRENS SERVICES,ASDA SUPERSTORE,13/12/2016,H59620161215SVCCBJOID-1,10.50,SPINDLETREE-NEW-FURNITURE & EQUIPMENT,GROCERY STORES AND SUPERMARKETS,GPC
WALSALL COUNCIL,HTTP://OPENDATACOMMUNITIES.ORG/ID/METROPOLITAN-DISTRICT-COUNCIL/WALSALL,31/12/2016,CHILDRENS SERVICES,ICELAND,13/12/2016,H59620161215VPCJJNXGB-1,26.07,SPINDLETREE-FOOD AND BEVERAGES-PROVISIONS,GROCERY STORES AND SUPERMARKETS,GPC
WALSALL COUNCIL,HTTP://OPENDATACOMMUNITIES.ORG/ID/METROPOLITAN-DISTRICT-COUNCIL/WALSALL,31/12/2016,CHILDRENS SERVICES,HOME BARGAINS,13/12/2016,H59620161215KWIGVKFRJ-1,3.56,"EDGAR STAMMERS CHILDCARE SERVI-CROCKERY,HARDWARE & DISPOSABLE",HARDWARE STORES,GPC
WALSALL COUNCIL,HTTP://OPENDATACOMMUNITIES.ORG/ID/METROPOLITAN-DISTRICT-COUNCIL/WALSALL,31/12/2016,CHILDRENS SERVICES,PAYPAL *DEAN MANLEY,13/12/2016,H59620161215DNXWTOHOC-1,599.97,HEALTH & SAFETY-GENERAL MATERIALS,MISCELLANEOUS AND SPECIALTY RETAIL STORES,GPC
WALSALL COUNCIL,HTTP://OPENDATACOMMUNITIES.ORG/ID/METROPOLITAN-DISTRICT-COUNCIL/WALSALL,31/12/2016,CHILDRENS SERVICES,ARGOS WALSALL CROW,13/12/2016,H59620161215GCEEJNQGO-1,74.99,SPINDLETREE-NEW-FURNITURE & EQUIPMENT,DISCOUNT STORES,GPC
WALSALL COUNCIL,HTTP://OPENDATACOMMUNITIES.ORG/ID/METROPOLITAN-DISTRICT-COUNCIL/WALSALL,31/12/2016,CHILDRENS SERVICES,B&M RETAIL LTD,13/12/2016,H59620161215JKABEFXVZ-1,19.99,SPINDLETREE-NEW-FURNITURE & EQUIPMENT,DISCOUNT STORES,GPC
WALSALL COUNCIL,HTTP://OPENDATACOMMUNITIES.ORG/ID/METROPOLITAN-DISTRICT-COUNCIL/WALSALL,31/12/2016,CHILDRENS SERVICES,ROYAL MAIL PRE-PAY,13/12/2016,H59620161215XLXXSUDUY-1,3.70,ADOPTION TEAM-POSTAGES AND COURIER SERVICES,POSTAL SERVICES - GOVERNMENT ONLY,GPC
WALSALL COUNCIL,HTTP://OPENDATACOMMUNITIES.ORG/ID/METROPOLITAN-DISTRICT-COUNCIL/WALSALL,31/12/2016,CHILDRENS SERVICES,MAPLIN WALSALL WS2,13/12/2016,H59620161215TVTZEYUVS-1,11.98,SPINDLETREE-RESIDENTS PERSONAL EXPENSES-AL,TELECOMMUNICATION EQUIPMENT & SALES,GPC
WALSALL COUNCIL,HTTP://OPENDATACOMMUNITIES.ORG/ID/METROPOLITAN-DISTRICT-COUNCIL/WALSALL,31/12/2016,CHILDRENS SERVICES,CARPHONE WAREHOUSE,13/12/2016,H59620161215EAWAPPMOF-1,10.00,SPINDLETREE-COSTS (NOT INTERNAL RECHARGES),TELECOMMUNICATION EQUIPMENT & SALES,GPC
WALSALL COUNCIL,HTTP://OPENDATACOMMUNITIES.ORG/ID/METROPOLITAN-DISTRICT-COUNCIL/WALSALL,31/12/2016,CHILDRENS SERVICES,ARGOS WALSALL CROW,13/12/2016,H59620161215EWLQVOJRG-1,129.99,SPINDLETREE-NEW-FURNITURE & EQUIPMENT,DISCOUNT STORES,GPC
WALSALL COUNCIL,HTTP://OPENDATACOMMUNITIES.ORG/ID/METROPOLITAN-DISTRICT-COUNCIL/WALSALL,31/12/2016,CHILDRENS SERVICES,ASDA STORES,13/12/2016,H59620161215CDBVPPAXO-1,5.80,LOCALITY FAMILY SUPPORT-WEST-FOOD AND BEVERAGES-PROVISIONS,GROCERY STORES AND SUPERMARKETS,GPC
WALSALL COUNCIL,HTTP://OPENDATACOMMUNITIES.ORG/ID/METROPOLITAN-DISTRICT-COUNCIL/WALSALL,31/12/2016,CHILDRENS SERVICES,ASDA STORES,13/12/2016,H59620161215CDBVPPAXO-2,23.31,LOCALITY FAMILY SUPPORT-WEST-FOOD AND BEVERAGES-PROVISIONS,GROCERY STORES AND SUPERMARKETS,GPC
WALSALL COUNCIL,HTTP://OPENDATACOMMUNITIES.ORG/ID/METROPOLITAN-DISTRICT-COUNCIL/WALSALL,31/12/2016,CHILDRENS SERVICES,AMAZON UK RETAIL,13/12/2016,H59620161215OPOMVLOJK-1,14.24,VIRTUAL SCHOOL - CENTRAL PUPIL-STATIONERY & GENERAL SUPPLIES-,OTHER DIRECT MARKETING-OTHER DIRECT MARKETERS,GPC
WALSALL COUNCIL,HTTP://OPENDATACOMMUNITIES.ORG/ID/METROPOLITAN-DISTRICT-COUNCIL/WALSALL,31/12/2016,CHILDRENS SERVICES,AMAZON UK MARKETPLACE,13/12/2016,H59620161215NPOMCXKDW-1,20.70,VIRTUAL SCHOOL - CENTRAL PUPIL-LIBRARY BOOKS,BOOK STORES,GPC
WALSALL COUNCIL,HTTP://OPENDATACOMMUNITIES.ORG/ID/METROPOLITAN-DISTRICT-COUNCIL/WALSALL,31/12/2016,ECONOMY & ENVIRONMENT,PAYPAL *VISUALIMPAI,13/12/2016,H59620161215MYPMCKGGM-1,390.00,FALLS PREVENTION-PROFESSIONAL FEES AND SERVICES,"ORGANIZATIONS, CHARITABLE AND SOCIAL SERVICE",GPC
WALSALL COUNCIL,HTTP://OPENDATACOMMUNITIES.ORG/ID/METROPOLITAN-DISTRICT-COUNCIL/WALSALL,31/12/2016,ECONOMY & ENVIRONMENT,PAYPAL *VISUALIMPAI,13/12/2016,H59620161215QSCVPMBXJ-1,390.00,FALLS PREVENTION-PROFESSIONAL FEES AND SERVICES,"ORGANIZATIONS, CHARITABLE AND SOCIAL SERVICE",GPC
WALSALL COUNCIL,HTTP://OPENDATACOMMUNITIES.ORG/ID/METROPOLITAN-DISTRICT-COUNCIL/WALSALL,31/12/2016,CHILDRENS SERVICES,WWW.RENTCONTAINER.COM,13/12/2016,H59620161215MKSMRYEJQ-1,93.00,PELSALL EDC-LEASING/HIRE/RENTAL-EQUIPMENT,"PUBLIC WAREHOUSING, FARM, & HOUSEHOLD GOODS",GPC
WALSALL COUNCIL,HTTP://OPENDATACOMMUNITIES.ORG/ID/METROPOLITAN-DISTRICT-COUNCIL/WALSALL,31/12/2016,CHILDRENS SERVICES,WWW.COFFEESUPPLIESDIRE,07/12/2016,H59620161215BPTAUMELQ-1,-5.20,WALSALL WOOD PRIMARY SCHOOL-,VARIETY STORES,GPC
WALSALL COUNCIL,HTTP://OPENDATACOMMUNITIES.ORG/ID/METROPOLITAN-DISTRICT-COUNCIL/WALSALL,31/12/2016,CHILDRENS SERVICES,ITUNES.COM/BILL,13/12/2016,H59620161215DRSSWWWBP-1,-6.65,WALSALL WOOD PRIMARY SCHOOL-FURNITURE & EQUIPMENT,RECORD SHOPS,GPC
WALSALL COUNCIL,HTTP://OPENDATACOMMUNITIES.ORG/ID/METROPOLITAN-DISTRICT-COUNCIL/WALSALL,31/12/2016,CHILDRENS SERVICES,TESCO STORE 3351,13/12/2016,H59620161215ORRYNCUPO-1,14.00,LOCALITY FAMILY SUPPORT-CENTRA-FOOD AND BEVERAGES-PROVISIONS,GROCERY STORES AND SUPERMARKETS,GPC
WALSALL COUNCIL,HTTP://OPENDATACOMMUNITIES.ORG/ID/METROPOLITAN-DISTRICT-COUNCIL/WALSALL,31/12/2016,CHILDRENS SERVICES,TESCO STORE 3351,13/12/2016,H59620161215ORRYNCUPO-3,17.50,LOCALITY FAMILY SUPPORT-CENTRA-FOOD AND BEVERAGES-PROVISIONS,GROCERY STORES AND SUPERMARKETS,GPC
WALSALL COUNCIL,HTTP://OPENDATACOMMUNITIES.ORG/ID/METROPOLITAN-DISTRICT-COUNCIL/WALSALL,31/12/2016,CHILDRENS SERVICES,TESCO STORE 3351,13/12/2016,H59620161215ORRYNCUPO-2,6.78,LOCALITY FAMILY SUPPORT-CENTRA-FURNITURE & EQUIPMENT,GROCERY STORES AND SUPERMARKETS,GPC
WALSALL COUNCIL,HTTP://OPENDATACOMMUNITIES.ORG/ID/METROPOLITAN-DISTRICT-COUNCIL/WALSALL,31/12/2016,CHANGE & GOVERNANCE,ASDA SUPERSTORE,13/12/2016,H59620161215XJFVYADJJ-1,6.66,YOUNG PERSONS HOMELESS SERVICE-FOOD AND BEVERAGES-PROVISIONS,GROCERY STORES AND SUPERMARKETS,GPC
WALSALL COUNCIL,HTTP://OPENDATACOMMUNITIES.ORG/ID/METROPOLITAN-DISTRICT-COUNCIL/WALSALL,31/12/2016,CHANGE & GOVERNANCE,ASDA SUPERSTORE,13/12/2016,H59620161215XJFVYADJJ-2,6.77,YOUNG PERSONS HOMELESS SERVICE-FOOD AND BEVERAGES-PROVISIONS,GROCERY STORES AND SUPERMARKETS,GPC
WALSALL COUNCIL,HTTP://OPENDATACOMMUNITIES.ORG/ID/METROPOLITAN-DISTRICT-COUNCIL/WALSALL,31/12/2016,CHANGE & GOVERNANCE,WILKO RETAIL LIMIT,13/12/2016,H59620161215VJSLGESEB-1,97.25,YOUNG PERSONS HOMELESS SERVICE-FURNITURE & EQUIPMENT,HOUSEHOLD APPLIANCE STORES,GPC
WALSALL COUNCIL,HTTP://OPENDATACOMMUNITIES.ORG/ID/METROPOLITAN-DISTRICT-COUNCIL/WALSALL,31/12/2016,ECONOMY & ENVIRONMENT,WILKO RETAIL LIMIT,13/12/2016,H59620161215MRYGNWEVY-1,300.00,DARLASTON DISTRICT CENTRE-EVENTS,HOUSEHOLD APPLIANCE STORES,GPC
WALSALL COUNCIL,HTTP://OPENDATACOMMUNITIES.ORG/ID/METROPOLITAN-DISTRICT-COUNCIL/WALSALL,31/12/2016,CHANGE & GOVERNANCE,MILLENIUM POINT CAR PA,13/12/2016,H59620161215BMRXLKNKV-1,3.50,REVENUES-OTHER-TRAVEL ALLOWANCES,AUTOMOBILE PARKING LOTS AND GARAGES,GPC
WALSALL COUNCIL,HTTP://OPENDATACOMMUNITIES.ORG/ID/METROPOLITAN-DISTRICT-COUNCIL/WALSALL,31/12/2016,CHANGE & GOVERNANCE,PREMIER INN44533745,12/12/2016,H59620161215UFBLWFYMI-1,79.00,BED & BREAKFAST PAYMENTS-BED & BREAKFAST PAYMENTS,PREMIER INN,GPC
WALSALL COUNCIL,HTTP://OPENDATACOMMUNITIES.ORG/ID/METROPOLITAN-DISTRICT-COUNCIL/WALSALL,31/12/2016,CHILDRENS SERVICES,WALSALL COUNCIL,13/12/2016,H59620161215KOMECNCRC-1,28.00,SAFEGUARDING & FAMILY SUPPORT-REGISTRAR OF BIRTHS/DEATHS/MAR,GOVERNMENT SERVICES,GPC
WALSALL COUNCIL,HTTP://OPENDATACOMMUNITIES.ORG/ID/METROPOLITAN-DISTRICT-COUNCIL/WALSALL,31/12/2016,CHILDRENS SERVICES,ICELAND,13/12/2016,H59620161215XBGKZCWHZ-1,44.00,MARY ELLIOTT SPECIAL SCHOOL-BREAD-GENERAL-PROVISIONS,GROCERY STORES AND SUPERMARKETS,GPC
WALSALL COUNCIL,HTTP://OPENDATACOMMUNITIES.ORG/ID/METROPOLITAN-DISTRICT-COUNCIL/WALSALL,31/12/2016,CHILDRENS SERVICES,B&M RETAIL LTD,13/12/2016,H59620161215KFERBPYNB-1,5.47,BLAKENALL CHILDCARE SERVICES-EVENTS,DISCOUNT STORES,GPC
WALSALL COUNCIL,HTTP://OPENDATACOMMUNITIES.ORG/ID/METROPOLITAN-DISTRICT-COUNCIL/WALSALL,31/12/2016,CHILDRENS SERVICES,HOME BARGAINS,13/12/2016,H59620161215MXWTXDJNI-1,4.93,BLAKENALL CHILDCARE SERVICES-EVENTS,HARDWARE STORES,GPC
WALSALL COUNCIL,HTTP://OPENDATACOMMUNITIES.ORG/ID/METROPOLITAN-DISTRICT-COUNCIL/WALSALL,31/12/2016,CHILDRENS SERVICES,HOME BARGAINS,13/12/2016,H59620161215MXWTXDJNI-2,0.99,BLAKENALL CHILDCARE SERVICES-EVENTS,HARDWARE STORES,GPC
WALSALL COUNCIL,HTTP://OPENDATACOMMUNITIES.ORG/ID/METROPOLITAN-DISTRICT-COUNCIL/WALSALL,31/12/2016,ECONOMY & ENVIRONMENT,AMAZON UK MARKETPLACE,13/12/2016,H59620161215RCQBNOBJU-1,19.95,BLOXWICH LEISURE CENTRE-MISCELLANEOUS SUPPLIES,MISCELLANEOUS AND SPECIALTY RETAIL STORES,GPC
WALSALL COUNCIL,HTTP://OPENDATACOMMUNITIES.ORG/ID/METROPOLITAN-DISTRICT-COUNCIL/WALSALL,31/12/2016,ECONOMY & ENVIRONMENT,AMAZON UK MARKETPLACE,13/12/2016,H59620161215LGNVNJBXP-1,6.99,BLOXWICH LEISURE CENTRE-MISCELLANEOUS SUPPLIES,MISCELLANEOUS AND SPECIALTY RETAIL STORES,GPC
WALSALL COUNCIL,HTTP://OPENDATACOMMUNITIES.ORG/ID/METROPOLITAN-DISTRICT-COUNCIL/WALSALL,31/12/2016,CHILDRENS SERVICES,W M MORRISONS.COM,13/12/2016,H59620161215KRSSPCJFQ-1,7.08,BLUEBELLS-FOOD AND BEVERAGES-PROVISIONS,GROCERY STORES AND SUPERMARKETS,GPC
WALSALL COUNCIL,HTTP://OPENDATACOMMUNITIES.ORG/ID/METROPOLITAN-DISTRICT-COUNCIL/WALSALL,31/12/2016,CHILDRENS SERVICES,W M MORRISONS.COM,13/12/2016,H59620161215KRSSPCJFQ-2,62.54,BLUEBELLS-FOOD AND BEVERAGES-PROVISIONS,GROCERY STORES AND SUPERMARKETS,GPC
WALSALL COUNCIL,HTTP://OPENDATACOMMUNITIES.ORG/ID/METROPOLITAN-DISTRICT-COUNCIL/WALSALL,31/12/2016,CHANGE & GOVERNANCE,BORSHCH LIMITED,13/12/2016,H59620161215TYSJUWEWR-1,535.00,WALSALL CRISIS SUPPORT SCHEME-CRISIS SUPPORT PAYMENTS,ELECTRONIC SALES,GPC
WALSALL COUNCIL,HTTP://OPENDATACOMMUNITIES.ORG/ID/METROPOLITAN-DISTRICT-COUNCIL/WALSALL,31/12/2016,CHANGE & GOVERNANCE,TESCO STORES 6161,13/12/2016,H59620161215WOIAGDHFW-1,4.10,ACCOMMODATION SERVICES MANAGEM-FOOD AND BEVERAGES-PROVISIONS,GROCERY STORES AND SUPERMARKETS,GPC
WALSALL COUNCIL,HTTP://OPENDATACOMMUNITIES.ORG/ID/METROPOLITAN-DISTRICT-COUNCIL/WALSALL,31/12/2016,CHANGE & GOVERNANCE,TESCO STORES 6161,13/12/2016,H59620161215WOIAGDHFW-2,4.99,ACCOMMODATION SERVICES MANAGEM-FOOD AND BEVERAGES-PROVISIONS,GROCERY STORES AND SUPERMARKETS,GPC
WALSALL COUNCIL,HTTP://OPENDATACOMMUNITIES.ORG/ID/METROPOLITAN-DISTRICT-COUNCIL/WALSALL,31/12/2016,CHILDRENS SERVICES,TESCO STORE 3351,13/12/2016,H59620161215TQFTAIBAX-1,31.97,LOCALITY FAMILY SUPPORT-CENTRA-FOOD AND BEVERAGES-PROVISIONS,GROCERY STORES AND SUPERMARKETS,GPC
WALSALL COUNCIL,HTTP://OPENDATACOMMUNITIES.ORG/ID/METROPOLITAN-DISTRICT-COUNCIL/WALSALL,31/12/2016,CHILDRENS SERVICES,AMAZON UK MARKETPLACE,13/12/2016,H59620161215AGRFTFQBT-1,22.94,GENERAL RESOURCES & MISC-GENERAL MATERIALS,MISCELLANEOUS AND SPECIALTY RETAIL STORES,GPC
WALSALL COUNCIL,HTTP://OPENDATACOMMUNITIES.ORG/ID/METROPOLITAN-DISTRICT-COUNCIL/WALSALL,31/12/2016,CHILDRENS SERVICES,WWW.MINILABEL.CO.UK,13/12/2016,H59620161215KAICCMEIO-1,183.70,LITERACY ORACY & LANGUAGE-GENERAL MATERIALS,MISCELLANEOUS PUBLISHING AND PRINTING,GPC
WALSALL COUNCIL,HTTP://OPENDATACOMMUNITIES.ORG/ID/METROPOLITAN-DISTRICT-COUNCIL/WALSALL,31/12/2016,CHILDRENS SERVICES,AMAZON UK MARKETPLACE,13/12/2016,H59620161215NEDJVKTEY-1,53.90,GENERAL RESOURCES & MISC-GENERAL MATERIALS,MISCELLANEOUS AND SPECIALTY RETAIL STORES,GPC
WALSALL COUNCIL,HTTP://OPENDATACOMMUNITIES.ORG/ID/METROPOLITAN-DISTRICT-COUNCIL/WALSALL,31/12/2016,CHILDRENS SERVICES,AMAZON UK MARKETPLACE,13/12/2016,H59620161215PEPMQOINB-1,14.35,GENERAL RESOURCES & MISC-GENERAL MATERIALS,MISCELLANEOUS AND SPECIALTY RETAIL STORES,GPC
WALSALL COUNCIL,HTTP://OPENDATACOMMUNITIES.ORG/ID/METROPOLITAN-DISTRICT-COUNCIL/WALSALL,31/12/2016,CHILDRENS SERVICES,AMAZON UK RETAIL AMAZON.C,13/12/2016,H59620161215TKEKCKAEE-1,11.98,GENERAL RESOURCES & MISC-GENERAL MATERIALS,MISCELLANEOUS AND SPECIALTY RETAIL STORES,GPC
WALSALL COUNCIL,HTTP://OPENDATACOMMUNITIES.ORG/ID/METROPOLITAN-DISTRICT-COUNCIL/WALSALL,31/12/2016,ECONOMY & ENVIRONMENT,ASDA SUPERSTORE,13/12/2016,H59620161215WKOXEGJLI-1,12.34,WALSALL OUTDOOR ADVENTURE CENT-FOOD AND BEVERAGES-PROVISIONS,GROCERY STORES AND SUPERMARKETS,GPC
WALSALL COUNCIL,HTTP://OPENDATACOMMUNITIES.ORG/ID/METROPOLITAN-DISTRICT-COUNCIL/WALSALL,31/12/2016,ECONOMY & ENVIRONMENT,ASDA SUPERSTORE,13/12/2016,H59620161215WKOXEGJLI-2,13.60,WALSALL OUTDOOR ADVENTURE CENT-FOOD AND BEVERAGES-PROVISIONS,GROCERY STORES AND SUPERMARKETS,GPC
WALSALL COUNCIL,HTTP://OPENDATACOMMUNITIES.ORG/ID/METROPOLITAN-DISTRICT-COUNCIL/WALSALL,31/12/2016,ECONOMY & ENVIRONMENT,POST OFFICE COUNTER,13/12/2016,H59620161215OIKISOBCW-1,282.50,FLEET-LICENCES-TRANSPORT RUN COSTS,POSTAL SERVICES - GOVERNMENT ONLY,GPC
WALSALL COUNCIL,HTTP://OPENDATACOMMUNITIES.ORG/ID/METROPOLITAN-DISTRICT-COUNCIL/WALSALL,31/12/2016,ECONOMY & ENVIRONMENT,POST OFFICE COUNTER,13/12/2016,H59620161215WIEHLWNNG-1,162.50,FLEET-LICENCES-TRANSPORT RUN COSTS,POSTAL SERVICES - GOVERNMENT ONLY,GPC
WALSALL COUNCIL,HTTP://OPENDATACOMMUNITIES.ORG/ID/METROPOLITAN-DISTRICT-COUNCIL/WALSALL,31/12/2016,CHILDRENS SERVICES,W M MORRISONS.COM,13/12/2016,H59620161215JZPQNBIXL-1,-47.73,FOOD TECHNOLOGY-GENERAL MATERIALS,GROCERY STORES AND SUPERMARKETS,GPC
WALSALL COUNCIL,HTTP://OPENDATACOMMUNITIES.ORG/ID/METROPOLITAN-DISTRICT-COUNCIL/WALSALL,31/12/2016,CHILDRENS SERVICES,W M MORRISON PLC,13/12/2016,H59620161215RFIPMKNFB-1,23.56,FOOD TECHNOLOGY-GENERAL MATERIALS,GROCERY STORES AND SUPERMARKETS,GPC
WALSALL COUNCIL,HTTP://OPENDATACOMMUNITIES.ORG/ID/METROPOLITAN-DISTRICT-COUNCIL/WALSALL,31/12/2016,CHILDRENS SERVICES,W M MORRISON PLC,13/12/2016,H59620161215RFIPMKNFB-2,0.05,FOOD TECHNOLOGY-GENERAL MATERIALS,GROCERY STORES AND SUPERMARKETS,GPC
WALSALL COUNCIL,HTTP://OPENDATACOMMUNITIES.ORG/ID/METROPOLITAN-DISTRICT-COUNCIL/WALSALL,31/12/2016,CHILDRENS SERVICES,B&M RETAIL,13/12/2016,H59620161215HYONUXIOC-1,8.88,BIRCHILLS CHILDCARE SERVICES-FOOD AND BEVERAGES-PROVISIONS,DISCOUNT STORES,GPC
WALSALL COUNCIL,HTTP://OPENDATACOMMUNITIES.ORG/ID/METROPOLITAN-DISTRICT-COUNCIL/WALSALL,31/12/2016,CHILDRENS SERVICES,B&M RETAIL,13/12/2016,H59620161215HYONUXIOC-2,13.94,BIRCHILLS CHILDCARE SERVICES-TOYS & GAMES-MATERIALS,DISCOUNT STORES,GPC
WALSALL COUNCIL,HTTP://OPENDATACOMMUNITIES.ORG/ID/METROPOLITAN-DISTRICT-COUNCIL/WALSALL,31/12/2016,CHILDRENS SERVICES,W M MORRISONS,13/12/2016,H59620161215YVMYVTHQI-1,16.00,"BIRCHILLS CHILDCARE SERVICES-CROCKERY,HARDWARE & DISPOSABLE",GROCERY STORES AND SUPERMARKETS,GPC
WALSALL COUNCIL,HTTP://OPENDATACOMMUNITIES.ORG/ID/METROPOLITAN-DISTRICT-COUNCIL/WALSALL,31/12/2016,CHILDRENS SERVICES,W M MORRISONS,13/12/2016,H59620161215YVMYVTHQI-3,6.69,BIRCHILLS CHILDCARE SERVICES-VISUAL ARTS,GROCERY STORES AND SUPERMARKETS,GPC
WALSALL COUNCIL,HTTP://OPENDATACOMMUNITIES.ORG/ID/METROPOLITAN-DISTRICT-COUNCIL/WALSALL,31/12/2016,CHILDRENS SERVICES,W M MORRISONS,13/12/2016,H59620161215YVMYVTHQI-2,5.76,BIRCHILLS CHILDCARE SERVICES-FOOD AND BEVERAGES-PROVISIONS,GROCERY STORES AND SUPERMARKETS,GPC
WALSALL COUNCIL,HTTP://OPENDATACOMMUNITIES.ORG/ID/METROPOLITAN-DISTRICT-COUNCIL/WALSALL,31/12/2016,CHILDRENS SERVICES,B&M RETAIL,13/12/2016,H59620161215QPNVCTCVX-1,2.99,REDRUTH ROAD-FOOD AND BEVERAGES-PROVISIONS,DISCOUNT STORES,GPC
WALSALL COUNCIL,HTTP://OPENDATACOMMUNITIES.ORG/ID/METROPOLITAN-DISTRICT-COUNCIL/WALSALL,31/12/2016,CHILDRENS SERVICES,B&M RETAIL,13/12/2016,H59620161215QPNVCTCVX-2,11.33,REDRUTH ROAD-FOOD AND BEVERAGES-PROVISIONS,DISCOUNT STORES,GPC
WALSALL COUNCIL,HTTP://OPENDATACOMMUNITIES.ORG/ID/METROPOLITAN-DISTRICT-COUNCIL/WALSALL,31/12/2016,CHILDRENS SERVICES,FARMFOODS- KINGSTA,13/12/2016,H59620161215WUSTIFRIM-1,12.98,REDRUTH ROAD-FOOD AND BEVERAGES-PROVISIONS,GROCERY STORES AND SUPERMARKETS,GPC
WALSALL COUNCIL,HTTP://OPENDATACOMMUNITIES.ORG/ID/METROPOLITAN-DISTRICT-COUNCIL/WALSALL,31/12/2016,CHILDRENS SERVICES,B&M RETAIL,13/12/2016,H59620161215MGMQHUWCR-1,8.00,REDRUTH ROAD-EQUIP NEW-CLEANING,DISCOUNT STORES,GPC
WALSALL COUNCIL,HTTP://OPENDATACOMMUNITIES.ORG/ID/METROPOLITAN-DISTRICT-COUNCIL/WALSALL,31/12/2016,CHILDRENS SERVICES,LONDON MIDLAND SEL,13/12/2016,H59620161215EXXUEGLEG-1,5.40,ALUMWELL JUNIOR SCHOOL-OFFICER/STAFF-PUBLIC TRANSPORT,PASSENGER RAILWAYS,GPC
WALSALL COUNCIL,HTTP://OPENDATACOMMUNITIES.ORG/ID/METROPOLITAN-DISTRICT-COUNCIL/WALSALL,31/12/2016,CHILDRENS SERVICES,LONDON MIDLAND TIC,13/12/2016,H59620161215DWISVXIQO-1,16.20,ALUMWELL JUNIOR SCHOOL-OFFICER/STAFF-PUBLIC TRANSPORT,PASSENGER RAILWAYS,GPC
WALSALL COUNCIL,HTTP://OPENDATACOMMUNITIES.ORG/ID/METROPOLITAN-DISTRICT-COUNCIL/WALSALL,31/12/2016,CHILDRENS SERVICES,BRITANNIA,12/12/2016,H59620161215BJZFKRXZT-1,69.00,SAFEGUARDING & FAMILY SUPPORT-HOTEL ACCOMMODATION-EMPLOYEES,"HOTELS, MOTELS, RESORTS",GPC
WALSALL COUNCIL,HTTP://OPENDATACOMMUNITIES.ORG/ID/METROPOLITAN-DISTRICT-COUNCIL/WALSALL,31/12/2016,CHILDRENS SERVICES,WM MORRISONS,13/12/2016,H59620161215BZJRTNFNL-1,3.99,57 LICHFIELD ROAD-FOOD AND BEVERAGES-PROVISIONS,GROCERY STORES AND SUPERMARKETS,GPC
WALSALL COUNCIL,HTTP://OPENDATACOMMUNITIES.ORG/ID/METROPOLITAN-DISTRICT-COUNCIL/WALSALL,31/12/2016,CHILDRENS SERVICES,WILKO RETAIL LIMIT,13/12/2016,H59620161215QERWJUWCF-1,16.60,57 LICHFIELD ROAD-FURNITURE & EQUIPMENT,HOUSEHOLD APPLIANCE STORES,GPC
WALSALL COUNCIL,HTTP://OPENDATACOMMUNITIES.ORG/ID/METROPOLITAN-DISTRICT-COUNCIL/WALSALL,31/12/2016,ECONOMY & ENVIRONMENT,CONTRADO IMAGING,13/12/2016,H59620161215WOPSVKOUT-1,63.74,CREATIVE DEVELOPMENT TEAM - MA-STATIONERY & GENERAL SUPPLIES-,"CARD, GIFT, NOVELTY, AND SOUVENIR SHOPS",GPC
WALSALL COUNCIL,HTTP://OPENDATACOMMUNITIES.ORG/ID/METROPOLITAN-DISTRICT-COUNCIL/WALSALL,31/12/2016,CHILDRENS SERVICES,WWW.FLIPOUT.CO.UK,13/12/2016,H59620161215GZLIKQMAR-1,30.00,LOOKED AFTER CHILDRENS SOCIAL -SECTION 34 (CONTACT),OTHER RECREATION SERVICES,GPC
WALSALL COUNCIL,HTTP://OPENDATACOMMUNITIES.ORG/ID/METROPOLITAN-DISTRICT-COUNCIL/WALSALL,31/12/2016,CHANGE & GOVERNANCE,APPLIANCE SPARES WAREH,13/12/2016,H59620161215IYOTWDQNG-1,11.97,ACCOMMODATION SERVICES MANAGEM-FURNITURE & EQUIPMENT,HOUSEHOLD APPLIANCE STORES,GPC
WALSALL COUNCIL,HTTP://OPENDATACOMMUNITIES.ORG/ID/METROPOLITAN-DISTRICT-COUNCIL/WALSALL,31/12/2016,ECONOMY & ENVIRONMENT,WILKO RETAIL LIMIT,13/12/2016,H59620161215JQTRFBFVP-1,16.90,COMMUNITY LIASON-NEW-FURNITURE & EQUIPMENT,HOUSEHOLD APPLIANCE STORES,GPC
WALSALL COUNCIL,HTTP://OPENDATACOMMUNITIES.ORG/ID/METROPOLITAN-DISTRICT-COUNCIL/WALSALL,31/12/2016,ECONOMY & ENVIRONMENT,B&M RETAIL LTD,13/12/2016,H59620161215VLHLFQJLQ-1,79.18,COMMUNITY LIASON-NEW-FURNITURE & EQUIPMENT,DISCOUNT STORES,GPC
WALSALL COUNCIL,HTTP://OPENDATACOMMUNITIES.ORG/ID/METROPOLITAN-DISTRICT-COUNCIL/WALSALL,31/12/2016,ECONOMY & ENVIRONMENT,MARKS&SPENCER PLC SACA,13/12/2016,H59620161215ZHKNMVEBQ-1,32.09,NAG - TEMPORARY EXHIBITIONS-MISC DAIRY PRODUCTS-PROVISIONS,GROCERY STORES AND SUPERMARKETS,GPC
WALSALL COUNCIL,HTTP://OPENDATACOMMUNITIES.ORG/ID/METROPOLITAN-DISTRICT-COUNCIL/WALSALL,31/12/2016,ECONOMY & ENVIRONMENT,AMAZON UK MARKETPLACE,13/12/2016,H59620161215HTEPYQQGE-1,22.48,SPORT & LEISURE DEVELOPMENT SE-FURNITURE & EQUIPMENT,MISCELLANEOUS AND SPECIALTY RETAIL STORES,GPC
WALSALL COUNCIL,HTTP://OPENDATACOMMUNITIES.ORG/ID/METROPOLITAN-DISTRICT-COUNCIL/WALSALL,31/12/2016,CHILDRENS SERVICES,TESCO STORES 6161,13/12/2016,H59620161215NBGDFIUJU-1,56.50,REDRUTH ROAD-RESIDENTS PERSONAL EXPENSES-AL,GROCERY STORES AND SUPERMARKETS,GPC
WALSALL COUNCIL,HTTP://OPENDATACOMMUNITIES.ORG/ID/METROPOLITAN-DISTRICT-COUNCIL/WALSALL,31/12/2016,CHILDRENS SERVICES,TESCO STORES 6161,13/12/2016,H59620161215NBGDFIUJU-2,40.50,REDRUTH ROAD-RESIDENTS PERSONAL EXPENSES-AL,GROCERY STORES AND SUPERMARKETS,GPC
WALSALL COUNCIL,HTTP://OPENDATACOMMUNITIES.ORG/ID/METROPOLITAN-DISTRICT-COUNCIL/WALSALL,31/12/2016,CHILDRENS SERVICES,MICROSOFT *STORE,13/12/2016,H59620161215GTVXGOVNR-1,129.99,REDRUTH ROAD-RESIDENTS PERSONAL EXPENSES-AL,DIGITAL GOODS - GAMES,GPC
WALSALL COUNCIL,HTTP://OPENDATACOMMUNITIES.ORG/ID/METROPOLITAN-DISTRICT-COUNCIL/WALSALL,31/12/2016,CHANGE & GOVERNANCE,BORSHCH LIMITED,13/12/2016,H59620161215IHSBKRGMK-1,530.00,WALSALL CRISIS SUPPORT SCHEME-FURNITURE & EQUIPMENT,ELECTRONIC SALES,GPC
WALSALL COUNCIL,HTTP://OPENDATACOMMUNITIES.ORG/ID/METROPOLITAN-DISTRICT-COUNCIL/WALSALL,31/12/2016,CHANGE & GOVERNANCE,BORSHCH LIMITED,13/12/2016,H59620161215GWEUSFJHL-1,365.00,WALSALL CRISIS SUPPORT SCHEME-FURNITURE & EQUIPMENT,ELECTRONIC SALES,GPC
WALSALL COUNCIL,HTTP://OPENDATACOMMUNITIES.ORG/ID/METROPOLITAN-DISTRICT-COUNCIL/WALSALL,31/12/2016,CHILDRENS SERVICES,W M MORRISON PLC,13/12/2016,H59620161215ZVGLOMYFP-1,8.00,GENERAL SUPPLIES RD-GENERAL MATERIALS,GROCERY STORES AND SUPERMARKETS,GPC
WALSALL COUNCIL,HTTP://OPENDATACOMMUNITIES.ORG/ID/METROPOLITAN-DISTRICT-COUNCIL/WALSALL,31/12/2016,CHILDRENS SERVICES,W M MORRISON PLC,13/12/2016,H59620161215ZVGLOMYFP-2,20.00,GENERAL SUPPLIES RD-GENERAL MATERIALS,GROCERY STORES AND SUPERMARKETS,GPC
WALSALL COUNCIL,HTTP://OPENDATACOMMUNITIES.ORG/ID/METROPOLITAN-DISTRICT-COUNCIL/WALSALL,31/12/2016,CHILDRENS SERVICES,W M MORRISON PLC,13/12/2016,H59620161215ZVGLOMYFP-3,7.68,GENERAL SUPPLIES RD-GENERAL MATERIALS,GROCERY STORES AND SUPERMARKETS,GPC
WALSALL COUNCIL,HTTP://OPENDATACOMMUNITIES.ORG/ID/METROPOLITAN-DISTRICT-COUNCIL/WALSALL,31/12/2016,ECONOMY & ENVIRONMENT,HOLE IN THE WALL C,13/12/2016,H59620161215KUTEIJYCH-1,10.15,LEATHER MUSEUM-GENERAL MATERIALS,"FURNITURE-REUPHOLSTERY AND REPAIR, REFINISHING",GPC
WALSALL COUNCIL,HTTP://OPENDATACOMMUNITIES.ORG/ID/METROPOLITAN-DISTRICT-COUNCIL/WALSALL,31/12/2016,ECONOMY & ENVIRONMENT,THE RANGE,13/12/2016,H59620161215LDWEFMKLP-1,16.23,LEATHER MUSEUM-GENERAL MATERIALS,DEPARTMENT STORES,GPC
WALSALL COUNCIL,HTTP://OPENDATACOMMUNITIES.ORG/ID/METROPOLITAN-DISTRICT-COUNCIL/WALSALL,31/12/2016,ECONOMY & ENVIRONMENT,WILKO RETAIL LIMIT,13/12/2016,H59620161215MQPDTZUIJ-1,5.00,LEATHER MUSEUM-GENERAL MATERIALS,HOUSEHOLD APPLIANCE STORES,GPC
WALSALL COUNCIL,HTTP://OPENDATACOMMUNITIES.ORG/ID/METROPOLITAN-DISTRICT-COUNCIL/WALSALL,31/12/2016,CHILDRENS SERVICES,VIRGIN TRAINS,13/12/2016,H59620161215JLGMIQUJQ-1,358.00,INTERNAL FOSTER CARE PROVISION-OFFICER/STAFF-PUBLIC TRANSPORT,PASSENGER RAILWAYS,GPC
WALSALL COUNCIL,HTTP://OPENDATACOMMUNITIES.ORG/ID/METROPOLITAN-DISTRICT-COUNCIL/WALSALL,31/12/2016,CHILDRENS SERVICES,MERCURE BRISTOL - RECE,13/12/2016,H59620161215MXIOUQTDT-1,65.00,INTERNAL FOSTER CARE PROVISION-HOTEL ACCOMMODATION-EMPLOYEES,"HOTELS, MOTELS, RESORTS",GPC
WALSALL COUNCIL,HTTP://OPENDATACOMMUNITIES.ORG/ID/METROPOLITAN-DISTRICT-COUNCIL/WALSALL,31/12/2016,ECONOMY & ENVIRONMENT,GREENHAM TRADING LTD,13/12/2016,H59620161215UHOUQYBLF-1,-490.50,ARBORETUM-FURNITURE & EQUIPMENT,OTHER INDUSTRIAL SUPPLIES,GPC
WALSALL COUNCIL,HTTP://OPENDATACOMMUNITIES.ORG/ID/METROPOLITAN-DISTRICT-COUNCIL/WALSALL,31/12/2016,CHANGE & GOVERNANCE,BORSHCH LIMITED,13/12/2016,H59620161215UNIJNFORU-1,175.00,WALSALL CRISIS SUPPORT SCHEME-FURNITURE & EQUIPMENT,ELECTRONIC SALES,GPC
WALSALL COUNCIL,HTTP://OPENDATACOMMUNITIES.ORG/ID/METROPOLITAN-DISTRICT-COUNCIL/WALSALL,31/12/2016,CHANGE & GOVERNANCE,BORSHCH LIMITED,13/12/2016,H59620161215VOUCNAWFK-1,535.00,WALSALL CRISIS SUPPORT SCHEME-FURNITURE & EQUIPMENT,ELECTRONIC SALES,GPC
WALSALL COUNCIL,HTTP://OPENDATACOMMUNITIES.ORG/ID/METROPOLITAN-DISTRICT-COUNCIL/WALSALL,31/12/2016,CHANGE & GOVERNANCE,BORSHCH LIMITED,13/12/2016,H59620161215HANQLMRTM-1,530.00,WALSALL CRISIS SUPPORT SCHEME-FURNITURE & EQUIPMENT,ELECTRONIC SALES,GPC
WALSALL COUNCIL,HTTP://OPENDATACOMMUNITIES.ORG/ID/METROPOLITAN-DISTRICT-COUNCIL/WALSALL,31/12/2016,CHANGE & GOVERNANCE,BORSHCH LIMITED,13/12/2016,H59620161215XQHUFYCUR-1,185.00,WALSALL CRISIS SUPPORT SCHEME-FURNITURE & EQUIPMENT,ELECTRONIC SALES,GPC
WALSALL COUNCIL,HTTP://OPENDATACOMMUNITIES.ORG/ID/METROPOLITAN-DISTRICT-COUNCIL/WALSALL,31/12/2016,CHANGE & GOVERNANCE,BORSHCH LIMITED,13/12/2016,H59620161215YJBWBFLNX-1,195.00,WALSALL CRISIS SUPPORT SCHEME-FURNITURE & EQUIPMENT,ELECTRONIC SALES,GPC
WALSALL COUNCIL,HTTP://OPENDATACOMMUNITIES.ORG/ID/METROPOLITAN-DISTRICT-COUNCIL/WALSALL,31/12/2016,CHANGE & GOVERNANCE,BORSHCH LIMITED,13/12/2016,H59620161215CKQXAULCH-1,535.00,WALSALL CRISIS SUPPORT SCHEME-FURNITURE & EQUIPMENT,ELECTRONIC SALES,GPC
WALSALL COUNCIL,HTTP://OPENDATACOMMUNITIES.ORG/ID/METROPOLITAN-DISTRICT-COUNCIL/WALSALL,31/12/2016,CHANGE & GOVERNANCE,BORSHCH LIMITED,13/12/2016,H59620161215DBLUSCLIT-1,535.00,WALSALL CRISIS SUPPORT SCHEME-FURNITURE & EQUIPMENT,ELECTRONIC SALES,GPC
WALSALL COUNCIL,HTTP://OPENDATACOMMUNITIES.ORG/ID/METROPOLITAN-DISTRICT-COUNCIL/WALSALL,31/12/2016,CHANGE & GOVERNANCE,CRAZY HOUSE FURNITURE,12/12/2016,H59620161214UQOOMPPVR-1,350.00,WALSALL CRISIS SUPPORT SCHEME-FURNITURE & EQUIPMENT,"EQUIPMENT, FURNITURE, AND HOME FURNISHINGS STORES ",GPC
WALSALL COUNCIL,HTTP://OPENDATACOMMUNITIES.ORG/ID/METROPOLITAN-DISTRICT-COUNCIL/WALSALL,31/12/2016,CHANGE & GOVERNANCE,SPORTSDIRECT 153,12/12/2016,H59620161214VIJGIGUHP-1,25.04,WALSALL CRISIS SUPPORT SCHEME-FURNITURE & EQUIPMENT,SPORTING GOODS STORES,GPC
WALSALL COUNCIL,HTTP://OPENDATACOMMUNITIES.ORG/ID/METROPOLITAN-DISTRICT-COUNCIL/WALSALL,31/12/2016,CHANGE & GOVERNANCE,CRAZY HOUSE FURNITURE,12/12/2016,H59620161214SWEDQBMPW-1,60.00,WALSALL CRISIS SUPPORT SCHEME-FURNITURE & EQUIPMENT,"EQUIPMENT, FURNITURE, AND HOME FURNISHINGS STORES ",GPC
WALSALL COUNCIL,HTTP://OPENDATACOMMUNITIES.ORG/ID/METROPOLITAN-DISTRICT-COUNCIL/WALSALL,31/12/2016,CHANGE & GOVERNANCE,CRAZY HOUSE FURNITURE,12/12/2016,H59620161214MPRNXLIXU-1,95.00,WALSALL CRISIS SUPPORT SCHEME-FURNITURE & EQUIPMENT,"EQUIPMENT, FURNITURE, AND HOME FURNISHINGS STORES ",GPC
WALSALL COUNCIL,HTTP://OPENDATACOMMUNITIES.ORG/ID/METROPOLITAN-DISTRICT-COUNCIL/WALSALL,31/12/2016,CHANGE & GOVERNANCE,"CLIVE MARK SCH,",12/12/2016,H59620161214HUYUQXYJD-1,57.00,WALSALL CRISIS SUPPORT SCHEME-STATIONERY & GENERAL SUPPLIES-,"OFFICE, SCHOOL SUPPLY, AND STATIONERY STORES",GPC
WALSALL COUNCIL,HTTP://OPENDATACOMMUNITIES.ORG/ID/METROPOLITAN-DISTRICT-COUNCIL/WALSALL,31/12/2016,CHANGE & GOVERNANCE,CRAZY HOUSE FURNITURE,12/12/2016,H59620161214KBGKVWEKP-1,145.00,WALSALL CRISIS SUPPORT SCHEME-FURNITURE & EQUIPMENT,"EQUIPMENT, FURNITURE, AND HOME FURNISHINGS STORES ",GPC
WALSALL COUNCIL,HTTP://OPENDATACOMMUNITIES.ORG/ID/METROPOLITAN-DISTRICT-COUNCIL/WALSALL,31/12/2016,CHANGE & GOVERNANCE,CRAZY HOUSE FURNITURE,12/12/2016,H59620161214JPYDBBZZP-1,335.00,WALSALL CRISIS SUPPORT SCHEME-FURNITURE & EQUIPMENT,"EQUIPMENT, FURNITURE, AND HOME FURNISHINGS STORES ",GPC
WALSALL COUNCIL,HTTP://OPENDATACOMMUNITIES.ORG/ID/METROPOLITAN-DISTRICT-COUNCIL/WALSALL,31/12/2016,CHANGE & GOVERNANCE,CRAZY HOUSE FURNITURE,12/12/2016,H59620161214DXZDIFNPE-1,60.00,WALSALL CRISIS SUPPORT SCHEME-FURNITURE & EQUIPMENT,"EQUIPMENT, FURNITURE, AND HOME FURNISHINGS STORES ",GPC
WALSALL COUNCIL,HTTP://OPENDATACOMMUNITIES.ORG/ID/METROPOLITAN-DISTRICT-COUNCIL/WALSALL,31/12/2016,CHANGE & GOVERNANCE,CRAZY HOUSE FURNITURE,12/12/2016,H59620161214DZCQORKWO-1,60.00,WALSALL CRISIS SUPPORT SCHEME-FURNITURE & EQUIPMENT,"EQUIPMENT, FURNITURE, AND HOME FURNISHINGS STORES ",GPC
WALSALL COUNCIL,HTTP://OPENDATACOMMUNITIES.ORG/ID/METROPOLITAN-DISTRICT-COUNCIL/WALSALL,31/12/2016,CHANGE & GOVERNANCE,CRAZY HOUSE FURNITURE,12/12/2016,H59620161214FBTNHULEQ-1,425.00,WALSALL CRISIS SUPPORT SCHEME-FURNITURE & EQUIPMENT,"EQUIPMENT, FURNITURE, AND HOME FURNISHINGS STORES ",GPC
WALSALL COUNCIL,HTTP://OPENDATACOMMUNITIES.ORG/ID/METROPOLITAN-DISTRICT-COUNCIL/WALSALL,31/12/2016,CHANGE & GOVERNANCE,CRAZY HOUSE FURNITURE,12/12/2016,H59620161214HCTYYLNHV-1,385.00,WALSALL CRISIS SUPPORT SCHEME-FURNITURE & EQUIPMENT,"EQUIPMENT, FURNITURE, AND HOME FURNISHINGS STORES ",GPC
WALSALL COUNCIL,HTTP://OPENDATACOMMUNITIES.ORG/ID/METROPOLITAN-DISTRICT-COUNCIL/WALSALL,31/12/2016,CHANGE & GOVERNANCE,CRAZY HOUSE FURNITURE,12/12/2016,H59620161214KPMPRMARR-1,515.00,WALSALL CRISIS SUPPORT SCHEME-FURNITURE & EQUIPMENT,"EQUIPMENT, FURNITURE, AND HOME FURNISHINGS STORES ",GPC
WALSALL COUNCIL,HTTP://OPENDATACOMMUNITIES.ORG/ID/METROPOLITAN-DISTRICT-COUNCIL/WALSALL,31/12/2016,CHANGE & GOVERNANCE,CRAZY HOUSE FURNITURE,12/12/2016,H59620161214OHCUVRJXA-1,275.00,WALSALL CRISIS SUPPORT SCHEME-FURNITURE & EQUIPMENT,"EQUIPMENT, FURNITURE, AND HOME FURNISHINGS STORES ",GPC
WALSALL COUNCIL,HTTP://OPENDATACOMMUNITIES.ORG/ID/METROPOLITAN-DISTRICT-COUNCIL/WALSALL,31/12/2016,CHANGE & GOVERNANCE,BORSHCH LIMITED,12/12/2016,H59620161214RPAFMBMVB-1,160.00,WALSALL CRISIS SUPPORT SCHEME-FURNITURE & EQUIPMENT,ELECTRONIC SALES,GPC
WALSALL COUNCIL,HTTP://OPENDATACOMMUNITIES.ORG/ID/METROPOLITAN-DISTRICT-COUNCIL/WALSALL,31/12/2016,CHANGE & GOVERNANCE,BORSHCH LIMITED,12/12/2016,H59620161214STPRHEOOE-1,195.00,WALSALL CRISIS SUPPORT SCHEME-FURNITURE & EQUIPMENT,ELECTRONIC SALES,GPC
WALSALL COUNCIL,HTTP://OPENDATACOMMUNITIES.ORG/ID/METROPOLITAN-DISTRICT-COUNCIL/WALSALL,31/12/2016,CHANGE & GOVERNANCE,CRAZY HOUSE FURNITURE,12/12/2016,H59620161214TBVENBVQB-1,60.00,WALSALL CRISIS SUPPORT SCHEME-FURNITURE & EQUIPMENT,"EQUIPMENT, FURNITURE, AND HOME FURNISHINGS STORES ",GPC
WALSALL COUNCIL,HTTP://OPENDATACOMMUNITIES.ORG/ID/METROPOLITAN-DISTRICT-COUNCIL/WALSALL,31/12/2016,CHANGE & GOVERNANCE,BORSHCH LIMITED,12/12/2016,H59620161214TJNEIUIBP-1,530.00,WALSALL CRISIS SUPPORT SCHEME-FURNITURE & EQUIPMENT,ELECTRONIC SALES,GPC
WALSALL COUNCIL,HTTP://OPENDATACOMMUNITIES.ORG/ID/METROPOLITAN-DISTRICT-COUNCIL/WALSALL,31/12/2016,CHANGE & GOVERNANCE,CRAZY HOUSE FURNITURE,12/12/2016,H59620161214VSFWSNCXP-1,275.00,WALSALL CRISIS SUPPORT SCHEME-FURNITURE & EQUIPMENT,"EQUIPMENT, FURNITURE, AND HOME FURNISHINGS STORES ",GPC
WALSALL COUNCIL,HTTP://OPENDATACOMMUNITIES.ORG/ID/METROPOLITAN-DISTRICT-COUNCIL/WALSALL,31/12/2016,CHANGE & GOVERNANCE,CRAZY HOUSE FURNITURE,12/12/2016,H59620161214WOGFTLAXG-1,60.00,WALSALL CRISIS SUPPORT SCHEME-FURNITURE & EQUIPMENT,"EQUIPMENT, FURNITURE, AND HOME FURNISHINGS STORES ",GPC
WALSALL COUNCIL,HTTP://OPENDATACOMMUNITIES.ORG/ID/METROPOLITAN-DISTRICT-COUNCIL/WALSALL,31/12/2016,CHANGE & GOVERNANCE,CRAZY HOUSE FURNITURE,12/12/2016,H59620161214XCUTKVWBF-1,65.00,WALSALL CRISIS SUPPORT SCHEME-FURNITURE & EQUIPMENT,"EQUIPMENT, FURNITURE, AND HOME FURNISHINGS STORES ",GPC
WALSALL COUNCIL,HTTP://OPENDATACOMMUNITIES.ORG/ID/METROPOLITAN-DISTRICT-COUNCIL/WALSALL,31/12/2016,CHILDRENS SERVICES,ARGOS RETAIL GROUP,12/12/2016,H59620161214JHXLQCLDH-1,69.99,REDRUTH ROAD-RESIDENTS PERSONAL EXPENSES-AL,DISCOUNT STORES,GPC
WALSALL COUNCIL,HTTP://OPENDATACOMMUNITIES.ORG/ID/METROPOLITAN-DISTRICT-COUNCIL/WALSALL,31/12/2016,ECONOMY & ENVIRONMENT,ESPO,12/12/2016,H59620161214WFCOCGSKV-1,133.06,WALSALL TOWN HALL-MISCELLANEOUS SUPPLIES,GOVERNMENT SERVICES,GPC
WALSALL COUNCIL,HTTP://OPENDATACOMMUNITIES.ORG/ID/METROPOLITAN-DISTRICT-COUNCIL/WALSALL,31/12/2016,CHANGE & GOVERNANCE,ASDA SUPERSTORE,12/12/2016,H59620161214GFCFCTWTI-1,20.00,ACCOMMODATION SERVICES MANAGEM-FOOD AND BEVERAGES-PROVISIONS,GROCERY STORES AND SUPERMARKETS,GPC
WALSALL COUNCIL,HTTP://OPENDATACOMMUNITIES.ORG/ID/METROPOLITAN-DISTRICT-COUNCIL/WALSALL,31/12/2016,CHANGE & GOVERNANCE,TESCO STORES 6161,12/12/2016,H59620161214LMYTMKBXL-1,10.38,ACCOMMODATION SERVICES MANAGEM-FOOD AND BEVERAGES-PROVISIONS,GROCERY STORES AND SUPERMARKETS,GPC
WALSALL COUNCIL,HTTP://OPENDATACOMMUNITIES.ORG/ID/METROPOLITAN-DISTRICT-COUNCIL/WALSALL,31/12/2016,CHANGE & GOVERNANCE,ASDA,12/12/2016,H59620161214GVPVDYJIA-1,10.80,WALSALL CRISIS SUPPORT SCHEME-FOOD AND BEVERAGES-PROVISIONS,GROCERY STORES AND SUPERMARKETS,GPC
WALSALL COUNCIL,HTTP://OPENDATACOMMUNITIES.ORG/ID/METROPOLITAN-DISTRICT-COUNCIL/WALSALL,31/12/2016,CHANGE & GOVERNANCE,ASDA,12/12/2016,H59620161214GVPVDYJIA-2,0.49,WALSALL CRISIS SUPPORT SCHEME-FOOD AND BEVERAGES-PROVISIONS,GROCERY STORES AND SUPERMARKETS,GPC
WALSALL COUNCIL,HTTP://OPENDATACOMMUNITIES.ORG/ID/METROPOLITAN-DISTRICT-COUNCIL/WALSALL,31/12/2016,CHILDRENS SERVICES,TESCO STORES 6161,12/12/2016,H59620161214YXRSJNJZX-1,3.62,57 LICHFIELD ROAD-FOOD AND BEVERAGES-PROVISIONS,GROCERY STORES AND SUPERMARKETS,GPC
WALSALL COUNCIL,HTTP://OPENDATACOMMUNITIES.ORG/ID/METROPOLITAN-DISTRICT-COUNCIL/WALSALL,31/12/2016,CHILDRENS SERVICES,COMFORT BEDS AND F,12/12/2016,H59620161214ZOFBYVVOB-1,188.00,57 LICHFIELD ROAD-FURNITURE & EQUIPMENT,"EQUIPMENT, FURNITURE, AND HOME FURNISHINGS STORES ",GPC
WALSALL COUNCIL,HTTP://OPENDATACOMMUNITIES.ORG/ID/METROPOLITAN-DISTRICT-COUNCIL/WALSALL,31/12/2016,CHILDRENS SERVICES,COMFORT BEDS AND F,12/12/2016,H59620161214BVGYFISLF-1,99.00,57 LICHFIELD ROAD-FURNITURE & EQUIPMENT,"EQUIPMENT, FURNITURE, AND HOME FURNISHINGS STORES ",GPC
WALSALL COUNCIL,HTTP://OPENDATACOMMUNITIES.ORG/ID/METROPOLITAN-DISTRICT-COUNCIL/WALSALL,31/12/2016,CHILDRENS SERVICES,W M MORRISONS.COM,12/12/2016,H59620161214IALCTAJMP-1,7.00,57 LICHFIELD ROAD-FOOD AND BEVERAGES-PROVISIONS,GROCERY STORES AND SUPERMARKETS,GPC
WALSALL COUNCIL,HTTP://OPENDATACOMMUNITIES.ORG/ID/METROPOLITAN-DISTRICT-COUNCIL/WALSALL,31/12/2016,CHILDRENS SERVICES,W M MORRISONS.COM,12/12/2016,H59620161214VBHUMUJAQ-1,101.93,57 LICHFIELD ROAD-FOOD AND BEVERAGES-PROVISIONS,GROCERY STORES AND SUPERMARKETS,GPC
WALSALL COUNCIL,HTTP://OPENDATACOMMUNITIES.ORG/ID/METROPOLITAN-DISTRICT-COUNCIL/WALSALL,31/12/2016,CHILDRENS SERVICES,TRAINLINE,12/12/2016,H59620161214MYROYGTIT-1,67.73,SAFEGUARDING & FAMILY SUPPORT-OFFICER/STAFF-PUBLIC TRANSPORT,PASSENGER RAILWAYS,GPC
WALSALL COUNCIL,HTTP://OPENDATACOMMUNITIES.ORG/ID/METROPOLITAN-DISTRICT-COUNCIL/WALSALL,31/12/2016,CHILDRENS SERVICES,MANCUBS CATERING LIMIT,12/12/2016,H59620161214BPBXTIFEC-1,42.45,PARENTING TEAM-SUBSISTENCE OFFICERS-EXPENSES,"EATING PLACES, RESTAURANTS",GPC
WALSALL COUNCIL,HTTP://OPENDATACOMMUNITIES.ORG/ID/METROPOLITAN-DISTRICT-COUNCIL/WALSALL,31/12/2016,CHILDRENS SERVICES,THE BEACH HUT,12/12/2016,H59620161214DPNGNKWTF-1,12.00,PARENTING TEAM-CRECHE FACILITIES-SERVICES-FEE,CHILD CARE SERVICES ,GPC
WALSALL COUNCIL,HTTP://OPENDATACOMMUNITIES.ORG/ID/METROPOLITAN-DISTRICT-COUNCIL/WALSALL,31/12/2016,CHILDRENS SERVICES,LONDON MIDLAND SEL,12/12/2016,H59620161214YNHVUJDPH-1,5.40,ALUMWELL JUNIOR SCHOOL-OFFICER/STAFF-PUBLIC TRANSPORT,PASSENGER RAILWAYS,GPC
WALSALL COUNCIL,HTTP://OPENDATACOMMUNITIES.ORG/ID/METROPOLITAN-DISTRICT-COUNCIL/WALSALL,31/12/2016,ECONOMY & ENVIRONMENT,TESCO DIRECT,12/12/2016,H59620161214ZYBMJVMLL-1,41.50,YEI (IMPACT) PROGRAMME-MISCELLANEOUS SUPPLIES,MISCELLANEOUS AND SPECIALTY RETAIL STORES,GPC
WALSALL COUNCIL,HTTP://OPENDATACOMMUNITIES.ORG/ID/METROPOLITAN-DISTRICT-COUNCIL/WALSALL,31/12/2016,ECONOMY & ENVIRONMENT,TESCO DIRECT,12/12/2016,H59620161214ZYBMJVMLL-2,41.50,YEI ESF FUNDING-MISCELLANEOUS SUPPLIES,MISCELLANEOUS AND SPECIALTY RETAIL STORES,GPC
WALSALL COUNCIL,HTTP://OPENDATACOMMUNITIES.ORG/ID/METROPOLITAN-DISTRICT-COUNCIL/WALSALL,31/12/2016,ECONOMY & ENVIRONMENT,MNA LTD CARDCHARGE,12/12/2016,H59620161214NORGVXTLJ-1,66.00,DEVELOPMENT MANAGEMENT-PERIODICALS/MAGAZINES/NEWSPAPE,NEWS DEALERS AND NEWSSTANDS,GPC
WALSALL COUNCIL,HTTP://OPENDATACOMMUNITIES.ORG/ID/METROPOLITAN-DISTRICT-COUNCIL/WALSALL,31/12/2016,CHILDRENS SERVICES,W M MORRISONS.COM,12/12/2016,H59620161214SQNIVOJTB-1,8.16,REDRUTH ROAD-FOOD AND BEVERAGES-PROVISIONS,GROCERY STORES AND SUPERMARKETS,GPC
WALSALL COUNCIL,HTTP://OPENDATACOMMUNITIES.ORG/ID/METROPOLITAN-DISTRICT-COUNCIL/WALSALL,31/12/2016,CHILDRENS SERVICES,W M MORRISONS.COM,12/12/2016,H59620161214SQNIVOJTB-2,66.21,REDRUTH ROAD-FOOD AND BEVERAGES-PROVISIONS,GROCERY STORES AND SUPERMARKETS,GPC
WALSALL COUNCIL,HTTP://OPENDATACOMMUNITIES.ORG/ID/METROPOLITAN-DISTRICT-COUNCIL/WALSALL,31/12/2016,CHANGE & GOVERNANCE,URBAN LINK ESTATE & LE,12/12/2016,H59620161214CGMURVWTQ-1,300.00,HOMELESS PREVENTION GRANT-RENTS,REAL ESTATE MANAGERS - RENTALS,GPC
WALSALL COUNCIL,HTTP://OPENDATACOMMUNITIES.ORG/ID/METROPOLITAN-DISTRICT-COUNCIL/WALSALL,31/12/2016,CHILDRENS SERVICES,W M MORRISONS.COM,12/12/2016,H59620161214PBTGDMCSL-1,3.06,BIRCHILLS CHILDCARE SERVICES-FOOD AND BEVERAGES-PROVISIONS,GROCERY STORES AND SUPERMARKETS,GPC
WALSALL COUNCIL,HTTP://OPENDATACOMMUNITIES.ORG/ID/METROPOLITAN-DISTRICT-COUNCIL/WALSALL,31/12/2016,CHILDRENS SERVICES,W M MORRISONS.COM,12/12/2016,H59620161214PBTGDMCSL-2,3.50,BIRCHILLS CHILDCARE SERVICES-CARRIAGE-IN,GROCERY STORES AND SUPERMARKETS,GPC
WALSALL COUNCIL,HTTP://OPENDATACOMMUNITIES.ORG/ID/METROPOLITAN-DISTRICT-COUNCIL/WALSALL,31/12/2016,CHILDRENS SERVICES,W M MORRISONS.COM,12/12/2016,H59620161214PBTGDMCSL-3,132.45,BIRCHILLS CHILDCARE SERVICES-FOOD AND BEVERAGES-PROVISIONS,GROCERY STORES AND SUPERMARKETS,GPC
WALSALL COUNCIL,HTTP://OPENDATACOMMUNITIES.ORG/ID/METROPOLITAN-DISTRICT-COUNCIL/WALSALL,31/12/2016,CHILDRENS SERVICES,POUNDLAND LTD 1427,12/12/2016,H59620161214MPTPGNUTA-1,22.00,BIRCHILLS CHILDCARE SERVICES-TOYS & GAMES-MATERIALS,DISCOUNT STORES,GPC
WALSALL COUNCIL,HTTP://OPENDATACOMMUNITIES.ORG/ID/METROPOLITAN-DISTRICT-COUNCIL/WALSALL,31/12/2016,CHILDRENS SERVICES,B&M RETAIL,12/12/2016,H59620161214NWIPDWUPN-1,46.86,BIRCHILLS CHILDCARE SERVICES-TOYS & GAMES-MATERIALS,DISCOUNT STORES,GPC
WALSALL COUNCIL,HTTP://OPENDATACOMMUNITIES.ORG/ID/METROPOLITAN-DISTRICT-COUNCIL/WALSALL,31/12/2016,ECONOMY & ENVIRONMENT,TESCO STORES 6672,12/12/2016,H59620161214KRIGTKGVC-1,7.31,WALSALL OUTDOOR ADVENTURE CENT-FOOD AND BEVERAGES-PROVISIONS,GROCERY STORES AND SUPERMARKETS,GPC
WALSALL COUNCIL,HTTP://OPENDATACOMMUNITIES.ORG/ID/METROPOLITAN-DISTRICT-COUNCIL/WALSALL,31/12/2016,ECONOMY & ENVIRONMENT,TESCO STORES 6672,12/12/2016,H59620161214KRIGTKGVC-2,13.45,WALSALL OUTDOOR ADVENTURE CENT-FOOD AND BEVERAGES-PROVISIONS,GROCERY STORES AND SUPERMARKETS,GPC
WALSALL COUNCIL,HTTP://OPENDATACOMMUNITIES.ORG/ID/METROPOLITAN-DISTRICT-COUNCIL/WALSALL,31/12/2016,CHILDRENS SERVICES,TRAVEL WEST MIDLAN,12/12/2016,H59620161214QKVOJWJRT-1,84.00,LOOKED AFTER CHILDRENS SOCIAL -TRANSFER PAYMENTS - SOCIAL SER,BUS LINES,GPC
WALSALL COUNCIL,HTTP://OPENDATACOMMUNITIES.ORG/ID/METROPOLITAN-DISTRICT-COUNCIL/WALSALL,31/12/2016,CHILDRENS SERVICES,TESCO STORES 5503,12/12/2016,H59620161214TIFSRKSZF-1,3.00,LOOKED AFTER CHILDRENS SOCIAL -TRANSFER PAYMENTS - SOCIAL SER,GROCERY STORES AND SUPERMARKETS,GPC
WALSALL COUNCIL,HTTP://OPENDATACOMMUNITIES.ORG/ID/METROPOLITAN-DISTRICT-COUNCIL/WALSALL,31/12/2016,CHILDRENS SERVICES,TESCO STORES 5503,12/12/2016,H59620161214TIFSRKSZF-2,42.19,LOOKED AFTER CHILDRENS SOCIAL -TRANSFER PAYMENTS - SOCIAL SER,GROCERY STORES AND SUPERMARKETS,GPC
WALSALL COUNCIL,HTTP://OPENDATACOMMUNITIES.ORG/ID/METROPOLITAN-DISTRICT-COUNCIL/WALSALL,31/12/2016,CHILDRENS SERVICES,AMAZON UK MARKETPLACE,12/12/2016,H59620161214GWOOCKONN-1,16.97,GENERAL RESOURCES & MISC-GENERAL MATERIALS,BOOK STORES,GPC
WALSALL COUNCIL,HTTP://OPENDATACOMMUNITIES.ORG/ID/METROPOLITAN-DISTRICT-COUNCIL/WALSALL,31/12/2016,CHILDRENS SERVICES,AMAZON UK MARKETPLACE,12/12/2016,H59620161214HYQFFMPCM-1,19.25,GENERAL RESOURCES & MISC-GENERAL MATERIALS,MISCELLANEOUS AND SPECIALTY RETAIL STORES,GPC
WALSALL COUNCIL,HTTP://OPENDATACOMMUNITIES.ORG/ID/METROPOLITAN-DISTRICT-COUNCIL/WALSALL,31/12/2016,CHILDRENS SERVICES,AMAZON UK RETAIL,12/12/2016,H59620161214JFGIHCKIN-1,13.98,GENERAL RESOURCES & MISC-GENERAL MATERIALS,OTHER DIRECT MARKETING-OTHER DIRECT MARKETERS,GPC
WALSALL COUNCIL,HTTP://OPENDATACOMMUNITIES.ORG/ID/METROPOLITAN-DISTRICT-COUNCIL/WALSALL,31/12/2016,CHILDRENS SERVICES,ASDA SUPERSTORE,12/12/2016,H59620161214KZXVQAEFR-1,3.36,BLOXWICH CHILDCARE SERVICES-FOOD AND BEVERAGES-PROVISIONS,GROCERY STORES AND SUPERMARKETS,GPC
WALSALL COUNCIL,HTTP://OPENDATACOMMUNITIES.ORG/ID/METROPOLITAN-DISTRICT-COUNCIL/WALSALL,31/12/2016,CHILDRENS SERVICES,ASDA SUPERSTORE,12/12/2016,H59620161214KZXVQAEFR-2,14.61,BLOXWICH CHILDCARE SERVICES-FOOD AND BEVERAGES-PROVISIONS,GROCERY STORES AND SUPERMARKETS,GPC
WALSALL COUNCIL,HTTP://OPENDATACOMMUNITIES.ORG/ID/METROPOLITAN-DISTRICT-COUNCIL/WALSALL,31/12/2016,CHILDRENS SERVICES,W M MORRISONS.COM,12/12/2016,H59620161214ZSDEUYPLI-1,65.05,ASD UNIT-GENERAL MATERIALS,GROCERY STORES AND SUPERMARKETS,GPC
WALSALL COUNCIL,HTTP://OPENDATACOMMUNITIES.ORG/ID/METROPOLITAN-DISTRICT-COUNCIL/WALSALL,31/12/2016,CHILDRENS SERVICES,W M MORRISONS.COM,12/12/2016,H59620161214ZSDEUYPLI-2,60.00,FOOD TECHNOLOGY-GENERAL MATERIALS,GROCERY STORES AND SUPERMARKETS,GPC
WALSALL COUNCIL,HTTP://OPENDATACOMMUNITIES.ORG/ID/METROPOLITAN-DISTRICT-COUNCIL/WALSALL,31/12/2016,CHILDRENS SERVICES,W M MORRISONS.COM,12/12/2016,H59620161214ZSDEUYPLI-3,136.73,FOOD TECHNOLOGY-GENERAL MATERIALS,GROCERY STORES AND SUPERMARKETS,GPC
WALSALL COUNCIL,HTTP://OPENDATACOMMUNITIES.ORG/ID/METROPOLITAN-DISTRICT-COUNCIL/WALSALL,31/12/2016,CHILDRENS SERVICES,POST OFFICE COUNTER,12/12/2016,H59620161214HEJQULISB-1,16.93,TRANSITION AND LEAVING CARE-POSTAGES AND COURIER SERVICES,POSTAL SERVICES - GOVERNMENT ONLY,GPC
WALSALL COUNCIL,HTTP://OPENDATACOMMUNITIES.ORG/ID/METROPOLITAN-DISTRICT-COUNCIL/WALSALL,31/12/2016,CHANGE & GOVERNANCE,"BOOTS,WALSALL",12/12/2016,H59620161214YXPHBASMV-1,11.00,WALSALL CRISIS SUPPORT SCHEME-CRISIS SUPPORT PAYMENTS,"DRUG STORES, PHARMACIES",GPC
WALSALL COUNCIL,HTTP://OPENDATACOMMUNITIES.ORG/ID/METROPOLITAN-DISTRICT-COUNCIL/WALSALL,31/12/2016,ECONOMY & ENVIRONMENT,COACHWISELT,12/12/2016,H59620161214XFZFRFNOG-1,40.00,SPECIALISED CONDITIONS ADULT L-PROFESSIONAL FEES AND SERVICES,PROFESSIONAL SERVICES,GPC
WALSALL COUNCIL,HTTP://OPENDATACOMMUNITIES.ORG/ID/METROPOLITAN-DISTRICT-COUNCIL/WALSALL,31/12/2016,ECONOMY & ENVIRONMENT,AMAZON UK MARKETPLACE,12/12/2016,H59620161214QTKFSNGDO-1,8.95,BLOXWICH LEISURE CENTRE-MISCELLANEOUS SUPPLIES,MISCELLANEOUS AND SPECIALTY RETAIL STORES,GPC
WALSALL COUNCIL,HTTP://OPENDATACOMMUNITIES.ORG/ID/METROPOLITAN-DISTRICT-COUNCIL/WALSALL,31/12/2016,CHILDRENS SERVICES,ASDA SUPERSTORE,12/12/2016,H59620161214PBSBANIHS-1,4.75,BLAKENALL CHILDCARE SERVICES-FOOD AND BEVERAGES-PROVISIONS,GROCERY STORES AND SUPERMARKETS,GPC
WALSALL COUNCIL,HTTP://OPENDATACOMMUNITIES.ORG/ID/METROPOLITAN-DISTRICT-COUNCIL/WALSALL,31/12/2016,CHILDRENS SERVICES,ASDA SUPERSTORE,12/12/2016,H59620161214LQEFRBRNL-1,18.40,MARY ELLIOTT SPECIAL SCHOOL-BREAD-GENERAL-PROVISIONS,GROCERY STORES AND SUPERMARKETS,GPC
WALSALL COUNCIL,HTTP://OPENDATACOMMUNITIES.ORG/ID/METROPOLITAN-DISTRICT-COUNCIL/WALSALL,31/12/2016,CHANGE & GOVERNANCE,TESCO STORES 6161,12/12/2016,H59620161214NCEEIRUFI-1,7.90,YOUNG PERSONS HOMELESS SERVICE-FOOD AND BEVERAGES-PROVISIONS,GROCERY STORES AND SUPERMARKETS,GPC
WALSALL COUNCIL,HTTP://OPENDATACOMMUNITIES.ORG/ID/METROPOLITAN-DISTRICT-COUNCIL/WALSALL,31/12/2016,CHANGE & GOVERNANCE,TESCO STORES 6161,12/12/2016,H59620161214NCEEIRUFI-3,12.62,YOUNG PERSONS HOMELESS SERVICE-FOOD AND BEVERAGES-PROVISIONS,GROCERY STORES AND SUPERMARKETS,GPC
WALSALL COUNCIL,HTTP://OPENDATACOMMUNITIES.ORG/ID/METROPOLITAN-DISTRICT-COUNCIL/WALSALL,31/12/2016,CHANGE & GOVERNANCE,TESCO STORES 6161,12/12/2016,H59620161214NCEEIRUFI-2,0.30,YOUNG PERSONS HOMELESS SERVICE-FOOD AND BEVERAGES-PROVISIONS,GROCERY STORES AND SUPERMARKETS,GPC
WALSALL COUNCIL,HTTP://OPENDATACOMMUNITIES.ORG/ID/METROPOLITAN-DISTRICT-COUNCIL/WALSALL,31/12/2016,CHANGE & GOVERNANCE,TESCO STORES 6161,12/12/2016,H59620161214CIBKFHYFD-1,0.10,YOUNG PERSONS HOMELESS SERVICE-FOOD AND BEVERAGES-PROVISIONS,GROCERY STORES AND SUPERMARKETS,GPC
WALSALL COUNCIL,HTTP://OPENDATACOMMUNITIES.ORG/ID/METROPOLITAN-DISTRICT-COUNCIL/WALSALL,31/12/2016,CHANGE & GOVERNANCE,TESCO STORES 6161,12/12/2016,H59620161214CIBKFHYFD-2,21.40,YOUNG PERSONS HOMELESS SERVICE-FOOD AND BEVERAGES-PROVISIONS,GROCERY STORES AND SUPERMARKETS,GPC
WALSALL COUNCIL,HTTP://OPENDATACOMMUNITIES.ORG/ID/METROPOLITAN-DISTRICT-COUNCIL/WALSALL,31/12/2016,ECONOMY & ENVIRONMENT,GREETINGS HOUSE LTD,12/12/2016,H59620161214KGKFUFKJU-1,22.98,DARLASTON DISTRICT CENTRE-EVENTS,MISCELLANEOUS AND SPECIALTY RETAIL STORES,GPC
WALSALL COUNCIL,HTTP://OPENDATACOMMUNITIES.ORG/ID/METROPOLITAN-DISTRICT-COUNCIL/WALSALL,31/12/2016,ECONOMY & ENVIRONMENT,HOME BARGAINS,12/12/2016,H59620161214KMNWHLCPD-1,-20.97,BLOXWICH DISTRICT CENTRE-EVENTS,HARDWARE STORES,GPC
WALSALL COUNCIL,HTTP://OPENDATACOMMUNITIES.ORG/ID/METROPOLITAN-DISTRICT-COUNCIL/WALSALL,31/12/2016,CHILDRENS SERVICES,SKY SUBSCRIPTION,09/12/2016,H59620161214UYKHHNRGB-1,20.25,REDRUTH ROAD-RESIDENTS PERSONAL EXPENSES-AL,"CABLE, SATELLITE & OTHER PAY TV AND RADIO SERVICES",GPC
WALSALL COUNCIL,HTTP://OPENDATACOMMUNITIES.ORG/ID/METROPOLITAN-DISTRICT-COUNCIL/WALSALL,31/12/2016,CHILDRENS SERVICES,ITUNES.COM/BILL,12/12/2016,H59620161214JGMLHQVKG-1,13.30,WALSALL WOOD PRIMARY SCHOOL-FURNITURE & EQUIPMENT,RECORD SHOPS,GPC
WALSALL COUNCIL,HTTP://OPENDATACOMMUNITIES.ORG/ID/METROPOLITAN-DISTRICT-COUNCIL/WALSALL,31/12/2016,CHILDRENS SERVICES,W M MORRISON PLC,12/12/2016,H59620161214JZIGPBDQC-1,25.64,"43A HILTON ROAD, WILLENHALL-FOOD AND BEVERAGES-PROVISIONS",GROCERY STORES AND SUPERMARKETS,GPC
WALSALL COUNCIL,HTTP://OPENDATACOMMUNITIES.ORG/ID/METROPOLITAN-DISTRICT-COUNCIL/WALSALL,31/12/2016,CHILDRENS SERVICES,W M MORRISON PLC,12/12/2016,H59620161214JZIGPBDQC-2,102.61,"43A HILTON ROAD, WILLENHALL-FOOD AND BEVERAGES-PROVISIONS",GROCERY STORES AND SUPERMARKETS,GPC
WALSALL COUNCIL,HTTP://OPENDATACOMMUNITIES.ORG/ID/METROPOLITAN-DISTRICT-COUNCIL/WALSALL,31/12/2016,ECONOMY & ENVIRONMENT,MAPLIN CANNOCK WS11,12/12/2016,H59620161214BVNNWJOKK-1,39.96,COMMUNITY LIASON-COSTS (NOT INTERNAL RECHARGES),TELECOMMUNICATION EQUIPMENT & SALES,GPC
WALSALL COUNCIL,HTTP://OPENDATACOMMUNITIES.ORG/ID/METROPOLITAN-DISTRICT-COUNCIL/WALSALL,31/12/2016,ECONOMY & ENVIRONMENT,SIM MAYOU HARDWARE,12/12/2016,H59620161214DFUCLSDDT-1,47.96,"COMMUNITY LIASON-CROCKERY,HARDWARE & DISPOSABLE",HARDWARE STORES,GPC
WALSALL COUNCIL,HTTP://OPENDATACOMMUNITIES.ORG/ID/METROPOLITAN-DISTRICT-COUNCIL/WALSALL,31/12/2016,ECONOMY & ENVIRONMENT,EUROTOOL HIRE AND SALES,12/12/2016,H59620161214JFZQFZCOK-1,8.34,COMMUNITY LIASON-LEASING/HIRE/RENTAL-EQUIPMENT,EQUIPMENT RENTAL AND LEASING SERVICES,GPC
WALSALL COUNCIL,HTTP://OPENDATACOMMUNITIES.ORG/ID/METROPOLITAN-DISTRICT-COUNCIL/WALSALL,31/12/2016,CHILDRENS SERVICES,BROWNHILLS SKIP HIRE L,12/12/2016,H59620161214NEQPYOUXQ-1,120.00,PELSALL EDC-DISPOSAL OF WASTE-SERVICES-FEE,OTHER BUSINESS SERVICES,GPC
WALSALL COUNCIL,HTTP://OPENDATACOMMUNITIES.ORG/ID/METROPOLITAN-DISTRICT-COUNCIL/WALSALL,31/12/2016,CHILDRENS SERVICES,WM MORRISON FOOD.COM,12/12/2016,H59620161214YSVVVQBXD-1,0.96,NEW LEAF PUPIL REFERAL UNIT-FOOD AND BEVERAGES-PROVISIONS,GROCERY STORES AND SUPERMARKETS,GPC
WALSALL COUNCIL,HTTP://OPENDATACOMMUNITIES.ORG/ID/METROPOLITAN-DISTRICT-COUNCIL/WALSALL,31/12/2016,CHILDRENS SERVICES,WM MORRISON FOOD.COM,12/12/2016,H59620161214YSVVVQBXD-2,44.68,NEW LEAF PUPIL REFERAL UNIT-FOOD AND BEVERAGES-PROVISIONS,GROCERY STORES AND SUPERMARKETS,GPC
WALSALL COUNCIL,HTTP://OPENDATACOMMUNITIES.ORG/ID/METROPOLITAN-DISTRICT-COUNCIL/WALSALL,31/12/2016,ECONOMY & ENVIRONMENT,MARKS&SPENCER PLC,12/12/2016,H59620161214ROPQBSDJU-1,50.00,HEALTH CHECKS-PROFESSIONAL FEES AND SERVICES,GROCERY STORES AND SUPERMARKETS,GPC
WALSALL COUNCIL,HTTP://OPENDATACOMMUNITIES.ORG/ID/METROPOLITAN-DISTRICT-COUNCIL/WALSALL,31/12/2016,CHILDRENS SERVICES,WWW.REDSPOTTEDHANK,12/12/2016,H59620161214FMHFIIJCQ-1,81.00,INFORMATION SERVICES-OFFICER/STAFF-PUBLIC TRANSPORT,PASSENGER RAILWAYS,GPC
WALSALL COUNCIL,HTTP://OPENDATACOMMUNITIES.ORG/ID/METROPOLITAN-DISTRICT-COUNCIL/WALSALL,31/12/2016,CHILDRENS SERVICES,AMAZON UK MARKETPLACE,12/12/2016,H59620161214VXPEWRHGK-1,8.95,VIRTUAL SCHOOL - CENTRAL PUPIL-MISCELLANEOUS SUPPLIES,MISCELLANEOUS AND SPECIALTY RETAIL STORES,GPC
WALSALL COUNCIL,HTTP://OPENDATACOMMUNITIES.ORG/ID/METROPOLITAN-DISTRICT-COUNCIL/WALSALL,31/12/2016,CHILDRENS SERVICES,PC WORLD ONLINE,12/12/2016,H59620161214ZRTVTRQHQ-1,427.98,VIRTUAL SCHOOL - CENTRAL PUPIL-FURNITURE & EQUIPMENT,ELECTRONIC SALES,GPC
WALSALL COUNCIL,HTTP://OPENDATACOMMUNITIES.ORG/ID/METROPOLITAN-DISTRICT-COUNCIL/WALSALL,31/12/2016,CHILDRENS SERVICES,AMAZON UK MARKETPLACE,12/12/2016,H59620161214HFMHTLGUK-1,419.39,VIRTUAL SCHOOL - CENTRAL PUPIL-LIBRARY BOOKS,BOOK STORES,GPC
WALSALL COUNCIL,HTTP://OPENDATACOMMUNITIES.ORG/ID/METROPOLITAN-DISTRICT-COUNCIL/WALSALL,31/12/2016,CHILDRENS SERVICES,PC WORLD ONLINE,12/12/2016,H59620161214JWKIXXNJH-1,279.99,VIRTUAL SCHOOL - CENTRAL PUPIL-FURNITURE & EQUIPMENT,ELECTRONIC SALES,GPC
WALSALL COUNCIL,HTTP://OPENDATACOMMUNITIES.ORG/ID/METROPOLITAN-DISTRICT-COUNCIL/WALSALL,31/12/2016,CHILDRENS SERVICES,WM MORRISON 063,12/12/2016,H59620161214VJKGOPMSB-1,0.75,LOCALITY FAMILY SUPPORT-WEST-EVENTS,GROCERY STORES AND SUPERMARKETS,GPC
WALSALL COUNCIL,HTTP://OPENDATACOMMUNITIES.ORG/ID/METROPOLITAN-DISTRICT-COUNCIL/WALSALL,31/12/2016,CHILDRENS SERVICES,WM MORRISON 063,12/12/2016,H59620161214VJKGOPMSB-2,0.05,LOCALITY FAMILY SUPPORT-WEST-EVENTS,GROCERY STORES AND SUPERMARKETS,GPC
WALSALL COUNCIL,HTTP://OPENDATACOMMUNITIES.ORG/ID/METROPOLITAN-DISTRICT-COUNCIL/WALSALL,31/12/2016,CHILDRENS SERVICES,FSPRG.COM CARBONCOPYCL,09/12/2016,H59620161214TMMJLRTOB-1,29.52,ICT LEARNING RESOURCES-PUBLICATIONS/ORGANISATIONS-SUB,COMPUTER SOFTWARE STORES,GPC
WALSALL COUNCIL,HTTP://OPENDATACOMMUNITIES.ORG/ID/METROPOLITAN-DISTRICT-COUNCIL/WALSALL,31/12/2016,CHILDRENS SERVICES,ASDA SUPERSTORE,12/12/2016,H59620161214DDAQBXBLX-1,9.86,BLAKENALL CHILDCARE SERVICES-FOOD AND BEVERAGES-PROVISIONS,GROCERY STORES AND SUPERMARKETS,GPC
WALSALL COUNCIL,HTTP://OPENDATACOMMUNITIES.ORG/ID/METROPOLITAN-DISTRICT-COUNCIL/WALSALL,31/12/2016,CHILDRENS SERVICES,ASDA SUPERSTORE,12/12/2016,H59620161214DDAQBXBLX-2,0.60,BLAKENALL CHILDCARE SERVICES-FOOD AND BEVERAGES-PROVISIONS,GROCERY STORES AND SUPERMARKETS,GPC
WALSALL COUNCIL,HTTP://OPENDATACOMMUNITIES.ORG/ID/METROPOLITAN-DISTRICT-COUNCIL/WALSALL,31/12/2016,CHILDRENS SERVICES,B&M RETAIL,12/12/2016,H59620161214JFHLUWJRO-1,191.89,SPINDLETREE-NEW-FURNITURE & EQUIPMENT,DISCOUNT STORES,GPC
WALSALL COUNCIL,HTTP://OPENDATACOMMUNITIES.ORG/ID/METROPOLITAN-DISTRICT-COUNCIL/WALSALL,31/12/2016,CHILDRENS SERVICES,ASDA SUPERSTORE,12/12/2016,H59620161214VTODYQYSU-1,4.18,EDGAR STAMMERS CHILDCARE SERVI-FOOD AND BEVERAGES-PROVISIONS,GROCERY STORES AND SUPERMARKETS,GPC
WALSALL COUNCIL,HTTP://OPENDATACOMMUNITIES.ORG/ID/METROPOLITAN-DISTRICT-COUNCIL/WALSALL,31/12/2016,CHILDRENS SERVICES,ASDA SUPERSTORE,12/12/2016,H59620161214RJGGWTKZB-1,1.37,EDGAR STAMMERS CHILDCARE SERVI-FOOD AND BEVERAGES-PROVISIONS,GROCERY STORES AND SUPERMARKETS,GPC
WALSALL COUNCIL,HTTP://OPENDATACOMMUNITIES.ORG/ID/METROPOLITAN-DISTRICT-COUNCIL/WALSALL,31/12/2016,CHILDRENS SERVICES,ASDA SUPERSTORE,12/12/2016,H59620161214RJGGWTKZB-2,14.91,EDGAR STAMMERS CHILDCARE SERVI-FOOD AND BEVERAGES-PROVISIONS,GROCERY STORES AND SUPERMARKETS,GPC
WALSALL COUNCIL,HTTP://OPENDATACOMMUNITIES.ORG/ID/METROPOLITAN-DISTRICT-COUNCIL/WALSALL,31/12/2016,CHILDRENS SERVICES,LIDL UK,10/12/2016,H59620161213RFCTPIQMW-1,31.84,SPINDLETREE-FOOD AND BEVERAGES-PROVISIONS,GROCERY STORES AND SUPERMARKETS,GPC
WALSALL COUNCIL,HTTP://OPENDATACOMMUNITIES.ORG/ID/METROPOLITAN-DISTRICT-COUNCIL/WALSALL,31/12/2016,CHILDRENS SERVICES,LIDL UK,10/12/2016,H59620161213RFCTPIQMW-2,2.20,SPINDLETREE-FOOD AND BEVERAGES-PROVISIONS,GROCERY STORES AND SUPERMARKETS,GPC
WALSALL COUNCIL,HTTP://OPENDATACOMMUNITIES.ORG/ID/METROPOLITAN-DISTRICT-COUNCIL/WALSALL,31/12/2016,CHILDRENS SERVICES,REGISTRATION SERVICES,09/12/2016,H59620161213NKWDOWWGC-1,30.00,LOOKED AFTER CHILDRENS SOCIAL -MISC FEES AND EXPENSES,OTHER RECREATION SERVICES,GPC
WALSALL COUNCIL,HTTP://OPENDATACOMMUNITIES.ORG/ID/METROPOLITAN-DISTRICT-COUNCIL/WALSALL,31/12/2016,CHILDRENS SERVICES,HM PASSPORT OFFICE,10/12/2016,H59620161213TQXZVTQDD-1,46.00,LOOKED AFTER CHILDRENS SOCIAL -MISC FEES AND EXPENSES,GOVERNMENT SERVICES,GPC
WALSALL COUNCIL,HTTP://OPENDATACOMMUNITIES.ORG/ID/METROPOLITAN-DISTRICT-COUNCIL/WALSALL,31/12/2016,CHILDRENS SERVICES,AMAZON UK RETAIL,10/12/2016,H59620161213QSBQDCIWY-1,9.49,TOPIC-GENERAL MATERIALS,OTHER DIRECT MARKETING-OTHER DIRECT MARKETERS,GPC
WALSALL COUNCIL,HTTP://OPENDATACOMMUNITIES.ORG/ID/METROPOLITAN-DISTRICT-COUNCIL/WALSALL,31/12/2016,ECONOMY & ENVIRONMENT,AMAZON UK MARKETPLACE,09/12/2016,H59620161213LNSLYMIPZ-1,8.53,LEATHER MUSEUM-STATIONERY & GENERAL SUPPLIES-,BOOK STORES,GPC
WALSALL COUNCIL,HTTP://OPENDATACOMMUNITIES.ORG/ID/METROPOLITAN-DISTRICT-COUNCIL/WALSALL,31/12/2016,ECONOMY & ENVIRONMENT,TRAINLINE,09/12/2016,H59620161213MMOUKSDEF-1,31.37,DEVELOPMENT & DELIVERY-OTHER-TRAVEL ALLOWANCES,PASSENGER RAILWAYS,GPC
WALSALL COUNCIL,HTTP://OPENDATACOMMUNITIES.ORG/ID/METROPOLITAN-DISTRICT-COUNCIL/WALSALL,31/12/2016,CHILDRENS SERVICES,BOURNE VALE RIDING,09/12/2016,H59620161213KUOBGADWI-1,19.00,"43A HILTON ROAD, WILLENHALL-RESIDENTS PERSONAL EXPENSES-AL","CLUBS COUNTRY CLUBS, MEMBERSHIP",GPC
WALSALL COUNCIL,HTTP://OPENDATACOMMUNITIES.ORG/ID/METROPOLITAN-DISTRICT-COUNCIL/WALSALL,31/12/2016,CHILDRENS SERVICES,MORPLAN LTD,09/12/2016,H59620161213YYUSTQGHR-1,30.62,D & T-GENERAL MATERIALS,"OFFICE, SCHOOL SUPPLY, AND STATIONERY STORES",GPC
WALSALL COUNCIL,HTTP://OPENDATACOMMUNITIES.ORG/ID/METROPOLITAN-DISTRICT-COUNCIL/WALSALL,31/12/2016,CHILDRENS SERVICES,PRICEWISE BARGAINS,09/12/2016,H59620161213XNIMXGNEE-1,6.00,LOCALITY FAMILY SUPPORT-WEST-EVENTS,GROCERY STORES AND SUPERMARKETS,GPC
WALSALL COUNCIL,HTTP://OPENDATACOMMUNITIES.ORG/ID/METROPOLITAN-DISTRICT-COUNCIL/WALSALL,31/12/2016,CHILDRENS SERVICES,PRICEWISE BARGAINS,09/12/2016,H59620161213EGZEUYYPA-1,20.69,LOCALITY FAMILY SUPPORT-WEST-EVENTS,GROCERY STORES AND SUPERMARKETS,GPC
WALSALL COUNCIL,HTTP://OPENDATACOMMUNITIES.ORG/ID/METROPOLITAN-DISTRICT-COUNCIL/WALSALL,31/12/2016,CHILDRENS SERVICES,ALDI,09/12/2016,H59620161213KJTDVHALW-1,49.84,LOCALITY FAMILY SUPPORT-WEST-FOOD AND BEVERAGES-PROVISIONS,GROCERY STORES AND SUPERMARKETS,GPC
WALSALL COUNCIL,HTTP://OPENDATACOMMUNITIES.ORG/ID/METROPOLITAN-DISTRICT-COUNCIL/WALSALL,31/12/2016,CHILDRENS SERVICES,PC WORLD ONLINE,09/12/2016,H59620161213PEBVOSWRK-1,438.99,VIRTUAL SCHOOL - CENTRAL PUPIL-FURNITURE & EQUIPMENT,ELECTRONIC SALES,GPC
WALSALL COUNCIL,HTTP://OPENDATACOMMUNITIES.ORG/ID/METROPOLITAN-DISTRICT-COUNCIL/WALSALL,31/12/2016,CHILDRENS SERVICES,AMAZON UK RETAIL,09/12/2016,H59620161213RHWQGGUHV-1,69.99,VIRTUAL SCHOOL - CENTRAL PUPIL-EDUCATION SCHOOLS (S52) CONTIN,OTHER DIRECT MARKETING-OTHER DIRECT MARKETERS,GPC
WALSALL COUNCIL,HTTP://OPENDATACOMMUNITIES.ORG/ID/METROPOLITAN-DISTRICT-COUNCIL/WALSALL,31/12/2016,CHILDRENS SERVICES,PC WORLD ONLINE,09/12/2016,H59620161213ASORDCIJK-1,404.00,VIRTUAL SCHOOL - CENTRAL PUPIL-FURNITURE & EQUIPMENT,ELECTRONIC SALES,GPC
WALSALL COUNCIL,HTTP://OPENDATACOMMUNITIES.ORG/ID/METROPOLITAN-DISTRICT-COUNCIL/WALSALL,31/12/2016,CHILDRENS SERVICES,OYSTER COMMUNICATIONS,09/12/2016,H59620161213SRTJQFKIV-1,100.19,INITIAL RESPONSE SERVICE-STATIONERY & GENERAL SUPPLIES-,PROFESSIONAL SERVICES,GPC
WALSALL COUNCIL,HTTP://OPENDATACOMMUNITIES.ORG/ID/METROPOLITAN-DISTRICT-COUNCIL/WALSALL,31/12/2016,ECONOMY & ENVIRONMENT,WWW.CADETDIRECT.COM,11/12/2016,H59620161213TBXTNBPGQ-1,43.40,COMMUNITY LIASON-MISCELLANEOUS SUPPLIES,MISCELLANEOUS AND SPECIALTY RETAIL STORES,GPC
WALSALL COUNCIL,HTTP://OPENDATACOMMUNITIES.ORG/ID/METROPOLITAN-DISTRICT-COUNCIL/WALSALL,31/12/2016,CHILDRENS SERVICES,PAYPAL *SEGBOARD,09/12/2016,H59620161213CAFRUBRQY-1,189.99,REDRUTH ROAD-RESIDENTS PERSONAL EXPENSES-AL,ELECTRONIC SALES,GPC
WALSALL COUNCIL,HTTP://OPENDATACOMMUNITIES.ORG/ID/METROPOLITAN-DISTRICT-COUNCIL/WALSALL,31/12/2016,CHILDRENS SERVICES,WWW.BARRBEACON.WALSALL,09/12/2016,H59620161213MTVWPFBIB-1,15.00,REDRUTH ROAD-RESIDENTS PERSONAL EXPENSES-AL,"SCHOOLS, ELEMENTARY AND SECONDARY",GPC
WALSALL COUNCIL,HTTP://OPENDATACOMMUNITIES.ORG/ID/METROPOLITAN-DISTRICT-COUNCIL/WALSALL,31/12/2016,CHANGE & GOVERNANCE,TVLICENSING.CO.UK,08/12/2016,H59620161213GQTJJUJKQ-1,145.50,YOUNG PERSONS HOMELESS SERVICE-CONSULTANTS FEES,"CONSULTING, MANAGEMENT, AND PR SERVICES",GPC
WALSALL COUNCIL,HTTP://OPENDATACOMMUNITIES.ORG/ID/METROPOLITAN-DISTRICT-COUNCIL/WALSALL,31/12/2016,CHILDRENS SERVICES,B&M RETAIL,09/12/2016,H59620161213BFNTVSBJY-1,20.42,LOCALITY FAMILY SUPPORT-CENTRA-FOOD AND BEVERAGES-PROVISIONS,DISCOUNT STORES,GPC
WALSALL COUNCIL,HTTP://OPENDATACOMMUNITIES.ORG/ID/METROPOLITAN-DISTRICT-COUNCIL/WALSALL,31/12/2016,CHILDRENS SERVICES,SPORTSDIRECT 153,10/12/2016,H59620161213YORNBVPOE-1,6.00,"43A HILTON ROAD, WILLENHALL-RESIDENTS PERSONAL EXPENSES-AL",SPORTING GOODS STORES,GPC
WALSALL COUNCIL,HTTP://OPENDATACOMMUNITIES.ORG/ID/METROPOLITAN-DISTRICT-COUNCIL/WALSALL,31/12/2016,CHILDRENS SERVICES,SMYTHS TOYS UK LTD,10/12/2016,H59620161213BUXSGKLNS-1,15.04,"43A HILTON ROAD, WILLENHALL-RESIDENTS PERSONAL EXPENSES-AL","GAME, TOY, AND HOBBY SHOPS",GPC
WALSALL COUNCIL,HTTP://OPENDATACOMMUNITIES.ORG/ID/METROPOLITAN-DISTRICT-COUNCIL/WALSALL,31/12/2016,CHILDRENS SERVICES,KFC,10/12/2016,H59620161213ILCTNEJJS-1,4.97,"43A HILTON ROAD, WILLENHALL-FOOD AND BEVERAGES-PROVISIONS",QUICK PAYMENT SERVICE-FAST-FOOD RESTAURANTS,GPC
WALSALL COUNCIL,HTTP://OPENDATACOMMUNITIES.ORG/ID/METROPOLITAN-DISTRICT-COUNCIL/WALSALL,31/12/2016,CHILDRENS SERVICES,GAME RETAIL LTD WALS,10/12/2016,H59620161213OLFEXXIVE-1,71.03,"43A HILTON ROAD, WILLENHALL-RESIDENTS PERSONAL EXPENSES-AL","GAME, TOY, AND HOBBY SHOPS",GPC
WALSALL COUNCIL,HTTP://OPENDATACOMMUNITIES.ORG/ID/METROPOLITAN-DISTRICT-COUNCIL/WALSALL,31/12/2016,CHILDRENS SERVICES,ARGOS WALSALL CROW,10/12/2016,H59620161213QDMXZOKHU-1,68.97,"43A HILTON ROAD, WILLENHALL-RESIDENTS PERSONAL EXPENSES-AL",DISCOUNT STORES,GPC
WALSALL COUNCIL,HTTP://OPENDATACOMMUNITIES.ORG/ID/METROPOLITAN-DISTRICT-COUNCIL/WALSALL,31/12/2016,CHILDRENS SERVICES,PIZZA EXPRESS REST,10/12/2016,H59620161213TVCKDVYMN-1,24.30,"43A HILTON ROAD, WILLENHALL-RESIDENTS PERSONAL EXPENSES-AL","EATING PLACES, RESTAURANTS",GPC
WALSALL COUNCIL,HTTP://OPENDATACOMMUNITIES.ORG/ID/METROPOLITAN-DISTRICT-COUNCIL/WALSALL,31/12/2016,CHILDRENS SERVICES,POUNDLAND LTD 1427,10/12/2016,H59620161213OMKENUZTL-1,4.00,MARY ELLIOTT SPECIAL SCHOOL-BREAD-GENERAL-PROVISIONS,DISCOUNT STORES,GPC
WALSALL COUNCIL,HTTP://OPENDATACOMMUNITIES.ORG/ID/METROPOLITAN-DISTRICT-COUNCIL/WALSALL,31/12/2016,CHILDRENS SERVICES,HOPWELLS LTD,09/12/2016,H59620161213OTNDQNJQO-1,28.73,MARY ELLIOTT SPECIAL SCHOOL-BREAD-GENERAL-PROVISIONS,CATERERS,GPC
WALSALL COUNCIL,HTTP://OPENDATACOMMUNITIES.ORG/ID/METROPOLITAN-DISTRICT-COUNCIL/WALSALL,31/12/2016,CHILDRENS SERVICES,HOPWELLS LTD,09/12/2016,H59620161213VTZCDOTAP-1,208.61,MARY ELLIOTT SPECIAL SCHOOL-BREAD-GENERAL-PROVISIONS,CATERERS,GPC
WALSALL COUNCIL,HTTP://OPENDATACOMMUNITIES.ORG/ID/METROPOLITAN-DISTRICT-COUNCIL/WALSALL,31/12/2016,CHILDRENS SERVICES,A F BLAKEMORE & SON LTD,09/12/2016,H59620161213CWORPTEAX-1,380.82,MARY ELLIOTT SPECIAL SCHOOL-FROZEN FOODS-PROVISIONS,GROCERY STORES AND SUPERMARKETS,GPC
WALSALL COUNCIL,HTTP://OPENDATACOMMUNITIES.ORG/ID/METROPOLITAN-DISTRICT-COUNCIL/WALSALL,31/12/2016,CHILDRENS SERVICES,A F BLAKEMORE & SON LTD,09/12/2016,H59620161213CWORPTEAX-2,9.22,MARY ELLIOTT SPECIAL SCHOOL-BREAD-GENERAL-PROVISIONS,GROCERY STORES AND SUPERMARKETS,GPC
WALSALL COUNCIL,HTTP://OPENDATACOMMUNITIES.ORG/ID/METROPOLITAN-DISTRICT-COUNCIL/WALSALL,31/12/2016,CHILDRENS SERVICES,ORANGE (A/PM/01),09/12/2016,H59620161213VEIAQFSJO-1,77.89,LOCALITY FAMILY SUPPORT-NORTH-TELEPHONES MOBILE/PAGERS-TELEP,TELECOMMUNICATION SERVICES,GPC
WALSALL COUNCIL,HTTP://OPENDATACOMMUNITIES.ORG/ID/METROPOLITAN-DISTRICT-COUNCIL/WALSALL,31/12/2016,CHILDRENS SERVICES,ORANGE (A/PM/01),09/12/2016,H59620161213WWZQHSZOY-1,11.76,BLAKENALL CHILDCARE SERVICES-COSTS (NOT INTERNAL RECHARGES),TELECOMMUNICATION SERVICES,GPC
WALSALL COUNCIL,HTTP://OPENDATACOMMUNITIES.ORG/ID/METROPOLITAN-DISTRICT-COUNCIL/WALSALL,31/12/2016,CHILDRENS SERVICES,W M MORRISONS.COM,10/12/2016,H59620161213GCTFOJSKE-1,15.66,BLUEBELLS-FOOD AND BEVERAGES-PROVISIONS,GROCERY STORES AND SUPERMARKETS,GPC
WALSALL COUNCIL,HTTP://OPENDATACOMMUNITIES.ORG/ID/METROPOLITAN-DISTRICT-COUNCIL/WALSALL,31/12/2016,CHILDRENS SERVICES,W M MORRISONS.COM,10/12/2016,H59620161213GCTFOJSKE-2,85.00,BLUEBELLS-FOOD AND BEVERAGES-PROVISIONS,GROCERY STORES AND SUPERMARKETS,GPC
WALSALL COUNCIL,HTTP://OPENDATACOMMUNITIES.ORG/ID/METROPOLITAN-DISTRICT-COUNCIL/WALSALL,31/12/2016,CHILDRENS SERVICES,W M MORRISONS.COM,10/12/2016,H59620161213KFJWKHMMO-1,2.16,BLUEBELLS-FOOD AND BEVERAGES-PROVISIONS,GROCERY STORES AND SUPERMARKETS,GPC
WALSALL COUNCIL,HTTP://OPENDATACOMMUNITIES.ORG/ID/METROPOLITAN-DISTRICT-COUNCIL/WALSALL,31/12/2016,CHILDRENS SERVICES,W M MORRISONS.COM,10/12/2016,H59620161213KFJWKHMMO-2,70.48,BLUEBELLS-FOOD AND BEVERAGES-PROVISIONS,GROCERY STORES AND SUPERMARKETS,GPC
WALSALL COUNCIL,HTTP://OPENDATACOMMUNITIES.ORG/ID/METROPOLITAN-DISTRICT-COUNCIL/WALSALL,31/12/2016,CHANGE & GOVERNANCE,TESCO STORES 6161,09/12/2016,H59620161213BGTUKCDMV-1,9.00,WALSALL CRISIS SUPPORT SCHEME-CRISIS SUPPORT PAYMENTS,GROCERY STORES AND SUPERMARKETS,GPC
WALSALL COUNCIL,HTTP://OPENDATACOMMUNITIES.ORG/ID/METROPOLITAN-DISTRICT-COUNCIL/WALSALL,31/12/2016,CHANGE & GOVERNANCE,BORSHCH LIMITED,09/12/2016,H59620161213LCOUSXLDG-1,585.00,WALSALL CRISIS SUPPORT SCHEME-CRISIS SUPPORT PAYMENTS,ELECTRONIC SALES,GPC
WALSALL COUNCIL,HTTP://OPENDATACOMMUNITIES.ORG/ID/METROPOLITAN-DISTRICT-COUNCIL/WALSALL,31/12/2016,CHILDRENS SERVICES,ASDA STORES,09/12/2016,H59620161213HUUDOWTDN-1,15.15,LOCALITY FAMILY SUPPORT-WEST-EVENTS,GROCERY STORES AND SUPERMARKETS,GPC
WALSALL COUNCIL,HTTP://OPENDATACOMMUNITIES.ORG/ID/METROPOLITAN-DISTRICT-COUNCIL/WALSALL,31/12/2016,CHILDRENS SERVICES,ASDA STORES,09/12/2016,H59620161213HUUDOWTDN-2,12.00,LOCALITY FAMILY SUPPORT-WEST-EVENTS,GROCERY STORES AND SUPERMARKETS,GPC
WALSALL COUNCIL,HTTP://OPENDATACOMMUNITIES.ORG/ID/METROPOLITAN-DISTRICT-COUNCIL/WALSALL,31/12/2016,CHILDRENS SERVICES,ASDA STORES,09/12/2016,H59620161213HUUDOWTDN-3,0.06,LOCALITY FAMILY SUPPORT-WEST-EVENTS,GROCERY STORES AND SUPERMARKETS,GPC
WALSALL COUNCIL,HTTP://OPENDATACOMMUNITIES.ORG/ID/METROPOLITAN-DISTRICT-COUNCIL/WALSALL,31/12/2016,CHILDRENS SERVICES,AMAZON UK MARKETPLACE,09/12/2016,H59620161213HGYTKMQGX-1,22.99,GENERAL RESOURCES & MISC-GENERAL MATERIALS,MISCELLANEOUS AND SPECIALTY RETAIL STORES,GPC
WALSALL COUNCIL,HTTP://OPENDATACOMMUNITIES.ORG/ID/METROPOLITAN-DISTRICT-COUNCIL/WALSALL,31/12/2016,CHILDRENS SERVICES,AMAZON UK MARKETPLACE,10/12/2016,H59620161213UICAUFYMO-1,21.93,GENERAL RESOURCES & MISC-GENERAL MATERIALS,MISCELLANEOUS AND SPECIALTY RETAIL STORES,GPC
WALSALL COUNCIL,HTTP://OPENDATACOMMUNITIES.ORG/ID/METROPOLITAN-DISTRICT-COUNCIL/WALSALL,31/12/2016,CHILDRENS SERVICES,ELC-INTERNET,08/12/2016,H59620161213YGJVQDRWG-1,144.00,HISTORY/GEOG/SOCIAL EDUC-GENERAL MATERIALS,DEPARTMENT STORES,GPC
WALSALL COUNCIL,HTTP://OPENDATACOMMUNITIES.ORG/ID/METROPOLITAN-DISTRICT-COUNCIL/WALSALL,31/12/2016,CHILDRENS SERVICES,AMAZON UK MARKETPLACE,09/12/2016,H59620161213AUSVSVVKD-1,7.48,GENERAL RESOURCES & MISC-GENERAL MATERIALS,MISCELLANEOUS AND SPECIALTY RETAIL STORES,GPC
WALSALL COUNCIL,HTTP://OPENDATACOMMUNITIES.ORG/ID/METROPOLITAN-DISTRICT-COUNCIL/WALSALL,31/12/2016,CHILDRENS SERVICES,AMAZON UK MARKETPLACE,10/12/2016,H59620161213FKARXYMLP-1,11.19,CHUCKERY PRIMARY SCHOOL-LIBRARY BOOKS,BOOK STORES,GPC
WALSALL COUNCIL,HTTP://OPENDATACOMMUNITIES.ORG/ID/METROPOLITAN-DISTRICT-COUNCIL/WALSALL,31/12/2016,CHILDRENS SERVICES,HOME BARGAINS,09/12/2016,H59620161213SGCSMHWXL-1,4.25,"LOCALITY FAMILY SUPPORT-CENTRA-CROCKERY,HARDWARE & DISPOSABLE",HARDWARE STORES,GPC
WALSALL COUNCIL,HTTP://OPENDATACOMMUNITIES.ORG/ID/METROPOLITAN-DISTRICT-COUNCIL/WALSALL,31/12/2016,CHILDRENS SERVICES,ICELAND 421,09/12/2016,H59620161213UWTHTGLHL-1,3.00,LOCALITY FAMILY SUPPORT-CENTRA-FOOD AND BEVERAGES-PROVISIONS,GROCERY STORES AND SUPERMARKETS,GPC
WALSALL COUNCIL,HTTP://OPENDATACOMMUNITIES.ORG/ID/METROPOLITAN-DISTRICT-COUNCIL/WALSALL,31/12/2016,ECONOMY & ENVIRONMENT,TRAINLINE,09/12/2016,H59620161213QNVHPXTJR-1,19.13,NEW ART GALLERY - ADMIN-OFFICER/STAFF-PUBLIC TRANSPORT,PASSENGER RAILWAYS,GPC
WALSALL COUNCIL,HTTP://OPENDATACOMMUNITIES.ORG/ID/METROPOLITAN-DISTRICT-COUNCIL/WALSALL,31/12/2016,ECONOMY & ENVIRONMENT,TOOLSTATION LTD,09/12/2016,H59620161213JIGJLVTJY-1,15.56,INFRASTRUCTURE MAINTENANCE-GENERAL MATERIALS,HARDWARE STORES,GPC
WALSALL COUNCIL,HTTP://OPENDATACOMMUNITIES.ORG/ID/METROPOLITAN-DISTRICT-COUNCIL/WALSALL,31/12/2016,CHILDRENS SERVICES,ASDA HOME SHOPPING,09/12/2016,H59620161213BKWBRCCUJ-1,0.83,EARLY YEARS AND DISABILITIES S-FOOD AND BEVERAGES-PROVISIONS,GROCERY STORES AND SUPERMARKETS,GPC
WALSALL COUNCIL,HTTP://OPENDATACOMMUNITIES.ORG/ID/METROPOLITAN-DISTRICT-COUNCIL/WALSALL,31/12/2016,,ASDA HOME SHOPPING,09/12/2016,H59620161213FXUKTSPSO-1,61.78,-FOOD AND BEVERAGES-PROVISIONS,GROCERY STORES AND SUPERMARKETS,GPC
WALSALL COUNCIL,HTTP://OPENDATACOMMUNITIES.ORG/ID/METROPOLITAN-DISTRICT-COUNCIL/WALSALL,31/12/2016,CHILDRENS SERVICES,MCDONALDS,09/12/2016,H59620161213XRRLFHCSK-1,8.87,LOOKED AFTER CHILDRENS SOCIAL -TRANSFER PAYMENTS - SOCIAL SER,"EATING PLACES, RESTAURANTS",GPC
WALSALL COUNCIL,HTTP://OPENDATACOMMUNITIES.ORG/ID/METROPOLITAN-DISTRICT-COUNCIL/WALSALL,31/12/2016,CHILDRENS SERVICES,TRETHORNE GOLF CLUB,09/12/2016,H59620161213JYIGPOZFI-1,69.00,LOOKED AFTER CHILDRENS SOCIAL -HOTEL ACCOMMODATION-EMPLOYEES,"GOLF COURSES, PUBLIC",GPC
WALSALL COUNCIL,HTTP://OPENDATACOMMUNITIES.ORG/ID/METROPOLITAN-DISTRICT-COUNCIL/WALSALL,31/12/2016,CHILDRENS SERVICES,MY DONATE,09/12/2016,H59620161213DPUDUOTPV-1,315.50,LOOKED AFTER CHILDRENS SOCIAL -TRANSFER PAYMENTS - SOCIAL SER,OTHER SERVICES,GPC
WALSALL COUNCIL,HTTP://OPENDATACOMMUNITIES.ORG/ID/METROPOLITAN-DISTRICT-COUNCIL/WALSALL,31/12/2016,CHILDRENS SERVICES,PREMIER INN44010840,08/12/2016,H59620161213IYSNDYECB-1,79.00,SAFEGUARDING & FAMILY SUPPORT-ACCOMMODATION AND RELATED COST,PREMIER INN,GPC
WALSALL COUNCIL,HTTP://OPENDATACOMMUNITIES.ORG/ID/METROPOLITAN-DISTRICT-COUNCIL/WALSALL,31/12/2016,ECONOMY & ENVIRONMENT,HOME BARGAINS,09/12/2016,H59620161213WAIFSSKQC-1,15.89,BROWNHILLS DISTRICT CENTRE-MISCELLANEOUS SUPPLIES,HARDWARE STORES,GPC
WALSALL COUNCIL,HTTP://OPENDATACOMMUNITIES.ORG/ID/METROPOLITAN-DISTRICT-COUNCIL/WALSALL,31/12/2016,CHILDRENS SERVICES,AMAZON UK RETAIL AMAZON.C,08/12/2016,H59620161213RYTCKIEWP-1,6.02,ADMINISTRATIVE SUPPLIES-STATIONERY & GENERAL SUPPLIES-,MISCELLANEOUS AND SPECIALTY RETAIL STORES,GPC
WALSALL COUNCIL,HTTP://OPENDATACOMMUNITIES.ORG/ID/METROPOLITAN-DISTRICT-COUNCIL/WALSALL,31/12/2016,CHANGE & GOVERNANCE,TESCO STORES 6161,09/12/2016,H59620161213UVJRZUAVT-1,18.00,TENANCY SERVICE-MISCELLANEOUS SUPPLIES,GROCERY STORES AND SUPERMARKETS,GPC
WALSALL COUNCIL,HTTP://OPENDATACOMMUNITIES.ORG/ID/METROPOLITAN-DISTRICT-COUNCIL/WALSALL,31/12/2016,CHANGE & GOVERNANCE,THE RANGE,09/12/2016,H59620161213UKHGBGRPM-1,99.99,REVENUES-COMPUTER EQUIPMENT AND SUPPLIE,DEPARTMENT STORES,GPC
WALSALL COUNCIL,HTTP://OPENDATACOMMUNITIES.ORG/ID/METROPOLITAN-DISTRICT-COUNCIL/WALSALL,31/12/2016,ECONOMY & ENVIRONMENT,BOTANICA PLANT COLLECTIO,09/12/2016,H59620161213RBCWEQBDQ-1,280.00,ARBORETUM-GENERAL MATERIALS,"NURSERIES, LAWN AND GARDEN SUPPLY STORES",GPC
WALSALL COUNCIL,HTTP://OPENDATACOMMUNITIES.ORG/ID/METROPOLITAN-DISTRICT-COUNCIL/WALSALL,31/12/2016,CHILDRENS SERVICES,WILKO RETAIL LIMIT,11/12/2016,H59620161213DCGCLVOIF-1,0.05,PARENTING TEAM-FURNITURE & EQUIPMENT,HOUSEHOLD APPLIANCE STORES,GPC
WALSALL COUNCIL,HTTP://OPENDATACOMMUNITIES.ORG/ID/METROPOLITAN-DISTRICT-COUNCIL/WALSALL,31/12/2016,CHILDRENS SERVICES,WILKO RETAIL LIMIT,11/12/2016,H59620161213DCGCLVOIF-2,4.00,PARENTING TEAM-FURNITURE & EQUIPMENT,HOUSEHOLD APPLIANCE STORES,GPC
WALSALL COUNCIL,HTTP://OPENDATACOMMUNITIES.ORG/ID/METROPOLITAN-DISTRICT-COUNCIL/WALSALL,31/12/2016,ECONOMY & ENVIRONMENT,TRAVEL WEST MIDLAN,09/12/2016,H59620161213QVXSKRVKR-1,8.50,YEI (IMPACT) PROGRAMME-MISCELLANEOUS SUPPLIES,BUS LINES,GPC
WALSALL COUNCIL,HTTP://OPENDATACOMMUNITIES.ORG/ID/METROPOLITAN-DISTRICT-COUNCIL/WALSALL,31/12/2016,ECONOMY & ENVIRONMENT,TRAVEL WEST MIDLAN,09/12/2016,H59620161213QVXSKRVKR-2,8.50,YEI ESF FUNDING-MISCELLANEOUS SUPPLIES,BUS LINES,GPC
WALSALL COUNCIL,HTTP://OPENDATACOMMUNITIES.ORG/ID/METROPOLITAN-DISTRICT-COUNCIL/WALSALL,31/12/2016,CHILDRENS SERVICES,WM MORRISONS,09/12/2016,H59620161213EIQHVLRZI-1,35.15,57 LICHFIELD ROAD-FOOD AND BEVERAGES-PROVISIONS,GROCERY STORES AND SUPERMARKETS,GPC
WALSALL COUNCIL,HTTP://OPENDATACOMMUNITIES.ORG/ID/METROPOLITAN-DISTRICT-COUNCIL/WALSALL,31/12/2016,CHILDRENS SERVICES,PARENTPAY.COM,09/12/2016,H59620161213WJXUKDXLO-1,20.00,57 LICHFIELD ROAD-RESIDENTS PERSONAL EXPENSES-AL,"COLLEGES, UNIVERSITIES, PROFESSIONAL SCHOOLS",GPC
WALSALL COUNCIL,HTTP://OPENDATACOMMUNITIES.ORG/ID/METROPOLITAN-DISTRICT-COUNCIL/WALSALL,31/12/2016,ECONOMY & ENVIRONMENT,CONTRADO IMAGING,09/12/2016,H59620161213KNJICBLTS-1,164.03,EXTL FUNDED CREATIVE PROJECT M-GENERAL MATERIALS,"CARD, GIFT, NOVELTY, AND SOUVENIR SHOPS",GPC
WALSALL COUNCIL,HTTP://OPENDATACOMMUNITIES.ORG/ID/METROPOLITAN-DISTRICT-COUNCIL/WALSALL,31/12/2016,CHILDRENS SERVICES,AMAZON UK RETAIL AMAZON.C,09/12/2016,H59620161213UDDVQQZQU-1,3.49,ENGLISH (LITERACY)-LIBRARY BOOKS,MISCELLANEOUS AND SPECIALTY RETAIL STORES,GPC
WALSALL COUNCIL,HTTP://OPENDATACOMMUNITIES.ORG/ID/METROPOLITAN-DISTRICT-COUNCIL/WALSALL,31/12/2016,CHILDRENS SERVICES,J D SPORTS 177,10/12/2016,H59620161213FARGTHCPT-1,61.05,REDRUTH ROAD-RESIDENTS PERSONAL EXPENSES-AL,SPORTING GOODS STORES,GPC
WALSALL COUNCIL,HTTP://OPENDATACOMMUNITIES.ORG/ID/METROPOLITAN-DISTRICT-COUNCIL/WALSALL,31/12/2016,ECONOMY & ENVIRONMENT,WM MORRISONS,10/12/2016,H59620161213WOWJZGOUE-1,8.88,CA TOWN HALL RESTAURANT - CATE-DRY FOODS-PROVISIONS,GROCERY STORES AND SUPERMARKETS,GPC
WALSALL COUNCIL,HTTP://OPENDATACOMMUNITIES.ORG/ID/METROPOLITAN-DISTRICT-COUNCIL/WALSALL,31/12/2016,ECONOMY & ENVIRONMENT,WALSALL WOOD,09/12/2016,H59620161213SLEUMETTG-1,23.99,OAK PARK-NEW-FURNITURE & EQUIPMENT,LUMBER & BUILDING MATERIALS STORES,GPC
WALSALL COUNCIL,HTTP://OPENDATACOMMUNITIES.ORG/ID/METROPOLITAN-DISTRICT-COUNCIL/WALSALL,31/12/2016,ECONOMY & ENVIRONMENT,T R MUSIC,09/12/2016,H59620161213XFBTQDWXY-1,294.00,OAK PARK-NEW-FURNITURE & EQUIPMENT,MUSIC STORES & MUSICAL INSTRUMENTS,GPC
WALSALL COUNCIL,HTTP://OPENDATACOMMUNITIES.ORG/ID/METROPOLITAN-DISTRICT-COUNCIL/WALSALL,31/12/2016,ECONOMY & ENVIRONMENT,T.MORGAN & SONS (L,07/12/2016,H59620161213MOPBLDQLQ-1,22.08,INFRASTRUCTURE MAINTENANCE-GENERAL MATERIALS,HARDWARE EQUIPMENT AND SUPPLIES,GPC
WALSALL COUNCIL,HTTP://OPENDATACOMMUNITIES.ORG/ID/METROPOLITAN-DISTRICT-COUNCIL/WALSALL,31/12/2016,ECONOMY & ENVIRONMENT,MSC INDUSTRIAL SUPPLY,09/12/2016,H59620161213SVYOCWMYV-1,9.98,INFRASTRUCTURE MAINTENANCE-GENERAL MATERIALS,HARDWARE STORES,GPC
WALSALL COUNCIL,HTTP://OPENDATACOMMUNITIES.ORG/ID/METROPOLITAN-DISTRICT-COUNCIL/WALSALL,31/12/2016,ECONOMY & ENVIRONMENT,POST OFFICE COUNTER,09/12/2016,H59620161213WQJEOUDIL-1,11.00,FOREST ARTS CENTRE-STATIONERY & GENERAL SUPPLIES-,POSTAL SERVICES - GOVERNMENT ONLY,GPC
WALSALL COUNCIL,HTTP://OPENDATACOMMUNITIES.ORG/ID/METROPOLITAN-DISTRICT-COUNCIL/WALSALL,31/12/2016,CHILDRENS SERVICES,AMAZON UK MARKETPLACE,10/12/2016,H59620161213UZIIRQLUV-1,10.98,LITERACY RD-LIBRARY BOOKS,BOOK STORES,GPC
WALSALL COUNCIL,HTTP://OPENDATACOMMUNITIES.ORG/ID/METROPOLITAN-DISTRICT-COUNCIL/WALSALL,31/12/2016,CHILDRENS SERVICES,AMAZON UK MARKETPLACE,10/12/2016,H59620161213UZIIRQLUV-3,22.76,SEN RD & SH-LIBRARY BOOKS,BOOK STORES,GPC
WALSALL COUNCIL,HTTP://OPENDATACOMMUNITIES.ORG/ID/METROPOLITAN-DISTRICT-COUNCIL/WALSALL,31/12/2016,CHILDRENS SERVICES,AMAZON UK MARKETPLACE,10/12/2016,H59620161213UZIIRQLUV-2,19.98,SEN RD & SH-GENERAL MATERIALS,BOOK STORES,GPC
WALSALL COUNCIL,HTTP://OPENDATACOMMUNITIES.ORG/ID/METROPOLITAN-DISTRICT-COUNCIL/WALSALL,31/12/2016,CHILDRENS SERVICES,AMAZON UK RETAIL,08/12/2016,H59620161210VHZTOIUCC-1,89.50,GENERAL SUPPLIES RD-GENERAL MATERIALS,OTHER DIRECT MARKETING-OTHER DIRECT MARKETERS,GPC
WALSALL COUNCIL,HTTP://OPENDATACOMMUNITIES.ORG/ID/METROPOLITAN-DISTRICT-COUNCIL/WALSALL,31/12/2016,ECONOMY & ENVIRONMENT,MARCUS GEAR LTD,08/12/2016,H59620161210BGYZCSLSO-1,22.32,LEATHER MUSEUM-GENERAL MATERIALS,LEATHER GOODS AND LUGGAGE STORES,GPC
WALSALL COUNCIL,HTTP://OPENDATACOMMUNITIES.ORG/ID/METROPOLITAN-DISTRICT-COUNCIL/WALSALL,31/12/2016,ECONOMY & ENVIRONMENT,MARCUS GEAR LTD,08/12/2016,H59620161210XBFKXWWIL-1,56.51,LEATHER MUSEUM-GENERAL MATERIALS,LEATHER GOODS AND LUGGAGE STORES,GPC
WALSALL COUNCIL,HTTP://OPENDATACOMMUNITIES.ORG/ID/METROPOLITAN-DISTRICT-COUNCIL/WALSALL,31/12/2016,ECONOMY & ENVIRONMENT,WF SENATE WALSALL,08/12/2016,H59620161210VRTOBMDFJ-1,152.64,FOREST ARTS CENTRE-STATIONERY & GENERAL SUPPLIES-,ELECTRICAL PARTS AND EQUIPMENT,GPC
WALSALL COUNCIL,HTTP://OPENDATACOMMUNITIES.ORG/ID/METROPOLITAN-DISTRICT-COUNCIL/WALSALL,31/12/2016,CHANGE & GOVERNANCE,TESCO STORES 6161,08/12/2016,H59620161210OSHAXCRUS-1,56.05,WALSALL CRISIS SUPPORT SCHEME-FOOD AND BEVERAGES-PROVISIONS,GROCERY STORES AND SUPERMARKETS,GPC
WALSALL COUNCIL,HTTP://OPENDATACOMMUNITIES.ORG/ID/METROPOLITAN-DISTRICT-COUNCIL/WALSALL,31/12/2016,ECONOMY & ENVIRONMENT,WILKO RETAIL LIMIT,08/12/2016,H59620161210NESKOFXGL-1,12.05,OAK PARK-MISC FEES AND EXPENSES,HOUSEHOLD APPLIANCE STORES,GPC
WALSALL COUNCIL,HTTP://OPENDATACOMMUNITIES.ORG/ID/METROPOLITAN-DISTRICT-COUNCIL/WALSALL,31/12/2016,ECONOMY & ENVIRONMENT,WHALEYS /BRADFORD/ LTD,07/12/2016,H59620161210NFFMHOGAC-1,103.68,EXTL FUNDED CREATIVE PROJECT M-GENERAL MATERIALS,MISCELLANEOUS AND SPECIALTY RETAIL STORES,GPC
WALSALL COUNCIL,HTTP://OPENDATACOMMUNITIES.ORG/ID/METROPOLITAN-DISTRICT-COUNCIL/WALSALL,31/12/2016,CHILDRENS SERVICES,POUNDLAND LTD 1427,08/12/2016,H59620161210KOOUAELTR-1,4.05,57 LICHFIELD ROAD-RESIDENTS PERSONAL EXPENSES-AL,DISCOUNT STORES,GPC
WALSALL COUNCIL,HTTP://OPENDATACOMMUNITIES.ORG/ID/METROPOLITAN-DISTRICT-COUNCIL/WALSALL,31/12/2016,CHILDRENS SERVICES,NEW LOOK INTERNET,07/12/2016,H59620161210QLSUYYEKF-1,97.84,57 LICHFIELD ROAD-RESIDENTS PERSONAL EXPENSES-AL,WOMENS READY TO WEAR STORES,GPC
WALSALL COUNCIL,HTTP://OPENDATACOMMUNITIES.ORG/ID/METROPOLITAN-DISTRICT-COUNCIL/WALSALL,31/12/2016,CHANGE & GOVERNANCE,WWW.WMEMPLOYERS.ORG.UK,08/12/2016,H59620161210ZOLLQKKPR-1,192.00,SCHOOL HR TRANSACTIONAL TEAM-ADVERTISING STAFF VACANCIES,"CONSULTING, MANAGEMENT, AND PR SERVICES",GPC
WALSALL COUNCIL,HTTP://OPENDATACOMMUNITIES.ORG/ID/METROPOLITAN-DISTRICT-COUNCIL/WALSALL,31/12/2016,ECONOMY & ENVIRONMENT,COSTA COFFEE,08/12/2016,H59620161210YTJWCXNUK-1,5.44,NEW ART GALLERY - ADMIN-MISC DAIRY PRODUCTS-PROVISIONS,"EATING PLACES, RESTAURANTS",GPC
WALSALL COUNCIL,HTTP://OPENDATACOMMUNITIES.ORG/ID/METROPOLITAN-DISTRICT-COUNCIL/WALSALL,31/12/2016,CHILDRENS SERVICES,ASDA HOME SHOPPING,08/12/2016,H59620161210OUUFQCYMD-1,27.50,TROUBLED FAMILIES GRANT (STREN-FOOD AND BEVERAGES-PROVISIONS,GROCERY STORES AND SUPERMARKETS,GPC
WALSALL COUNCIL,HTTP://OPENDATACOMMUNITIES.ORG/ID/METROPOLITAN-DISTRICT-COUNCIL/WALSALL,31/12/2016,CHANGE & GOVERNANCE,MANSFIELD LODGE HOTEL,08/12/2016,H59620161210WPEVQHOKM-1,94.00,CORE SKILLS-HOTEL ACCOMMODATION-EMPLOYEES,"HOTELS, MOTELS, RESORTS",GPC
WALSALL COUNCIL,HTTP://OPENDATACOMMUNITIES.ORG/ID/METROPOLITAN-DISTRICT-COUNCIL/WALSALL,31/12/2016,CHILDRENS SERVICES,TLORD GARRICK THEATRE,08/12/2016,H59620161210WXUMFXOLS-1,255.50,MY PLACE (REVENUE)-MISC FEES AND EXPENSES,"THEATRICAL PRODUCERS, TIC",GPC
WALSALL COUNCIL,HTTP://OPENDATACOMMUNITIES.ORG/ID/METROPOLITAN-DISTRICT-COUNCIL/WALSALL,31/12/2016,SOCIAL CARE & INCLUSION,ASDA HOME SHOPPING,08/12/2016,H59620161210ILROWYWIZ-1,74.05,FALLINGS HEATH-FOOD AND BEVERAGES-PROVISIONS,GROCERY STORES AND SUPERMARKETS,GPC
WALSALL COUNCIL,HTTP://OPENDATACOMMUNITIES.ORG/ID/METROPOLITAN-DISTRICT-COUNCIL/WALSALL,31/12/2016,SOCIAL CARE & INCLUSION,ASDA HOME SHOPPING,08/12/2016,H59620161210ILROWYWIZ-2,51.78,FALLINGS HEATH-FOOD AND BEVERAGES-PROVISIONS,GROCERY STORES AND SUPERMARKETS,GPC
WALSALL COUNCIL,HTTP://OPENDATACOMMUNITIES.ORG/ID/METROPOLITAN-DISTRICT-COUNCIL/WALSALL,31/12/2016,SOCIAL CARE & INCLUSION,ASDA HOME SHOPPING,08/12/2016,H59620161210QLWLURLTV-1,-1.06,FALLINGS HEATH-FOOD AND BEVERAGES-PROVISIONS,GROCERY STORES AND SUPERMARKETS,GPC
WALSALL COUNCIL,HTTP://OPENDATACOMMUNITIES.ORG/ID/METROPOLITAN-DISTRICT-COUNCIL/WALSALL,31/12/2016,CHANGE & GOVERNANCE,TESCO STORES 6161,08/12/2016,H59620161210OHISQKXWX-1,27.00,TENANCY SERVICE-MISCELLANEOUS SUPPLIES,GROCERY STORES AND SUPERMARKETS,GPC
WALSALL COUNCIL,HTTP://OPENDATACOMMUNITIES.ORG/ID/METROPOLITAN-DISTRICT-COUNCIL/WALSALL,31/12/2016,CHILDRENS SERVICES,AMAZON UK RETAIL,08/12/2016,H59620161210DMJUYFWBS-1,33.36,ADMINISTRATIVE SUPPLIES-STATIONERY & GENERAL SUPPLIES-,OTHER DIRECT MARKETING-OTHER DIRECT MARKETERS,GPC
WALSALL COUNCIL,HTTP://OPENDATACOMMUNITIES.ORG/ID/METROPOLITAN-DISTRICT-COUNCIL/WALSALL,31/12/2016,ECONOMY & ENVIRONMENT,MOORCROFT GROUP,08/12/2016,H59620161210FRNMYQFFJ-1,411.10,BUILDING CONTROL FEE EARNING A-MISC-DEBTORS,OTHER SERVICES,GPC
WALSALL COUNCIL,HTTP://OPENDATACOMMUNITIES.ORG/ID/METROPOLITAN-DISTRICT-COUNCIL/WALSALL,31/12/2016,CHILDRENS SERVICES,ASDA SUPERSTORE,08/12/2016,H59620161210KGGHCUFOD-1,29.19,REDRUTH ROAD-FOOD AND BEVERAGES-PROVISIONS,GROCERY STORES AND SUPERMARKETS,GPC
WALSALL COUNCIL,HTTP://OPENDATACOMMUNITIES.ORG/ID/METROPOLITAN-DISTRICT-COUNCIL/WALSALL,31/12/2016,ECONOMY & ENVIRONMENT,DVLA VEHICLE TAX,08/12/2016,H59620161210ONCDUNRDR-1,232.50,FLEET-LICENCES-TRANSPORT RUN COSTS,GOVERNMENT SERVICES,GPC
WALSALL COUNCIL,HTTP://OPENDATACOMMUNITIES.ORG/ID/METROPOLITAN-DISTRICT-COUNCIL/WALSALL,31/12/2016,ECONOMY & ENVIRONMENT,DVLA VEHICLE TAX,08/12/2016,H59620161210JUICITBRR-1,167.50,FLEET-LICENCES-TRANSPORT RUN COSTS,GOVERNMENT SERVICES,GPC
WALSALL COUNCIL,HTTP://OPENDATACOMMUNITIES.ORG/ID/METROPOLITAN-DISTRICT-COUNCIL/WALSALL,31/12/2016,ECONOMY & ENVIRONMENT,DVLA VEHICLE TAX,08/12/2016,H59620161210VSEKIXNXM-1,167.50,FLEET-LICENCES-TRANSPORT RUN COSTS,GOVERNMENT SERVICES,GPC
WALSALL COUNCIL,HTTP://OPENDATACOMMUNITIES.ORG/ID/METROPOLITAN-DISTRICT-COUNCIL/WALSALL,31/12/2016,ECONOMY & ENVIRONMENT,DVLA VEHICLE TAX,08/12/2016,H59620161210XPIVWTGKB-1,167.50,FLEET-LICENCES-TRANSPORT RUN COSTS,GOVERNMENT SERVICES,GPC
WALSALL COUNCIL,HTTP://OPENDATACOMMUNITIES.ORG/ID/METROPOLITAN-DISTRICT-COUNCIL/WALSALL,31/12/2016,ECONOMY & ENVIRONMENT,DVLA VEHICLE TAX,08/12/2016,H59620161210YWOFYFIIL-1,232.50,FLEET-LICENCES-TRANSPORT RUN COSTS,GOVERNMENT SERVICES,GPC
WALSALL COUNCIL,HTTP://OPENDATACOMMUNITIES.ORG/ID/METROPOLITAN-DISTRICT-COUNCIL/WALSALL,31/12/2016,ECONOMY & ENVIRONMENT,DVLA VEHICLE TAX,08/12/2016,H59620161210FRNDTLFZM-1,232.50,FLEET-LICENCES-TRANSPORT RUN COSTS,GOVERNMENT SERVICES,GPC
WALSALL COUNCIL,HTTP://OPENDATACOMMUNITIES.ORG/ID/METROPOLITAN-DISTRICT-COUNCIL/WALSALL,31/12/2016,ECONOMY & ENVIRONMENT,DVLA VEHICLE TAX,08/12/2016,H59620161210EFLMGVLFW-1,232.50,FLEET-LICENCES-TRANSPORT RUN COSTS,GOVERNMENT SERVICES,GPC
WALSALL COUNCIL,HTTP://OPENDATACOMMUNITIES.ORG/ID/METROPOLITAN-DISTRICT-COUNCIL/WALSALL,31/12/2016,ECONOMY & ENVIRONMENT,DVLA VEHICLE TAX,08/12/2016,H59620161210JBBOQYCQY-1,232.50,FLEET-LICENCES-TRANSPORT RUN COSTS,GOVERNMENT SERVICES,GPC
WALSALL COUNCIL,HTTP://OPENDATACOMMUNITIES.ORG/ID/METROPOLITAN-DISTRICT-COUNCIL/WALSALL,31/12/2016,ECONOMY & ENVIRONMENT,DVLA VEHICLE TAX,08/12/2016,H59620161210HGIJPZPOA-1,232.50,FLEET-LICENCES-TRANSPORT RUN COSTS,GOVERNMENT SERVICES,GPC
WALSALL COUNCIL,HTTP://OPENDATACOMMUNITIES.ORG/ID/METROPOLITAN-DISTRICT-COUNCIL/WALSALL,31/12/2016,ECONOMY & ENVIRONMENT,DVLA VEHICLE TAX,08/12/2016,H59620161210IJTYGHQIE-1,232.50,FLEET-LICENCES-TRANSPORT RUN COSTS,GOVERNMENT SERVICES,GPC
WALSALL COUNCIL,HTTP://OPENDATACOMMUNITIES.ORG/ID/METROPOLITAN-DISTRICT-COUNCIL/WALSALL,31/12/2016,ECONOMY & ENVIRONMENT,DVLA VEHICLE TAX,08/12/2016,H59620161210KLUOLEXBX-1,232.50,FLEET-LICENCES-TRANSPORT RUN COSTS,GOVERNMENT SERVICES,GPC
WALSALL COUNCIL,HTTP://OPENDATACOMMUNITIES.ORG/ID/METROPOLITAN-DISTRICT-COUNCIL/WALSALL,31/12/2016,ECONOMY & ENVIRONMENT,DVLA VEHICLE TAX,08/12/2016,H59620161210LIFDWZIIB-1,232.50,FLEET-LICENCES-TRANSPORT RUN COSTS,GOVERNMENT SERVICES,GPC
WALSALL COUNCIL,HTTP://OPENDATACOMMUNITIES.ORG/ID/METROPOLITAN-DISTRICT-COUNCIL/WALSALL,31/12/2016,ECONOMY & ENVIRONMENT,DVLA VEHICLE TAX,08/12/2016,H59620161210MEOMTIGEF-1,202.50,FLEET-LICENCES-TRANSPORT RUN COSTS,GOVERNMENT SERVICES,GPC
WALSALL COUNCIL,HTTP://OPENDATACOMMUNITIES.ORG/ID/METROPOLITAN-DISTRICT-COUNCIL/WALSALL,31/12/2016,ECONOMY & ENVIRONMENT,DVLA VEHICLE TAX,08/12/2016,H59620161210MEWGDJLLJ-1,232.50,FLEET-LICENCES-TRANSPORT RUN COSTS,GOVERNMENT SERVICES,GPC
WALSALL COUNCIL,HTTP://OPENDATACOMMUNITIES.ORG/ID/METROPOLITAN-DISTRICT-COUNCIL/WALSALL,31/12/2016,ECONOMY & ENVIRONMENT,DVLA VEHICLE TAX,08/12/2016,H59620161210MIYPFRFMK-1,232.50,FLEET-LICENCES-TRANSPORT RUN COSTS,GOVERNMENT SERVICES,GPC
WALSALL COUNCIL,HTTP://OPENDATACOMMUNITIES.ORG/ID/METROPOLITAN-DISTRICT-COUNCIL/WALSALL,31/12/2016,ECONOMY & ENVIRONMENT,DVLA VEHICLE TAX,08/12/2016,H59620161210NELKPGFRC-1,232.50,FLEET-LICENCES-TRANSPORT RUN COSTS,GOVERNMENT SERVICES,GPC
WALSALL COUNCIL,HTTP://OPENDATACOMMUNITIES.ORG/ID/METROPOLITAN-DISTRICT-COUNCIL/WALSALL,31/12/2016,ECONOMY & ENVIRONMENT,DVLA VEHICLE TAX,08/12/2016,H59620161210QLTVIWHNI-1,232.50,FLEET-LICENCES-TRANSPORT RUN COSTS,GOVERNMENT SERVICES,GPC
WALSALL COUNCIL,HTTP://OPENDATACOMMUNITIES.ORG/ID/METROPOLITAN-DISTRICT-COUNCIL/WALSALL,31/12/2016,ECONOMY & ENVIRONMENT,DVLA VEHICLE TAX,08/12/2016,H59620161210QRFSQUPHO-1,232.50,FLEET-LICENCES-TRANSPORT RUN COSTS,GOVERNMENT SERVICES,GPC
WALSALL COUNCIL,HTTP://OPENDATACOMMUNITIES.ORG/ID/METROPOLITAN-DISTRICT-COUNCIL/WALSALL,31/12/2016,ECONOMY & ENVIRONMENT,DVLA VEHICLE TAX,08/12/2016,H59620161210SHBSWNONS-1,232.50,FLEET-LICENCES-TRANSPORT RUN COSTS,GOVERNMENT SERVICES,GPC
WALSALL COUNCIL,HTTP://OPENDATACOMMUNITIES.ORG/ID/METROPOLITAN-DISTRICT-COUNCIL/WALSALL,31/12/2016,ECONOMY & ENVIRONMENT,DVLA VEHICLE TAX,08/12/2016,H59620161210UIHBHVQNC-1,232.50,FLEET-LICENCES-TRANSPORT RUN COSTS,GOVERNMENT SERVICES,GPC
WALSALL COUNCIL,HTTP://OPENDATACOMMUNITIES.ORG/ID/METROPOLITAN-DISTRICT-COUNCIL/WALSALL,31/12/2016,ECONOMY & ENVIRONMENT,DVLA VEHICLE TAX,08/12/2016,H59620161210URDOUUSJB-1,232.50,FLEET-LICENCES-TRANSPORT RUN COSTS,GOVERNMENT SERVICES,GPC
WALSALL COUNCIL,HTTP://OPENDATACOMMUNITIES.ORG/ID/METROPOLITAN-DISTRICT-COUNCIL/WALSALL,31/12/2016,CHILDRENS SERVICES,POUNDWORLD RETAIL,08/12/2016,H59620161210FYSFPIBHE-1,24.00,ELMWOOD SECONDARY SPECIAL SCHO-BREAD-GENERAL-PROVISIONS,DISCOUNT STORES,GPC
WALSALL COUNCIL,HTTP://OPENDATACOMMUNITIES.ORG/ID/METROPOLITAN-DISTRICT-COUNCIL/WALSALL,31/12/2016,ECONOMY & ENVIRONMENT,WWW.LOCKERKEYS.BIZ,08/12/2016,H59620161210PYMLHMXJX-1,4.68,WALSALL OUTDOOR ADVENTURE CENT-PROFESSIONAL FEES AND SERVICES,OTHER BUSINESS SERVICES,GPC
WALSALL COUNCIL,HTTP://OPENDATACOMMUNITIES.ORG/ID/METROPOLITAN-DISTRICT-COUNCIL/WALSALL,31/12/2016,CHILDRENS SERVICES,TESCO STORES 6161,08/12/2016,H59620161210YOPMNLXBK-1,3.96,LOCALITY FAMILY SUPPORT-CENTRA-FOOD AND BEVERAGES-PROVISIONS,GROCERY STORES AND SUPERMARKETS,GPC
WALSALL COUNCIL,HTTP://OPENDATACOMMUNITIES.ORG/ID/METROPOLITAN-DISTRICT-COUNCIL/WALSALL,31/12/2016,ECONOMY & ENVIRONMENT,TRAINLINE,08/12/2016,H59620161210FGTYWTEPE-1,5.15,NAG - TEMPORARY EXHIBITIONS-OTHER/VOLUNTEERS-PUBLIC TRANSP,PASSENGER RAILWAYS,GPC
WALSALL COUNCIL,HTTP://OPENDATACOMMUNITIES.ORG/ID/METROPOLITAN-DISTRICT-COUNCIL/WALSALL,31/12/2016,CHILDRENS SERVICES,AMAZON UK RETAIL,08/12/2016,H59620161210BEQWGSSAF-1,69.99,ADMINISTRATIVE SUPPLIES-GENERAL MATERIALS,OTHER DIRECT MARKETING-OTHER DIRECT MARKETERS,GPC
WALSALL COUNCIL,HTTP://OPENDATACOMMUNITIES.ORG/ID/METROPOLITAN-DISTRICT-COUNCIL/WALSALL,31/12/2016,CHILDRENS SERVICES,AMAZON UK MARKETPLACE,08/12/2016,H59620161210CORXNVLHW-1,22.99,GENERAL RESOURCES & MISC-GENERAL MATERIALS,BOOK STORES,GPC
WALSALL COUNCIL,HTTP://OPENDATACOMMUNITIES.ORG/ID/METROPOLITAN-DISTRICT-COUNCIL/WALSALL,31/12/2016,CHILDRENS SERVICES,AMAZON UK MARKETPLACE,08/12/2016,H59620161210NSWVBLDWC-1,29.03,"CHUCKERY PRIMARY SCHOOL-REPAIRS,ALTERATIONS & MAINTENA",MISCELLANEOUS AND SPECIALTY RETAIL STORES,GPC
WALSALL COUNCIL,HTTP://OPENDATACOMMUNITIES.ORG/ID/METROPOLITAN-DISTRICT-COUNCIL/WALSALL,31/12/2016,CHILDRENS SERVICES,AMAZON UK MARKETPLACE,08/12/2016,H59620161210QOEKSWVAB-1,65.00,GENERAL RESOURCES & MISC-GENERAL MATERIALS,BOOK STORES,GPC
WALSALL COUNCIL,HTTP://OPENDATACOMMUNITIES.ORG/ID/METROPOLITAN-DISTRICT-COUNCIL/WALSALL,31/12/2016,CHILDRENS SERVICES,AMAZON UK MARKETPLACE,08/12/2016,H59620161210QRPCQWMYQ-1,5.60,GENERAL RESOURCES & MISC-GENERAL MATERIALS,MISCELLANEOUS AND SPECIALTY RETAIL STORES,GPC
WALSALL COUNCIL,HTTP://OPENDATACOMMUNITIES.ORG/ID/METROPOLITAN-DISTRICT-COUNCIL/WALSALL,31/12/2016,CHILDRENS SERVICES,AMAZON UK MARKETPLACE,08/12/2016,H59620161210WEETUDSUY-1,14.21,GENERAL RESOURCES & MISC-GENERAL MATERIALS,MISCELLANEOUS AND SPECIALTY RETAIL STORES,GPC
WALSALL COUNCIL,HTTP://OPENDATACOMMUNITIES.ORG/ID/METROPOLITAN-DISTRICT-COUNCIL/WALSALL,31/12/2016,CHILDRENS SERVICES,IKEA ONLINE,08/12/2016,H59620161210WZUOPMSMR-1,37.50,GENERAL RESOURCES & MISC-GENERAL MATERIALS,MISCELLANEOUS HOUSE FURNISHING SPECIALTY SHOPS,GPC
WALSALL COUNCIL,HTTP://OPENDATACOMMUNITIES.ORG/ID/METROPOLITAN-DISTRICT-COUNCIL/WALSALL,31/12/2016,CHILDRENS SERVICES,AMAZON UK MARKETPLACE,08/12/2016,H59620161210XUWIYLEEQ-1,29.99,GENERAL RESOURCES & MISC-GENERAL MATERIALS,BOOK STORES,GPC
WALSALL COUNCIL,HTTP://OPENDATACOMMUNITIES.ORG/ID/METROPOLITAN-DISTRICT-COUNCIL/WALSALL,31/12/2016,CHANGE & GOVERNANCE,CRAZY HOUSE FURNITURE,08/12/2016,H59620161210OKHXERPIX-1,65.00,WALSALL CRISIS SUPPORT SCHEME-CRISIS SUPPORT PAYMENTS,"EQUIPMENT, FURNITURE, AND HOME FURNISHINGS STORES ",GPC
WALSALL COUNCIL,HTTP://OPENDATACOMMUNITIES.ORG/ID/METROPOLITAN-DISTRICT-COUNCIL/WALSALL,31/12/2016,CHANGE & GOVERNANCE,CRAZY HOUSE FURNITURE,08/12/2016,H59620161210PPPIENZFH-1,100.00,WALSALL CRISIS SUPPORT SCHEME-CRISIS SUPPORT PAYMENTS,"EQUIPMENT, FURNITURE, AND HOME FURNISHINGS STORES ",GPC
WALSALL COUNCIL,HTTP://OPENDATACOMMUNITIES.ORG/ID/METROPOLITAN-DISTRICT-COUNCIL/WALSALL,31/12/2016,CHANGE & GOVERNANCE,CRAZY HOUSE FURNITURE,08/12/2016,H59620161210IRNBODNEC-1,95.00,WALSALL CRISIS SUPPORT SCHEME-CRISIS SUPPORT PAYMENTS,"EQUIPMENT, FURNITURE, AND HOME FURNISHINGS STORES ",GPC
WALSALL COUNCIL,HTTP://OPENDATACOMMUNITIES.ORG/ID/METROPOLITAN-DISTRICT-COUNCIL/WALSALL,31/12/2016,ECONOMY & ENVIRONMENT,COACHWISELT,08/12/2016,H59620161210ELESTULUY-1,40.00,FIT4WORK PROGRAMME-PROFESSIONAL FEES AND SERVICES,PROFESSIONAL SERVICES,GPC
WALSALL COUNCIL,HTTP://OPENDATACOMMUNITIES.ORG/ID/METROPOLITAN-DISTRICT-COUNCIL/WALSALL,31/12/2016,CHILDRENS SERVICES,ASDA SUPERSTORE,08/12/2016,H59620161210TPICBSHKE-1,0.05,BLAKENALL CHILDCARE SERVICES-FOOD AND BEVERAGES-PROVISIONS,GROCERY STORES AND SUPERMARKETS,GPC
WALSALL COUNCIL,HTTP://OPENDATACOMMUNITIES.ORG/ID/METROPOLITAN-DISTRICT-COUNCIL/WALSALL,31/12/2016,CHILDRENS SERVICES,ASDA SUPERSTORE,08/12/2016,H59620161210TPICBSHKE-2,6.00,BLAKENALL CHILDCARE SERVICES-FOOD AND BEVERAGES-PROVISIONS,GROCERY STORES AND SUPERMARKETS,GPC
WALSALL COUNCIL,HTTP://OPENDATACOMMUNITIES.ORG/ID/METROPOLITAN-DISTRICT-COUNCIL/WALSALL,31/12/2016,CHILDRENS SERVICES,WEST MID TRAVEL,08/12/2016,H59620161210LCCHDNFNV-1,440.00,SAFEGUARDING & FAMILY SUPPORT-OFFICER/STAFF-PUBLIC TRANSPORT,BUS LINES,GPC
WALSALL COUNCIL,HTTP://OPENDATACOMMUNITIES.ORG/ID/METROPOLITAN-DISTRICT-COUNCIL/WALSALL,31/12/2016,CHILDRENS SERVICES,WEST MID TRAVEL,08/12/2016,H59620161210LCCHDNFNV-2,6.85,SAFEGUARDING & FAMILY SUPPORT-POSTAGES AND COURIER SERVICES,BUS LINES,GPC
WALSALL COUNCIL,HTTP://OPENDATACOMMUNITIES.ORG/ID/METROPOLITAN-DISTRICT-COUNCIL/WALSALL,31/12/2016,CHILDRENS SERVICES,B & Q 1276,08/12/2016,H59620161210JMUYJUVOB-1,31.15,"REDRUTH ROAD-REPAIRS,ALTERATIONS & MAINTENA",LUMBER & BUILDING MATERIALS STORES,GPC
WALSALL COUNCIL,HTTP://OPENDATACOMMUNITIES.ORG/ID/METROPOLITAN-DISTRICT-COUNCIL/WALSALL,31/12/2016,ECONOMY & ENVIRONMENT,HOME BARGAINS,08/12/2016,H59620161210BVJRAKVIM-1,3.99,DARLASTON DISTRICT CENTRE-EVENTS,HARDWARE STORES,GPC
WALSALL COUNCIL,HTTP://OPENDATACOMMUNITIES.ORG/ID/METROPOLITAN-DISTRICT-COUNCIL/WALSALL,31/12/2016,CHILDRENS SERVICES,ITUNES.COM/BILL,08/12/2016,H59620161210XBMUWYQTP-1,4.49,WALSALL WOOD PRIMARY SCHOOL-FURNITURE & EQUIPMENT,RECORD SHOPS,GPC
WALSALL COUNCIL,HTTP://OPENDATACOMMUNITIES.ORG/ID/METROPOLITAN-DISTRICT-COUNCIL/WALSALL,31/12/2016,ECONOMY & ENVIRONMENT,AMAZON UK MARKETPLACE,08/12/2016,H59620161210ZWFOMTOYB-1,-3.67,FLEET-GENERAL MATERIALS,MISCELLANEOUS AND SPECIALTY RETAIL STORES,GPC
WALSALL COUNCIL,HTTP://OPENDATACOMMUNITIES.ORG/ID/METROPOLITAN-DISTRICT-COUNCIL/WALSALL,31/12/2016,CHILDRENS SERVICES,ASDA SUPERSTORE,08/12/2016,H59620161210ECNEPXZLN-1,2.50,BLAKENALL CHILDCARE SERVICES-EVENTS,GROCERY STORES AND SUPERMARKETS,GPC
WALSALL COUNCIL,HTTP://OPENDATACOMMUNITIES.ORG/ID/METROPOLITAN-DISTRICT-COUNCIL/WALSALL,31/12/2016,CHILDRENS SERVICES,ASDA SUPERSTORE,08/12/2016,H59620161210ECNEPXZLN-2,130.96,BLAKENALL CHILDCARE SERVICES-EVENTS,GROCERY STORES AND SUPERMARKETS,GPC
WALSALL COUNCIL,HTTP://OPENDATACOMMUNITIES.ORG/ID/METROPOLITAN-DISTRICT-COUNCIL/WALSALL,31/12/2016,CHILDRENS SERVICES,PAYPAL *WU YONGJING,08/12/2016,H59620161210CBHYBOBUY-1,14.99,ADMINISTRATIVE SUPPLIES-TELEPHONES MOBILE/PAGERS-TELEP,ELECTRONIC SALES,GPC
WALSALL COUNCIL,HTTP://OPENDATACOMMUNITIES.ORG/ID/METROPOLITAN-DISTRICT-COUNCIL/WALSALL,31/12/2016,CHANGE & GOVERNANCE,DISTILLEDWA,08/12/2016,H59620161210TMRBJUSSD-1,93.40,CENTRAL OFFICE ACCOMMODATION-PROFESSIONAL SERVICES-PRIV CON,VARIETY STORES,GPC
WALSALL COUNCIL,HTTP://OPENDATACOMMUNITIES.ORG/ID/METROPOLITAN-DISTRICT-COUNCIL/WALSALL,31/12/2016,CHILDRENS SERVICES,ICELAND,08/12/2016,H59620161210KGCJHFNIP-1,36.38,SPINDLETREE-FOOD AND BEVERAGES-PROVISIONS,GROCERY STORES AND SUPERMARKETS,GPC
WALSALL COUNCIL,HTTP://OPENDATACOMMUNITIES.ORG/ID/METROPOLITAN-DISTRICT-COUNCIL/WALSALL,31/12/2016,CHILDRENS SERVICES,FARMFOODS- ERDINGT,08/12/2016,H59620161210FXQNMGTTI-1,75.17,SPINDLETREE-FOOD AND BEVERAGES-PROVISIONS,GROCERY STORES AND SUPERMARKETS,GPC
WALSALL COUNCIL,HTTP://OPENDATACOMMUNITIES.ORG/ID/METROPOLITAN-DISTRICT-COUNCIL/WALSALL,31/12/2016,CHILDRENS SERVICES,FARMFOODS- ERDINGT,08/12/2016,H59620161210JKGRBSDVT-1,11.58,SPINDLETREE-EQUIP NEW-CLEANING,GROCERY STORES AND SUPERMARKETS,GPC
WALSALL COUNCIL,HTTP://OPENDATACOMMUNITIES.ORG/ID/METROPOLITAN-DISTRICT-COUNCIL/WALSALL,31/12/2016,CHILDRENS SERVICES,AMAZON UK RETAIL,07/12/2016,H59620161209OMYIRLYHB-1,23.96,ENGLISH-LIBRARY BOOKS,OTHER DIRECT MARKETING-OTHER DIRECT MARKETERS,GPC
WALSALL COUNCIL,HTTP://OPENDATACOMMUNITIES.ORG/ID/METROPOLITAN-DISTRICT-COUNCIL/WALSALL,31/12/2016,CHILDRENS SERVICES,REGISTRARS OFFICE,07/12/2016,H59620161209HZAPAZGKJ-1,11.00,LOOKED AFTER CHILDRENS SOCIAL -MISC FEES AND EXPENSES,OTHER SCHOOLS AND EDUCATIONAL SERVICES,GPC
WALSALL COUNCIL,HTTP://OPENDATACOMMUNITIES.ORG/ID/METROPOLITAN-DISTRICT-COUNCIL/WALSALL,31/12/2016,CHILDRENS SERVICES,REGISTRATION SERVICES,07/12/2016,H59620161209PCOJNKFGL-1,20.00,LOOKED AFTER CHILDRENS SOCIAL -MISC FEES AND EXPENSES,OTHER RECREATION SERVICES,GPC
WALSALL COUNCIL,HTTP://OPENDATACOMMUNITIES.ORG/ID/METROPOLITAN-DISTRICT-COUNCIL/WALSALL,31/12/2016,CHILDRENS SERVICES,SPA ENVIRONMENTAL CARE,07/12/2016,H59620161209CWOHLPXJE-1,576.00,PELSALL EDC-GRITTING-SERVICES-FEES,HORTICULTURAL AND LANDSCAPING SERVICES,GPC
WALSALL COUNCIL,HTTP://OPENDATACOMMUNITIES.ORG/ID/METROPOLITAN-DISTRICT-COUNCIL/WALSALL,31/12/2016,CHILDRENS SERVICES,SPA ENVIRONMENTAL CARE,07/12/2016,H59620161209CWOHLPXJE-2,19.01,PELSALL EDC-GRITTING-SERVICES-FEES,HORTICULTURAL AND LANDSCAPING SERVICES,GPC
WALSALL COUNCIL,HTTP://OPENDATACOMMUNITIES.ORG/ID/METROPOLITAN-DISTRICT-COUNCIL/WALSALL,31/12/2016,CHILDRENS SERVICES,PHONAK GROUP LTD,07/12/2016,H59620161209VNEJYEFAT-1,38.40,SEN-REPAIR OF EQUIPMENT-EQUIPMENT,OTHER BUSINESS SERVICES,GPC
WALSALL COUNCIL,HTTP://OPENDATACOMMUNITIES.ORG/ID/METROPOLITAN-DISTRICT-COUNCIL/WALSALL,31/12/2016,CHILDRENS SERVICES,WWW.COFFEESUPPLIESDIRE,07/12/2016,H59620161209QHNFHJBPZ-1,65.59,WALSALL WOOD PRIMARY SCHOOL-,VARIETY STORES,GPC
WALSALL COUNCIL,HTTP://OPENDATACOMMUNITIES.ORG/ID/METROPOLITAN-DISTRICT-COUNCIL/WALSALL,31/12/2016,CHILDRENS SERVICES,AMAZON UK MARKETPLACE,07/12/2016,H59620161209FOXUCEGHG-1,11.58,"REDRUTH ROAD-REPAIRS,ALTERATIONS & MAINTENA",BOOK STORES,GPC
WALSALL COUNCIL,HTTP://OPENDATACOMMUNITIES.ORG/ID/METROPOLITAN-DISTRICT-COUNCIL/WALSALL,31/12/2016,CHILDRENS SERVICES,AMAZON UK MARKETPLACE,07/12/2016,H59620161209GNWLSEVRC-1,6.25,REDRUTH ROAD-NEW-FURNITURE & EQUIPMENT,BOOK STORES,GPC
WALSALL COUNCIL,HTTP://OPENDATACOMMUNITIES.ORG/ID/METROPOLITAN-DISTRICT-COUNCIL/WALSALL,31/12/2016,CHILDRENS SERVICES,PARENTPAY E-COM R,06/12/2016,H59620161209ISISREBPU-1,50.00,REDRUTH ROAD-RESIDENTS PERSONAL EXPENSES-AL,"COLLEGES, UNIVERSITIES, PROFESSIONAL SCHOOLS",GPC
WALSALL COUNCIL,HTTP://OPENDATACOMMUNITIES.ORG/ID/METROPOLITAN-DISTRICT-COUNCIL/WALSALL,31/12/2016,CHILDRENS SERVICES,WWW.SNOWDOME.CO.UK,07/12/2016,H59620161209ODHZVWWFX-1,29.00,REDRUTH ROAD-RESIDENTS PERSONAL EXPENSES-AL,"CLUBS COUNTRY CLUBS, MEMBERSHIP",GPC
WALSALL COUNCIL,HTTP://OPENDATACOMMUNITIES.ORG/ID/METROPOLITAN-DISTRICT-COUNCIL/WALSALL,31/12/2016,CHANGE & GOVERNANCE,ASDA,07/12/2016,H59620161209FDVKLTHYO-1,13.00,WALSALL CRISIS SUPPORT SCHEME-FOOD AND BEVERAGES-PROVISIONS,GROCERY STORES AND SUPERMARKETS,GPC
WALSALL COUNCIL,HTTP://OPENDATACOMMUNITIES.ORG/ID/METROPOLITAN-DISTRICT-COUNCIL/WALSALL,31/12/2016,CHANGE & GOVERNANCE,BONMARCHE LTD,07/12/2016,H59620161209HBUQDYEUX-1,57.05,WALSALL CRISIS SUPPORT SCHEME-CLOTHING & LAUNDRY,WOMENS READY TO WEAR STORES,GPC
WALSALL COUNCIL,HTTP://OPENDATACOMMUNITIES.ORG/ID/METROPOLITAN-DISTRICT-COUNCIL/WALSALL,31/12/2016,CHILDRENS SERVICES,W M MORRISON PLC,07/12/2016,H59620161209RNHLFCXTF-1,35.00,"43A HILTON ROAD, WILLENHALL-FOOD AND BEVERAGES-PROVISIONS",GROCERY STORES AND SUPERMARKETS,GPC
WALSALL COUNCIL,HTTP://OPENDATACOMMUNITIES.ORG/ID/METROPOLITAN-DISTRICT-COUNCIL/WALSALL,31/12/2016,CHILDRENS SERVICES,W M MORRISON PLC,07/12/2016,H59620161209RNHLFCXTF-2,104.17,"43A HILTON ROAD, WILLENHALL-FOOD AND BEVERAGES-PROVISIONS",GROCERY STORES AND SUPERMARKETS,GPC
WALSALL COUNCIL,HTTP://OPENDATACOMMUNITIES.ORG/ID/METROPOLITAN-DISTRICT-COUNCIL/WALSALL,31/12/2016,CHILDRENS SERVICES,IKEA LIMITED,07/12/2016,H59620161209EKCTOVIMR-1,10.40,LOCALITY FAMILY SUPPORT-WEST-EVENTS,"EQUIPMENT, FURNITURE, AND HOME FURNISHINGS STORES ",GPC
WALSALL COUNCIL,HTTP://OPENDATACOMMUNITIES.ORG/ID/METROPOLITAN-DISTRICT-COUNCIL/WALSALL,31/12/2016,CHILDRENS SERVICES,ASDA STORES,07/12/2016,H59620161209RJMQBCAKT-1,9.20,LOCALITY FAMILY SUPPORT-WEST-EVENTS,GROCERY STORES AND SUPERMARKETS,GPC
WALSALL COUNCIL,HTTP://OPENDATACOMMUNITIES.ORG/ID/METROPOLITAN-DISTRICT-COUNCIL/WALSALL,31/12/2016,CHILDRENS SERVICES,ASDA STORES,07/12/2016,H59620161209RJMQBCAKT-2,35.90,LOCALITY FAMILY SUPPORT-WEST-EVENTS,GROCERY STORES AND SUPERMARKETS,GPC
WALSALL COUNCIL,HTTP://OPENDATACOMMUNITIES.ORG/ID/METROPOLITAN-DISTRICT-COUNCIL/WALSALL,31/12/2016,CHILDRENS SERVICES,ASDA STORES,07/12/2016,H59620161209RJMQBCAKT-3,0.24,LOCALITY FAMILY SUPPORT-WEST-EVENTS,GROCERY STORES AND SUPERMARKETS,GPC
WALSALL COUNCIL,HTTP://OPENDATACOMMUNITIES.ORG/ID/METROPOLITAN-DISTRICT-COUNCIL/WALSALL,31/12/2016,CHILDRENS SERVICES,AMAZON UK MARKETPLACE,07/12/2016,H59620161209OHLPFDINV-1,9.39,FOUNDATION PHASE RESOURCES-GENERAL MATERIALS,BOOK STORES,GPC
WALSALL COUNCIL,HTTP://OPENDATACOMMUNITIES.ORG/ID/METROPOLITAN-DISTRICT-COUNCIL/WALSALL,31/12/2016,CHILDRENS SERVICES,AMAZON UK MARKETPLACE,07/12/2016,H59620161209OKXHTLSSQ-1,5.99,"CHUCKERY PRIMARY SCHOOL-REPAIRS,ALTERATIONS & MAINTENA",MISCELLANEOUS AND SPECIALTY RETAIL STORES,GPC
WALSALL COUNCIL,HTTP://OPENDATACOMMUNITIES.ORG/ID/METROPOLITAN-DISTRICT-COUNCIL/WALSALL,31/12/2016,CHILDRENS SERVICES,AMAZON UK MARKETPLACE,07/12/2016,H59620161209DPWNPCCGU-1,11.16,"CHUCKERY PRIMARY SCHOOL-REPAIRS,ALTERATIONS & MAINTENA",BOOK STORES,GPC
WALSALL COUNCIL,HTTP://OPENDATACOMMUNITIES.ORG/ID/METROPOLITAN-DISTRICT-COUNCIL/WALSALL,31/12/2016,CHILDRENS SERVICES,AMAZON UK MARKETPLACE,07/12/2016,H59620161209DPWNPCCGU-2,11.99,"CHUCKERY PRIMARY SCHOOL-REPAIRS,ALTERATIONS & MAINTENA",BOOK STORES,GPC
WALSALL COUNCIL,HTTP://OPENDATACOMMUNITIES.ORG/ID/METROPOLITAN-DISTRICT-COUNCIL/WALSALL,31/12/2016,CHILDRENS SERVICES,AMAZON UK MARKETPLACE,07/12/2016,H59620161209EOYATFXWL-1,3.49,"CHUCKERY PRIMARY SCHOOL-REPAIRS,ALTERATIONS & MAINTENA",BOOK STORES,GPC
WALSALL COUNCIL,HTTP://OPENDATACOMMUNITIES.ORG/ID/METROPOLITAN-DISTRICT-COUNCIL/WALSALL,31/12/2016,ECONOMY & ENVIRONMENT,LOCKS & FITTINGS,07/12/2016,H59620161209OQYUIJBTN-1,31.28,INFRASTRUCTURE MAINTENANCE-GENERAL MATERIALS,HARDWARE EQUIPMENT AND SUPPLIES,GPC
WALSALL COUNCIL,HTTP://OPENDATACOMMUNITIES.ORG/ID/METROPOLITAN-DISTRICT-COUNCIL/WALSALL,31/12/2016,CHILDRENS SERVICES,POUNDWORLD RETAIL,07/12/2016,H59620161209KDGCJWKDG-1,11.05,TRANSITION AND LEAVING CARE-TRANSFER PAYMENTS - SOCIAL SER,DISCOUNT STORES,GPC
WALSALL COUNCIL,HTTP://OPENDATACOMMUNITIES.ORG/ID/METROPOLITAN-DISTRICT-COUNCIL/WALSALL,31/12/2016,CHILDRENS SERVICES,BOOTS.COM,07/12/2016,H59620161209CMGEJBPXS-1,40.00,57 LICHFIELD ROAD-RESIDENTS PERSONAL EXPENSES-AL,"DRUG STORES, PHARMACIES",GPC
WALSALL COUNCIL,HTTP://OPENDATACOMMUNITIES.ORG/ID/METROPOLITAN-DISTRICT-COUNCIL/WALSALL,31/12/2016,ECONOMY & ENVIRONMENT,WWW.WALSALL.GOV.UK,07/12/2016,H59620161209NFGNDYEGW-1,21.00,ARBORETUM-EVENTS,OTHER RECREATION SERVICES,GPC
WALSALL COUNCIL,HTTP://OPENDATACOMMUNITIES.ORG/ID/METROPOLITAN-DISTRICT-COUNCIL/WALSALL,31/12/2016,ECONOMY & ENVIRONMENT,CONTRADO IMAGING,07/12/2016,H59620161209XHGEBBFED-1,93.73,EXTL FUNDED CREATIVE PROJECT M-GENERAL MATERIALS,"CARD, GIFT, NOVELTY, AND SOUVENIR SHOPS",GPC
WALSALL COUNCIL,HTTP://OPENDATACOMMUNITIES.ORG/ID/METROPOLITAN-DISTRICT-COUNCIL/WALSALL,31/12/2016,CHILDRENS SERVICES,PAYPAL *SCREWFIX,07/12/2016,H59620161209VUJELOHJH-1,27.99,DT-GENERAL MATERIALS,OTHER DURABLE GOODS,GPC
WALSALL COUNCIL,HTTP://OPENDATACOMMUNITIES.ORG/ID/METROPOLITAN-DISTRICT-COUNCIL/WALSALL,31/12/2016,CHANGE & GOVERNANCE,WILKO RETAIL LIMIT,07/12/2016,H59620161209JFHRCUJNR-1,26.75,WALSALL CRISIS SUPPORT SCHEME-FURNITURE & EQUIPMENT,HOUSEHOLD APPLIANCE STORES,GPC
WALSALL COUNCIL,HTTP://OPENDATACOMMUNITIES.ORG/ID/METROPOLITAN-DISTRICT-COUNCIL/WALSALL,31/12/2016,CHANGE & GOVERNANCE,WH SMITH,07/12/2016,H59620161209VPGUJJAKT-1,21.97,ACCOMMODATION SERVICES MANAGEM-PERIODICALS/MAGAZINES/NEWSPAPE,NEWS DEALERS AND NEWSSTANDS,GPC
WALSALL COUNCIL,HTTP://OPENDATACOMMUNITIES.ORG/ID/METROPOLITAN-DISTRICT-COUNCIL/WALSALL,31/12/2016,CHANGE & GOVERNANCE,POUNDLAND LTD 1427,07/12/2016,H59620161209DUYFWTZJS-1,9.20,ACCOMMODATION SERVICES MANAGEM-MEAT-PROVISIONS,DISCOUNT STORES,GPC
WALSALL COUNCIL,HTTP://OPENDATACOMMUNITIES.ORG/ID/METROPOLITAN-DISTRICT-COUNCIL/WALSALL,31/12/2016,CHANGE & GOVERNANCE,MCDONALDS,07/12/2016,H59620161209EKYGTPEPQ-1,2.98,ACCOMMODATION SERVICES MANAGEM-SUBSISTENCE OFFICERS-EXPENSES,"EATING PLACES, RESTAURANTS",GPC
WALSALL COUNCIL,HTTP://OPENDATACOMMUNITIES.ORG/ID/METROPOLITAN-DISTRICT-COUNCIL/WALSALL,31/12/2016,ECONOMY & ENVIRONMENT,GILMORE BUILDING S,05/12/2016,H59620161209CJMEJPIUQ-1,47.40,INFRASTRUCTURE MAINTENANCE-GENERAL MATERIALS,LUMBER & BUILDING MATERIALS STORES,GPC
WALSALL COUNCIL,HTTP://OPENDATACOMMUNITIES.ORG/ID/METROPOLITAN-DISTRICT-COUNCIL/WALSALL,31/12/2016,ECONOMY & ENVIRONMENT,CITY ELECTRICAL FA,07/12/2016,H59620161209ITDUQRXDD-1,50.93,OAK PARK-GENERAL MATERIALS,LUMBER & BUILDING MATERIALS STORES,GPC
WALSALL COUNCIL,HTTP://OPENDATACOMMUNITIES.ORG/ID/METROPOLITAN-DISTRICT-COUNCIL/WALSALL,31/12/2016,ECONOMY & ENVIRONMENT,TOOLSTATION LTD,07/12/2016,H59620161209KRPWRDOBT-1,29.24,INFRASTRUCTURE MAINTENANCE-GENERAL MATERIALS,HARDWARE STORES,GPC
WALSALL COUNCIL,HTTP://OPENDATACOMMUNITIES.ORG/ID/METROPOLITAN-DISTRICT-COUNCIL/WALSALL,31/12/2016,CHANGE & GOVERNANCE,AMAZON UK MARKETPLACE,07/12/2016,H59620161209UAIXEXKPD-1,6.21,RECHARGEABLE EQUIPMENT-COMPUTER EQUIPMENT AND SUPPLIE,BOOK STORES,GPC
WALSALL COUNCIL,HTTP://OPENDATACOMMUNITIES.ORG/ID/METROPOLITAN-DISTRICT-COUNCIL/WALSALL,31/12/2016,CHANGE & GOVERNANCE,AMAZON UK MARKETPLACE,07/12/2016,H59620161209CXDRGNLJS-1,80.00,RECHARGEABLE EQUIPMENT-LIBRARY BOOKS,BOOK STORES,GPC
WALSALL COUNCIL,HTTP://OPENDATACOMMUNITIES.ORG/ID/METROPOLITAN-DISTRICT-COUNCIL/WALSALL,31/12/2016,ECONOMY & ENVIRONMENT,W M MORRISONS,07/12/2016,H59620161209CSDFCDCJK-1,19.90,WALSALL OUTDOOR ADVENTURE CENT-FOOD AND BEVERAGES-PROVISIONS,GROCERY STORES AND SUPERMARKETS,GPC
WALSALL COUNCIL,HTTP://OPENDATACOMMUNITIES.ORG/ID/METROPOLITAN-DISTRICT-COUNCIL/WALSALL,31/12/2016,ECONOMY & ENVIRONMENT,W M MORRISONS,07/12/2016,H59620161209TDHUVUVSU-1,1.00,WALSALL OUTDOOR ADVENTURE CENT-FOOD AND BEVERAGES-PROVISIONS,GROCERY STORES AND SUPERMARKETS,GPC
WALSALL COUNCIL,HTTP://OPENDATACOMMUNITIES.ORG/ID/METROPOLITAN-DISTRICT-COUNCIL/WALSALL,31/12/2016,SOCIAL CARE & INCLUSION,EMAP LTD-SUBSCRIPTIONS,07/12/2016,H59620161209YULNXQKKO-1,54.50,SENIOR MANAGEMENT TEAM-EXTERNAL PRINTING SERVICES,MISCELLANEOUS PUBLISHING AND PRINTING,GPC
WALSALL COUNCIL,HTTP://OPENDATACOMMUNITIES.ORG/ID/METROPOLITAN-DISTRICT-COUNCIL/WALSALL,31/12/2016,CHILDRENS SERVICES,AMAZON UK RETAIL,07/12/2016,H59620161209XJAZHBXYP-1,56.99,REWARDS & PRIZES SH-GENERAL MATERIALS,OTHER DIRECT MARKETING-OTHER DIRECT MARKETERS,GPC
WALSALL COUNCIL,HTTP://OPENDATACOMMUNITIES.ORG/ID/METROPOLITAN-DISTRICT-COUNCIL/WALSALL,31/12/2016,ECONOMY & ENVIRONMENT,TEMP STORE,06/12/2016,H59620161208VTECVOQYU-1,-3.00,FOREST ARTS CENTRE-STATIONERY & GENERAL SUPPLIES-,DISCOUNT STORES,GPC
WALSALL COUNCIL,HTTP://OPENDATACOMMUNITIES.ORG/ID/METROPOLITAN-DISTRICT-COUNCIL/WALSALL,31/12/2016,ECONOMY & ENVIRONMENT,TEMP STORE,06/12/2016,H59620161208HUFMAOUSD-1,26.00,FOREST ARTS CENTRE-STATIONERY & GENERAL SUPPLIES-,DISCOUNT STORES,GPC
WALSALL COUNCIL,HTTP://OPENDATACOMMUNITIES.ORG/ID/METROPOLITAN-DISTRICT-COUNCIL/WALSALL,31/12/2016,ECONOMY & ENVIRONMENT,TEMP STORE,06/12/2016,H59620161208OLSHVHOHI-1,8.00,FOREST ARTS CENTRE-STATIONERY & GENERAL SUPPLIES-,DISCOUNT STORES,GPC
WALSALL COUNCIL,HTTP://OPENDATACOMMUNITIES.ORG/ID/METROPOLITAN-DISTRICT-COUNCIL/WALSALL,31/12/2016,CHANGE & GOVERNANCE,CARTRIDGE SAVE,06/12/2016,H59620161208IWCMFIPBF-1,193.92,LAW LIBRARY-GENERAL MATERIALS,"STATIONERY, OFFICE SUPPLIES AND WRITING PAPER",GPC
WALSALL COUNCIL,HTTP://OPENDATACOMMUNITIES.ORG/ID/METROPOLITAN-DISTRICT-COUNCIL/WALSALL,31/12/2016,CHANGE & GOVERNANCE,MONKEYOFFICE.CO.UK,06/12/2016,H59620161208BLNGYFCFP-1,108.98,LAW LIBRARY-GENERAL MATERIALS,"OFFICE, SCHOOL SUPPLY, AND STATIONERY STORES",GPC
WALSALL COUNCIL,HTTP://OPENDATACOMMUNITIES.ORG/ID/METROPOLITAN-DISTRICT-COUNCIL/WALSALL,31/12/2016,SOCIAL CARE & INCLUSION,TRAINLINE,06/12/2016,H59620161208XMTSHPPTB-1,162.69,SENIOR MANAGEMENT TEAM-OFFICER/STAFF-PUBLIC TRANSPORT,PASSENGER RAILWAYS,GPC
WALSALL COUNCIL,HTTP://OPENDATACOMMUNITIES.ORG/ID/METROPOLITAN-DISTRICT-COUNCIL/WALSALL,31/12/2016,ECONOMY & ENVIRONMENT,CREATION CLIMBING,06/12/2016,H59620161208IVQKKVKHE-1,46.25,WALSALL OUTDOOR ADVENTURE CENT-EDUCATIONAL VISITS-SERVICES-FE,OTHER RECREATION SERVICES,GPC
WALSALL COUNCIL,HTTP://OPENDATACOMMUNITIES.ORG/ID/METROPOLITAN-DISTRICT-COUNCIL/WALSALL,31/12/2016,ECONOMY & ENVIRONMENT,ASDA SUPERSTORE,06/12/2016,H59620161208RVBDHPGIF-1,11.10,WALSALL OUTDOOR ADVENTURE CENT-FOOD AND BEVERAGES-PROVISIONS,GROCERY STORES AND SUPERMARKETS,GPC
WALSALL COUNCIL,HTTP://OPENDATACOMMUNITIES.ORG/ID/METROPOLITAN-DISTRICT-COUNCIL/WALSALL,31/12/2016,ECONOMY & ENVIRONMENT,ASDA SUPERSTORE,06/12/2016,H59620161208RVBDHPGIF-2,13.10,WALSALL OUTDOOR ADVENTURE CENT-FOOD AND BEVERAGES-PROVISIONS,GROCERY STORES AND SUPERMARKETS,GPC
WALSALL COUNCIL,HTTP://OPENDATACOMMUNITIES.ORG/ID/METROPOLITAN-DISTRICT-COUNCIL/WALSALL,31/12/2016,ECONOMY & ENVIRONMENT,SWINNERTONS WALSALL,06/12/2016,H59620161208TRQSRNBYT-1,300.00,WALSALL TOWN HALL-MISCELLANEOUS SUPPLIES,MISCELLANEOUS AND SPECIALTY RETAIL STORES,GPC
WALSALL COUNCIL,HTTP://OPENDATACOMMUNITIES.ORG/ID/METROPOLITAN-DISTRICT-COUNCIL/WALSALL,31/12/2016,ECONOMY & ENVIRONMENT,AMAZON UK MARKETPLACE,06/12/2016,H59620161208FWRTHXFMW-1,29.55,WALSALL MARKET-GENERAL MATERIALS,BOOK STORES,GPC
WALSALL COUNCIL,HTTP://OPENDATACOMMUNITIES.ORG/ID/METROPOLITAN-DISTRICT-COUNCIL/WALSALL,31/12/2016,CHANGE & GOVERNANCE,NCS*CIMA VUE EXAM,06/12/2016,H59620161208XPVLVOCDW-1,-77.00,FINANCE-EXTERNAL TRAINING,OTHER SCHOOLS AND EDUCATIONAL SERVICES,GPC
WALSALL COUNCIL,HTTP://OPENDATACOMMUNITIES.ORG/ID/METROPOLITAN-DISTRICT-COUNCIL/WALSALL,31/12/2016,CHANGE & GOVERNANCE,CRAZY HOUSE FURNITURE,06/12/2016,H59620161208FSILOKKTP-1,60.00,WALSALL CRISIS SUPPORT SCHEME-FURNITURE & EQUIPMENT,"EQUIPMENT, FURNITURE, AND HOME FURNISHINGS STORES ",GPC
WALSALL COUNCIL,HTTP://OPENDATACOMMUNITIES.ORG/ID/METROPOLITAN-DISTRICT-COUNCIL/WALSALL,31/12/2016,CHANGE & GOVERNANCE,CRAZY HOUSE FURNITURE,06/12/2016,H59620161208LXFCSDPAO-1,40.00,WALSALL CRISIS SUPPORT SCHEME-FURNITURE & EQUIPMENT,"EQUIPMENT, FURNITURE, AND HOME FURNISHINGS STORES ",GPC
WALSALL COUNCIL,HTTP://OPENDATACOMMUNITIES.ORG/ID/METROPOLITAN-DISTRICT-COUNCIL/WALSALL,31/12/2016,CHANGE & GOVERNANCE,DHILLON DAILY STORES 2,06/12/2016,H59620161208JKSFIQDDW-1,30.25,TENANCY SERVICE-FOOD AND BEVERAGES-PROVISIONS,GROCERY STORES AND SUPERMARKETS,GPC
WALSALL COUNCIL,HTTP://OPENDATACOMMUNITIES.ORG/ID/METROPOLITAN-DISTRICT-COUNCIL/WALSALL,31/12/2016,CHANGE & GOVERNANCE,THE RANGE,06/12/2016,H59620161208CPULQSWHL-1,59.98,MAYORS SECRETARIAT-MAYORAL COSTS,DEPARTMENT STORES,GPC
WALSALL COUNCIL,HTTP://OPENDATACOMMUNITIES.ORG/ID/METROPOLITAN-DISTRICT-COUNCIL/WALSALL,31/12/2016,CHANGE & GOVERNANCE,THE RANGE,06/12/2016,H59620161208EDTUXSUFF-1,99.99,"WALSALL TOWN HALL-REPAIRS,ALTERATIONS & MAINTENA",DEPARTMENT STORES,GPC
